{"text_format":"1","workbook":"xlsx","n_sheets":56,"sheets":["Titelblatt","001 Inhaltsverzeichnis","002","003","111","112","113","114","115","116","117","211","212","213","214","215","221","222","223","231","241","251","252","311","312","313","314","315","316","317","318","319","320","321","411","412","413","414","415","416","417","511","512","513","514","611","612","613","911","912","913","914","915","916","917","Leer"],"not_rendered":{"charts":0,"images":5,"macros":1,"external_links":0,"defined_names":90,"comments":0,"pivot_tables":0},"unopened":[],"bounds":{"document_bytes":16777216,"sheet_cells":100000,"rows_first":2000,"rows_last":500,"rows_between":2000,"halvings":0,"cell_chars":16384,"cell_head_chars":4096},"cells_cut":0,"cells_raw":0,"read":"whole","date_system":"1900"}

{"sheet":"Titelblatt","index":0,"n_rows":27,"n_cols":6,"rows_kept":27,"cut":false,"hidden":false,"merged":[[0,5,0,6],[2,2,2,5],[5,2,13,2],[11,5,12,5],[18,5,20,5],[11,4,12,4],[18,4,20,4]]}
[null,null,null,null,null,"Zu 001 Inhaltsverzeichnis"]
[]
[null,null,"C2 Qualitätslenkung Unternehmer (QLU)"]
[]
[]
[null,null,"Beschaffungs-\nobjekt",null,"Projekttitel","Instandsetzung Musterbrücke …."]
[]
[null,null,null,null,"Gemeinde","Musterhausen"]
[null,null,null,null,"Strasse","Musterstrasse"]
[null,null,null,null,"Strecke","Musterkreisel bis Musterstrasse"]
[null,null,null,null,"km / Bauwerk","003-002 "]
[null,null,null,null,"Vorhaben","Instandsetzung, …."]
[]
[null,null,null,null,"Arbeit","Baumeisterarbeiten"]
[]
[null,null,"Vergabestelle",null,"Baudirektion Kanton Zürich, Tiefbauamt, Walcheplatz 2, 8090 Zürich "]
[]
[]
[null,null,null,null,"Ingenieurbüro","Musterbüro\nMusterstrasse 15\n8000 Musterhausen"]
[]
[]
[]
[null,null,null,null," "," "]
[]
[null,null,null,null," "," "]
[]
[null,null,null,null,"Kostenträger","84B-….."]

{"sheet":"001 Inhaltsverzeichnis","index":1,"n_rows":72,"n_cols":11,"rows_kept":72,"cut":false,"hidden":false,"merged":[]}
["000 Grundlagen",null,null,null,null,null,"001 Inhaltsverzeichnis"]
[{"$f":"+Titelblatt!E8","v":"Gemeinde"},null,{"$f":"+Titelblatt!F8","v":"Musterhausen"},null,null,null,null,null,null,"Ja"]
[{"$f":"+Titelblatt!E9","v":"Strasse"},null,{"$f":"+Titelblatt!F9","v":"Musterstrasse"},null,null,null,null,null,null,"Nein"]
[{"$f":"+Titelblatt!E10","v":"Strecke"},null,{"$f":"+Titelblatt!F10","v":"Musterkreisel bis Musterstrasse"},null,null,null,null,null,null,"X"]
[{"$f":"+Titelblatt!E11","v":"km / Bauwerk"},null,{"$f":"+Titelblatt!F11","v":"003-002 "},null,null,null,null,null,null," "]
[{"$f":"+Titelblatt!E6","v":"Projekttitel"},null,{"$f":"+Titelblatt!F6","v":"Instandsetzung Musterbrücke …."}]
[{"$f":"+Titelblatt!E19","v":"Ingenieurbüro"},null,{"$f":"+Titelblatt!F19","v":"Musterbüro\nMusterstrasse 15\n8000 Musterhausen"}]
[{"$f":"+Titelblatt!E23","v":" "},null,{"$f":"+Titelblatt!F23","v":" "}]
[]
["Kapitel\nRegister Nr","Spalte1","Themenfeld","Hilfs\nSubmissions-\nrelevant?\n[Ja / Nein]","Submissions-\nrelevant?\n[Ja / Nein]","Prüfungen durch den Bauherrn bestellt\n = X","Ausführungs- & Anforderungs-hinweise","Submissions-\nrelevant? \n[Ja / Nein]","PL P+R","Fachperson","Hinweis zu Worddokument"]
["000 Grundlagen",null,null,"Ja",{"$f":"IF(AND(D12=\"Nein\",D13=\"Nein\",D14=\"Nein\"),\"Nein\",D11)","v":"Ja"}," "," "]
["001",null,"Inhaltsverzeichnis","Ja",{"$f":"+Tabelle1[[#This Row],[Hilfs\nSubmissions-\nrelevant?\n'[Ja / Nein']]]","v":"Ja"},null,null,null,"Str",null,"---"]
["002",null,"Vorgaben","Ja",{"$f":"+Tabelle1[[#This Row],[Hilfs\nSubmissions-\nrelevant?\n'[Ja / Nein']]]","v":"Ja"}," "," "," ","Str",null,"F3-1 QL U Vorwort"]
["003",null,"Offertblatt (nur bei Vergütungsvariante 3)","Nein",{"$f":"+Tabelle1[[#This Row],[Hilfs\nSubmissions-\nrelevant?\n'[Ja / Nein']]]","v":"Nein"}," "," ",null,"Str",null,"---"]
["100 Erdarbeiten",null,null,"Ja",{"$f":"IF(AND(D16=\"Nein\",D17=\"Nein\",D18=\"Nein\",D19=\"Nein\",D20=\"Nein\",D21=\"Nein\",D22=\"Nein\"),\"Nein\",D15)","v":"Ja"}," "," "]
[111,null,"Aushub","Ja",{"$f":"+Tabelle1[[#This Row],[Hilfs\nSubmissions-\nrelevant?\n'[Ja / Nein']]]","v":"Ja"},"X","X",null,"Kc","Gc","Gc; F3-2_100-1.1 Erdarbeiten; Aushub Kull"]
[112,null,"Hinterfüllung","Ja",{"$f":"+Tabelle1[[#This Row],[Hilfs\nSubmissions-\nrelevant?\n'[Ja / Nein']]]","v":"Ja"},"X","X",null,"Kc","Gc","Gc; F3-2_100-1.2 Erdarbeiten; Hinterfüllung Kull"]
[113,null,"Grabenauffüllung","Ja",{"$f":"+Tabelle1[[#This Row],[Hilfs\nSubmissions-\nrelevant?\n'[Ja / Nein']]]","v":"Ja"},"X","X",null,"Kc","Gc","Gc; F3-2_100-1.3 Erdarbeiten; Grabenauffüllung Kull"]
[114,null,"Fundationsschicht ungebunden","Ja",{"$f":"+Tabelle1[[#This Row],[Hilfs\nSubmissions-\nrelevant?\n'[Ja / Nein']]]","v":"Ja"}," ","X",null,"Kc","Gc","Gc; F3-2_100-1.4 Erdarbeiten; Ungebundene Fundationsschicht Kull"]
[115,null,"Fundationsschicht gebunden, Asphalt kaltbauw.","Ja",{"$f":"+Tabelle1[[#This Row],[Hilfs\nSubmissions-\nrelevant?\n'[Ja / Nein']]]","v":"Ja"}," ","X",null,"Kc","Gc","Gc; F3-2_100-1.5 Erdarbeiten; Gebundene Fundationsschicht Kull"]
[116,null,"Fundationsschicht gebunden, hydraulisch","Ja",{"$f":"+Tabelle1[[#This Row],[Hilfs\nSubmissions-\nrelevant?\n'[Ja / Nein']]]","v":"Ja"}," ","X",null,"Kc","Gc","Gc; F3-2_100-1.5 b Erdarbeiten; Hydraulisch gebundene Fundationsschicht Kull"]
[117,null,"Schüttung","Ja",{"$f":"+Tabelle1[[#This Row],[Hilfs\nSubmissions-\nrelevant?\n'[Ja / Nein']]]","v":"Ja"},"X","X",null,"Kc","Gc","Gc; F3-2_100-1.6 Erdarbeiten; Schüttung Kull"]
["200 Baugruben",null,null,"Ja",{"$f":"IF(AND(D24=\"Nein\",D25=\"Nein\",D26=\"Nein\",D27=\"Nein\",D28=\"Nein\",D29=\"Nein\",D30=\"Nein\",D31=\"Nein\",D32=\"Nein\",D33=\"Nein\",D34=\"Nein\",D35=\"Nein\"),\"Nein\",D23)","v":"Ja"},"X","X"]
[211,null,"Abschluss, offen","Ja",{"$f":"+Tabelle1[[#This Row],[Hilfs\nSubmissions-\nrelevant?\n'[Ja / Nein']]]","v":"Ja"},"X","X",null,"Str","Gc","Gc; F3-2_200-1.1 Baugruben; Baugrubenabschluss offen Strahm"]
[212,null,"Abschluss, Rühlwand gerammt","Ja",{"$f":"+Tabelle1[[#This Row],[Hilfs\nSubmissions-\nrelevant?\n'[Ja / Nein']]]","v":"Ja"},"X","X",null,"Str","Gc","Gc; F3-2_200-1.2 Baugruben; Baugrubenabschluss Rühlwand gerammt Strahm"]
[213,null,"Abschluss, Spundwand","Ja",{"$f":"+Tabelle1[[#This Row],[Hilfs\nSubmissions-\nrelevant?\n'[Ja / Nein']]]","v":"Ja"},"X","X",null,"Str","Gc","Gc; F3-2_200-1.3 Baugruben; Baugrubenabschluss Spundwand Strahm"]
[214,null,"Abschluss, Bohrpfahlwand, gebohrte Rühlwand","Ja",{"$f":"+Tabelle1[[#This Row],[Hilfs\nSubmissions-\nrelevant?\n'[Ja / Nein']]]","v":"Ja"},"X","X",null,"Str","Gc","Gc; F3-2_200-1.4 Baugruben; Baugrubenabschluss Bohrpfahlwand Strahm"]
[215,null,"Abschluss, Schlitzwand","Ja",{"$f":"+Tabelle1[[#This Row],[Hilfs\nSubmissions-\nrelevant?\n'[Ja / Nein']]]","v":"Ja"},"X","X",null,"Str","Gc","Gc; F3-2_200-1.5 Baugruben; Baugrubenabschluss Schlitzwand Strahm"]
[221,null,"Wasserhaltung, offen","Ja",{"$f":"+Tabelle1[[#This Row],[Hilfs\nSubmissions-\nrelevant?\n'[Ja / Nein']]]","v":"Ja"},"X","X",null,"Str","Gc","Gc; F3-2_200-2.1 Baugruben; Wasserhaltung offen Strahm"]
[222,null,"Wasserhaltung, Vakuum","Ja",{"$f":"+Tabelle1[[#This Row],[Hilfs\nSubmissions-\nrelevant?\n'[Ja / Nein']]]","v":"Ja"},"X","X",null,"Str","Gc","Gc; F3-2_200-2.2 Baugruben; Wasserhaltung Vakuum Strahm"]
[223,null,"Wasserhaltung, Filterbrunnen","Ja",{"$f":"+Tabelle1[[#This Row],[Hilfs\nSubmissions-\nrelevant?\n'[Ja / Nein']]]","v":"Ja"},"X","X",null,"Str","Gc","Gc; F3-2_200-2.3 Baugruben; Wasserhaltung Filterbrunnen Strahm"]
[231,null,"Anker","Ja",{"$f":"+Tabelle1[[#This Row],[Hilfs\nSubmissions-\nrelevant?\n'[Ja / Nein']]]","v":"Ja"},"X","X",null,"Str","Gc","Gc; F3-2_200-3 Baugruben; Anker Strahm"]
[241,null,"Nagelwand","Ja",{"$f":"+Tabelle1[[#This Row],[Hilfs\nSubmissions-\nrelevant?\n'[Ja / Nein']]]","v":"Ja"},"X","X",null,"Str","Gc","Gc; F3-2_200-4 Baugrube; Nagelwand Strahm"]
[251,null,"Fundation, Bohrpfähle","Ja",{"$f":"+Tabelle1[[#This Row],[Hilfs\nSubmissions-\nrelevant?\n'[Ja / Nein']]]","v":"Ja"},"X","X",null,"Str","Gc","Gc; F3-2_200-5.1 Pfahlfundationen; Bohrpfähle Strahm"]
[252,null,"Fundation, Rammpfähle","Ja",{"$f":"+Tabelle1[[#This Row],[Hilfs\nSubmissions-\nrelevant?\n'[Ja / Nein']]]","v":"Ja"},"X","X",null,"Str","Gc","Gc; F3-2_200-5.2 Pfahlfundationen; Rammpfähle Strahm"]
["300 Verkehrsanlage",null,null,"Ja",{"$f":"IF(AND(D37=\"Nein\",D38=\"Nein\",D39=\"Nein\",D40=\"Nein\",D41=\"Nein\",D42=\"Nein\",D43=\"Nein\",D44=\"Nein\",D45=\"Nein\",D46=\"Nein\",D47=\"Nein\"),\"Nein\",D36)","v":"Ja"},"X","X"]
[311,null,"Strassenentwässerung","Ja",{"$f":"+Tabelle1[[#This Row],[Hilfs\nSubmissions-\nrelevant?\n'[Ja / Nein']]]","v":"Ja"},"X","X",null,"Kc","Mr","Mr; F3-2_300-1.5 Verkehrsanlage; Strassenentwässerung Kull_Ac"]
[312,null,"Randabschlüsse","Ja",{"$f":"+Tabelle1[[#This Row],[Hilfs\nSubmissions-\nrelevant?\n'[Ja / Nein']]]","v":"Ja"}," ","X",null,"Kc","us","us; F3-2_300-1.1 Verkehrsanlage; Randabschlüsse Kull"]
[313,null,"Pflästerungen","Ja",{"$f":"+Tabelle1[[#This Row],[Hilfs\nSubmissions-\nrelevant?\n'[Ja / Nein']]]","v":"Ja"}," ","X",null,"Kc","us","us; F3-2_300-1.7 Verkehrsanlage; Pflästerungen Kull"]
[314,null,"Naturstein (in Bearbeitung)","Ja",{"$f":"+Tabelle1[[#This Row],[Hilfs\nSubmissions-\nrelevant?\n'[Ja / Nein']]]","v":"Ja"}," ","X",null,"Kc","Gc","Gc; F3-2_300-1.8 Verkehrsanlage; Naturstein Instandsetzung Kull"]
[315,null,"Walzasphalt","Ja",{"$f":"+Tabelle1[[#This Row],[Hilfs\nSubmissions-\nrelevant?\n'[Ja / Nein']]]","v":"Ja"}," ","X",null,"Kc","us","us; F3-2_300-1.21 Verkehrsanlage_Walzasphalt"]
[316,null,"Gussasphalt","Ja",{"$f":"+Tabelle1[[#This Row],[Hilfs\nSubmissions-\nrelevant?\n'[Ja / Nein']]]","v":"Ja"}," ","X",null,"Kc","us","us; F3-2_300-1.22 Verkehrsanlage; Gussasphalt"]
[317,null,"Rohr- und Schachtanlagen","Ja",{"$f":"+Tabelle1[[#This Row],[Hilfs\nSubmissions-\nrelevant?\n'[Ja / Nein']]]","v":"Ja"},"X","X",null,"Kc","AK","Neu"]
[318,null,"Elektroanlagen","Ja",{"$f":"+Tabelle1[[#This Row],[Hilfs\nSubmissions-\nrelevant?\n'[Ja / Nein']]]","v":"Ja"},"X","X",null,"Kc","Ws","Neu"]
[319,null,"Pumpwerk","Ja",{"$f":"+Tabelle1[[#This Row],[Hilfs\nSubmissions-\nrelevant?\n'[Ja / Nein']]]","v":"Ja"},"X","X",null,"Kc","Ws","Neu"]
[320,null,"Öffentliche Beleuchtung","Ja",{"$f":"+Tabelle1[[#This Row],[Hilfs\nSubmissions-\nrelevant?\n'[Ja / Nein']]]","v":"Ja"},"X","X",null,"Kc","Ws","Neu"]
[321,null,"Lichtsignalanlagen","Ja",{"$f":"+Tabelle1[[#This Row],[Hilfs\nSubmissions-\nrelevant?\n'[Ja / Nein']]]","v":"Ja"},"X","X",null,"Kc","Ws","Neu"]
["400 Beton",null,null,"Ja",{"$f":"IF(AND(D49=\"Nein\",D50=\"Nein\",D51=\"Nein\",D52=\"Nein\",D53=\"Nein\",D54=\"Nein\",D55=\"Nein\"),\"Nein\",D48)","v":"Ja"},"X","X"]
[411,null,"Untergrundvorbereitung","Ja",{"$f":"+Tabelle1[[#This Row],[Hilfs\nSubmissions-\nrelevant?\n'[Ja / Nein']]]","v":"Ja"},"X","X",null,"Am","Km","Km; F3-2_400_1 Untergrundvorbereitung Allensbach"]
[412,null,"Schalung","Ja",{"$f":"+Tabelle1[[#This Row],[Hilfs\nSubmissions-\nrelevant?\n'[Ja / Nein']]]","v":"Ja"}," ","X",null,"Am","Km","Km; F3-2_400_2 Schalung Allensbach"]
[413,null,"Betonstahl","Ja",{"$f":"+Tabelle1[[#This Row],[Hilfs\nSubmissions-\nrelevant?\n'[Ja / Nein']]]","v":"Ja"}," ","X",null,"Am","Km","Km; F3-2_400_3 Betonstahl Allensbach"]
[414,null,"Vorspannung","Ja",{"$f":"+Tabelle1[[#This Row],[Hilfs\nSubmissions-\nrelevant?\n'[Ja / Nein']]]","v":"Ja"},"X","X",null,"Am","Km","Km; F3-2_400_4 Vorspannung Allensbach"]
[415,null,"Frisch- und Festbeton","Ja",{"$f":"+Tabelle1[[#This Row],[Hilfs\nSubmissions-\nrelevant?\n'[Ja / Nein']]]","v":"Ja"},"X","X",null,"Am","Km","Km; F3-2_400_5 Beton Allensbach"]
[416,null,"Reprofilierung","Ja",{"$f":"+Tabelle1[[#This Row],[Hilfs\nSubmissions-\nrelevant?\n'[Ja / Nein']]]","v":"Ja"},"X","X",null,"Am","Km","Km; F3-2_400_6 Reprofilierungen Allensbach"]
[417,null,"Oberflächenschutz","Ja",{"$f":"+Tabelle1[[#This Row],[Hilfs\nSubmissions-\nrelevant?\n'[Ja / Nein']]]","v":"Ja"},"X","X",null,"Am","Km","Km; F3-2_400_7 Betonoberflächenschutz Allensbach"]
["500 Abdichtung",null,null,"Ja",{"$f":"IF(AND(D57=\"Nein\",D58=\"Nein\",D59=\"Nein\",D60=\"Nein\"),\"Nein\",D56)","v":"Ja"},"X","X"]
[511,null,"Untergrundvorbereitung","Ja",{"$f":"+Tabelle1[[#This Row],[Hilfs\nSubmissions-\nrelevant?\n'[Ja / Nein']]]","v":"Ja"},"X","X",null,"Str","Km","Km; F3-2_500-1 Abdichtung; Untergrundvorbereitung Strahm"]
[512,null,"Epoxidharzversiegelung","Ja",{"$f":"+Tabelle1[[#This Row],[Hilfs\nSubmissions-\nrelevant?\n'[Ja / Nein']]]","v":"Ja"},"X","X",null,"Str","Km","Km; F3-2_500-2 Abdichtung; Epoxidharzversiegelung Strahm"]
[513,null,"Polymerdichtungsbahnen","Ja",{"$f":"+Tabelle1[[#This Row],[Hilfs\nSubmissions-\nrelevant?\n'[Ja / Nein']]]","v":"Ja"},"X","X",null,"Str","us","us; F3-2_500-3 Abdichtung; Polymerbitumendichtungsbahn PBD Strahm"]
[514,null,"Flüssigkunststoff","Ja",{"$f":"+Tabelle1[[#This Row],[Hilfs\nSubmissions-\nrelevant?\n'[Ja / Nein']]]","v":"Ja"},"X","X",null,"Str","Km","Km; F3-2_500-4 Abdichtung; Flüssigkunststoff FLK Strahm"]
["600 Stahlbau",null,null,"Ja",{"$f":"IF(AND(D62=\"Nein\",D63=\"Nein\",D64=\"Nein\"),\"Nein\",D61)","v":"Ja"},"X","X"]
[611,null,"Allgemein","Ja",{"$f":"+Tabelle1[[#This Row],[Hilfs\nSubmissions-\nrelevant?\n'[Ja / Nein']]]","v":"Ja"}," ","X",null,"Sn","Km","mit Stefan Hohl, E. Toscano AG"]
[612,null,"Korrosionsschutz","Ja",{"$f":"+Tabelle1[[#This Row],[Hilfs\nSubmissions-\nrelevant?\n'[Ja / Nein']]]","v":"Ja"},"X","X",null,"Sn","Km","mit Stefan Hohl, E. Toscano AG"]
[613,null,"Korrosionsschutz: Gerüste / Einhausungen","Ja",{"$f":"+Tabelle1[[#This Row],[Hilfs\nSubmissions-\nrelevant?\n'[Ja / Nein']]]","v":"Ja"},"X","X",null,"Sn","Km","mit Stefan Hohl, E. Toscano AG"]
["900 Umwelt",null,null,"Ja","Ja"," ","X"]
[911,null,"Baustellenentwässerung","Ja","Ja"," ","X",null,"Am","Ac","Ac; F3-2_900_2.1 Umwelt, Baustellenentwässerung Allensbach_Ac"]
[912,null,"Lärm","Ja","Ja"," ","X",null,"Am","Ac","Ac; F3-2_900_2.2 Umwelt, Lärm Allensbach_Ac"]
[913,null,"Luft","Ja","Ja"," ","X",null,"Am","Ac","Ac; F3-2_900_2.3 Umwelt, Luft Allensbach_Ac"]
[914,null,"Bauabfälle","Ja","Ja"," ","X",null,"Am","Ac","Ac; F3-2_900_2.4 Umwelt, Bauabfälle Allensbach_Ac"]
[915,null,"Bodenschutz","Ja","Ja"," ","X",null,"Am","Ac","Ac; F3-2_900_2.5 Umwelt, Bodenschutz Allensbach_Ac"]
[916,null,"Natur- und Baumschutz","Ja","Ja"," ","X",null,"Am","Ac","Ac; F3-2_900_2.6 Umwelt, Naturschutz Allensbach_Ac"]
[917,null,"Invasive Organismen","Ja","Ja"," ","X",null,"Am","Ac","Ac; F3-2_900_2.7 Umwelt, Invasive Organismen_Ac"]

{"sheet":"002","index":2,"n_rows":16,"n_cols":7,"rows_kept":16,"cut":false,"hidden":false,"merged":[[6,1,6,3],[8,0,8,6],[9,0,9,6],[12,0,12,6],[13,1,13,6],[2,1,2,3],[2,5,4,6],[3,1,3,3],[4,1,4,3],[5,1,5,3],[23,0,23,6],[24,0,24,6],[25,0,25,6],[26,0,26,6],[13,8,13,14],[14,1,14,6],[14,8,14,14],[15,8,15,14],[18,0,18,6],[19,0,19,6],[20,0,20,6],[22,0,22,6],[21,0,21,6],[15,1,15,6]]}
[null,null,null,null,null,null,"Zu 001 Inhaltsverzeichnis"]
["000 Grundlagen",null,null,null,null,null,"002 Vorgaben"]
[{"$f":"+Titelblatt!E8","v":"Gemeinde"},{"$f":"+Titelblatt!F8","v":"Musterhausen"},null,null,{"$f":"+Titelblatt!E19","v":"Ingenieurbüro"},{"$f":"+Titelblatt!F19","v":"Musterbüro\nMusterstrasse 15\n8000 Musterhausen"}]
[{"$f":"+Titelblatt!E9","v":"Strasse"},{"$f":"+Titelblatt!F9","v":"Musterstrasse"},null,null,{"$f":"+Titelblatt!E23","v":" "}]
[{"$f":"+Titelblatt!E10","v":"Strecke"},{"$f":"+Titelblatt!F10","v":"Musterkreisel bis Musterstrasse"}]
[{"$f":"+Titelblatt!E11","v":"km / Bauwerk"},{"$f":"+Titelblatt!F11","v":"003-002 "}]
[{"$f":"+Titelblatt!E6","v":"Projekttitel"},{"$f":"+Titelblatt!F6","v":"Instandsetzung Musterbrücke …."}]
[]
["1. Vorwort und Erläuterungen"]
["Der Bauherr fixiert im Dokument \"Qualitätslenkung Unternehmer\" den minimalen Umfang der Prüfungen und der Anforderungen. Dieses wird auf das anstehende Bauvorhaben angepasst und bildet den  \"objektspezifischen QM-Plan\".\nDiese Vorgaben sind Bestandteil der Ausschreibung, werden bei einer Auftragserteilung Vertragsbestandteil und sind, wo gefordert, in den Prüfplan des Unternehmers einzuarbeiten. \nDas rechtzeitige Erbringen aller vertraglich vereinbarten Eignungs- und Qualitätsnachweise gemäss dem objektspezifischen QM-Plan wird von der Bauherrschaft überwacht.\nOhne Vorliegen der verlangten Prüfung gemäss dem objektspezifischen QM-Plan sind die Folgearbeiten nicht freigeben. \n\nDer Abschnitt \"Prüfungen\" enthält alle benötigten Prüfungen zum Nachweis der Qualität gemäss Normen für die geleisteten Arbeiten. Der Abschnitt regelt auch die Zuständigkeit für die Durchführung und die Vergütung der Prüfungen. Vereinbarte Vergütungen an den Unternehmer sind bei nur bestandenen Prüfungen geschuldet. Bei Nichtgenügen trägt der Unternehmer die Kosten.\n\nDie unter dem Abschnitt \"Anforderungen an die Ausführung\" aufgelisteten Punkte sind als fachliches Nachschlagewerk zu verstehen welche durch die am Bau Beteiligten ohne Kostenfolge für den Bauherrn umgesetzt werden müssen. Die Auflistung ist nicht vollständig."]
[]
[]
["2. Vergütungen der Leistungen des objektspezifischen QM-Planes"]
["Variante 1:","Die Prüfungen Bauherrenseitig erfolgen durch ein akreditiertes Labor und werden durch die Bauherrschaft entschädigt "]
["Variante 2:","Die Prüfungen des objektspezifischen QM-Planes werden in Positionen des NPK 112 ausgesetzt und entsprechend vergütet"]
["Variante 3:","Die Prüfungen des objektspezifischen QM-Planes werden in vorbereitetet R-Position im NPK 112. „Qualitätslenkung“ mit fester Preisvorgabe, z.B. 10’0000 LE à Fr. 1.00 vergütet. Im Angebot sind die Massnahmen für die Prüfungen mit „Einheitspreis“ plus Unkostenzuschlag vorgegeben / zu offerieren (siehe Kapitel 003, Offertblatt)"]

{"sheet":"003","index":3,"n_rows":202,"n_cols":11,"rows_kept":202,"cut":false,"hidden":true,"merged":[[2,4,4,6],[7,1,7,2],[2,1,2,2],[3,1,3,2],[5,1,5,2],[6,1,6,2]]}
[null,null,null,null,null,null,"Zu 001 Inhaltsverzeichnis"]
["000 Grundlagen",null,null,null,null,null,"003 Offertblatt"]
[{"$f":"+Titelblatt!E8","v":"Gemeinde"},{"$f":"+Titelblatt!F8","v":"Musterhausen"},null,{"$f":"+Titelblatt!E19","v":"Ingenieurbüro"},{"$f":"+Titelblatt!F19","v":"Musterbüro\nMusterstrasse 15\n8000 Musterhausen"}]
[{"$f":"+Titelblatt!E9","v":"Strasse"},{"$f":"+Titelblatt!F9","v":"Musterstrasse"},null,{"$f":"+Titelblatt!E23","v":" "}]
[]
[{"$f":"+Titelblatt!E10","v":"Strecke"},{"$f":"+Titelblatt!F10","v":"Musterkreisel bis Musterstrasse"}]
[{"$f":"+Titelblatt!E11","v":"km / Bauwerk"},{"$f":"+Titelblatt!F11","v":"003-002 "},null,"Installationskosten zu Prüfungen (pro Einsatz / Etappe) (Kursive Schrift)"]
[{"$f":"+Titelblatt!E6","v":"Projekttitel"},{"$f":"+Titelblatt!F6","v":"Instandsetzung Musterbrücke …."},null,"Prüfungskosten (Standard Schrift)",null,null,null,{"$f":"IF(H9=0,\"i.O.\",\"Fehler\")","v":"i.O."}]
[null,null,null,null,null,null,null,{"$f":"SUM(K12:K202)","v":0}]
["Installationskosten zu Prüfungen (pro Einsatz / Etappe) (Kursive Schrift)"]
["Nr","Themenfeld","Prüfung","Beschrieb","LE","Menge","Einheitspreis","Ja/nein","Zahl","Kontrolle 1","Kontrolle 3"]
[111,"Aushub","Tragfähigkeit Aushubsohle",null,"Stk",null,null,{"$f":"+'001 Inhaltsverzeichnis'!E16","v":"Ja"},1,{"$f":"+'001 Inhaltsverzeichnis'!A16","v":111},{"$f":"+A12-J12","v":0}]
[112,"Hinterfüllung","Verformungsmodul, ME",null,"Stk",null,null,{"$f":"+'001 Inhaltsverzeichnis'!E17","v":"Ja"},2,{"$f":"+'001 Inhaltsverzeichnis'!A17","v":112},0]
[113,"Grabenauffüllung","Verformungsmodul, ME",null,"Stk",null,null,{"$f":"+'001 Inhaltsverzeichnis'!E18","v":"Ja"},3,{"$f":"+'001 Inhaltsverzeichnis'!A18","v":113},0]
[114,"Fundationsschicht ungeb.","Tragfähigkeit Fundationsschicht",null,"Stk",null,null,{"$f":"+'001 Inhaltsverzeichnis'!$E$19","v":"Ja"},4,{"$f":"+'001 Inhaltsverzeichnis'!$A$19","v":114},0]
[114,"Fundationsschicht ungeb.","Korngrössenverteilung",null,"Stk",null,null,{"$f":"+'001 Inhaltsverzeichnis'!$E$19","v":"Ja"},5,{"$f":"+'001 Inhaltsverzeichnis'!$A$19","v":114},0]
[114,"Fundationsschicht ungeb.","Klassifizierung  Gesteinskörnungen",null,"Stk",null,null,{"$f":"+'001 Inhaltsverzeichnis'!$E$19","v":"Ja"},6,{"$f":"+'001 Inhaltsverzeichnis'!$A$19","v":114},0]
[114,"Fundationsschicht ungeb.","Höhenlage Planie",null,"Stk",null,null,{"$f":"+'001 Inhaltsverzeichnis'!$E$19","v":"Ja"},7,{"$f":"+'001 Inhaltsverzeichnis'!$A$19","v":114},0]
[114,"Fundationsschicht ungeb.","Ebenheit Planie",null,"Stk",null,null,{"$f":"+'001 Inhaltsverzeichnis'!$E$19","v":"Ja"},8,{"$f":"+'001 Inhaltsverzeichnis'!$A$19","v":114},0]
[115,"Fundationsschicht geb.","Mischgut AFK","Eignungsprüfung","Stk",null,null,{"$f":"+'001 Inhaltsverzeichnis'!$E$20","v":"Ja"},9,{"$f":"+'001 Inhaltsverzeichnis'!$A$20","v":115},0]
[115,"Fundationsschicht geb.","Höhenlage bezüglich Projekthöhe",null,"Stk",null,null,{"$f":"+'001 Inhaltsverzeichnis'!$E$20","v":"Ja"},10,{"$f":"+'001 Inhaltsverzeichnis'!$A$20","v":115},0]
[115,"Fundationsschicht geb.","Ebenheit",null,"Stk",null,null,{"$f":"+'001 Inhaltsverzeichnis'!$E$20","v":"Ja"},11,{"$f":"+'001 Inhaltsverzeichnis'!$A$20","v":115},0]
[115,"Fundationsschicht geb.","Hohlraumgehalt",null,"Stk",null,null,{"$f":"+'001 Inhaltsverzeichnis'!$E$20","v":"Ja"},12,{"$f":"+'001 Inhaltsverzeichnis'!$A$20","v":115},0]
[115,"Fundationsschicht geb.","Verdichtungsgrad",null,"Stk",null,null,{"$f":"+'001 Inhaltsverzeichnis'!$E$20","v":"Ja"},13,{"$f":"+'001 Inhaltsverzeichnis'!$A$20","v":115},0]
[115,"Fundationsschicht geb.","Schichtdicken",null,"Stk",null,null,{"$f":"+'001 Inhaltsverzeichnis'!$E$20","v":"Ja"},14,{"$f":"+'001 Inhaltsverzeichnis'!$A$20","v":115},0]
[116,"Fundationsschicht geb.","Druckfestigkeit",null,"Stk",null,null,{"$f":"+'001 Inhaltsverzeichnis'!$E$21","v":"Ja"},15,{"$f":"+'001 Inhaltsverzeichnis'!$A$21","v":116},0]
[116,"Fundationsschicht geb.","Korngrössenverteilung",null,"Stk",null,null,{"$f":"+'001 Inhaltsverzeichnis'!$E$21","v":"Ja"},16,{"$f":"+'001 Inhaltsverzeichnis'!$A$21","v":116},0]
[116,"Fundationsschicht geb.","Verdichtungsgrad",null,"Stk",null,null,{"$f":"+'001 Inhaltsverzeichnis'!$E$21","v":"Ja"},17,{"$f":"+'001 Inhaltsverzeichnis'!$A$21","v":116},0]
[116,"Fundationsschicht geb.","Schichtdicken",null,"Stk",null,null,{"$f":"+'001 Inhaltsverzeichnis'!$E$21","v":"Ja"},18,{"$f":"+'001 Inhaltsverzeichnis'!$A$21","v":116},0]
[116,"Fundationsschicht geb.","Höhenlage bezüglich Projekthöhe",null,"Stk",null,null,{"$f":"+'001 Inhaltsverzeichnis'!$E$21","v":"Ja"},19,{"$f":"+'001 Inhaltsverzeichnis'!$A$21","v":116},0]
[116,"Fundationsschicht geb.","Ebenheit",null,"Stk",null,null,{"$f":"+'001 Inhaltsverzeichnis'!$E$21","v":"Ja"},20,{"$f":"+'001 Inhaltsverzeichnis'!$A$21","v":116},0]
[117,"Schüttung","Trockenraumgewicht, Reibungswinkel, Korngrössenverteilung",null,"Stk",null,null,{"$f":"+'001 Inhaltsverzeichnis'!$E$22","v":"Ja"},21,{"$f":"+'001 Inhaltsverzeichnis'!$A$22","v":117},0]
[117,"Schüttung","Verformungsmodul, ME",null,"Stk",null,null,{"$f":"+'001 Inhaltsverzeichnis'!$E$22","v":"Ja"},22,{"$f":"+'001 Inhaltsverzeichnis'!$A$22","v":117},0]
[211,"Baugrubenabschluss offen","Deformationsmessungen",null,"Stk",null,null,{"$f":"+'001 Inhaltsverzeichnis'!E24","v":"Ja"},23,{"$f":"+'001 Inhaltsverzeichnis'!A24","v":211},0]
[212,"Baugrubenabschluss Rühlwand gerammt","Deformationsmessungen",null,"Stk",null,null,{"$f":"+'001 Inhaltsverzeichnis'!$E$25","v":"Ja"},24,{"$f":"+'001 Inhaltsverzeichnis'!$A$25","v":212},0]
[212,"Baugrubenabschluss Rühlwand gerammt","Erschütterungsmessungen",null,"Stk",null,null,{"$f":"+'001 Inhaltsverzeichnis'!$E$25","v":"Ja"},25,{"$f":"+'001 Inhaltsverzeichnis'!$A$25","v":212},0]
[213,"Baugrubenabschluss Spundwand","Deformationsmessungen",null,"Stk",null,null,{"$f":"+'001 Inhaltsverzeichnis'!$E$26","v":"Ja"},26,{"$f":"+'001 Inhaltsverzeichnis'!$A$26","v":213},0]
[213,"Baugrubenabschluss Spundwand","Erschütterungsmessungen",null,"Stk",null,null,{"$f":"+'001 Inhaltsverzeichnis'!$E$26","v":"Ja"},27,{"$f":"+'001 Inhaltsverzeichnis'!$A$26","v":213},0]
[214,"Baugrubenabschluss Bohrpfahlwand","Deformationsmessungen",null,"Stk",null,null,{"$f":"+'001 Inhaltsverzeichnis'!E27","v":"Ja"},28,{"$f":"+'001 Inhaltsverzeichnis'!A27","v":214},0]
[215,"Baugrubenabschluss Schlitzwand","Deformationsmessungen",null,"Stk",null,null,{"$f":"+'001 Inhaltsverzeichnis'!E28","v":"Ja"},29,{"$f":"+'001 Inhaltsverzeichnis'!A28","v":215},0]
[221,"Wasserhaltung offen","Grundwass- / Hangwasserstände",null,"Stk",null,null,{"$f":"+'001 Inhaltsverzeichnis'!E29","v":"Ja"},30,{"$f":"+'001 Inhaltsverzeichnis'!A29","v":221},0]
[222,"Wasserhaltung Vakuum","Grundwass- / Hangwasserstände",null,"Stk",null,null,{"$f":"+'001 Inhaltsverzeichnis'!$E$30","v":"Ja"},31,{"$f":"+'001 Inhaltsverzeichnis'!$A$30","v":222},0]
[222,"Wasserhaltung Vakuum","Deformationsmessungen",null,"Stk",null,null,{"$f":"+'001 Inhaltsverzeichnis'!$E$30","v":"Ja"},32,{"$f":"+'001 Inhaltsverzeichnis'!$A$30","v":222},0]
[222,"Wasserhaltung Filterbrunnen","Grundwass- / Hangwasserstände",null,"Stk",null,null,{"$f":"+'001 Inhaltsverzeichnis'!$E$30","v":"Ja"},33,{"$f":"+'001 Inhaltsverzeichnis'!$A$30","v":222},{"$f":"+A44-J44","v":0}]
[222,"Wasserhaltung Vakuum","Deformationsmessungen",null,"Stk",null,null,{"$f":"+'001 Inhaltsverzeichnis'!$E$30","v":"Ja"},34,{"$f":"+'001 Inhaltsverzeichnis'!$A$30","v":222},0]
[222,"Wasserhaltung Filterbrunnen","Grundwass- / Hangwasserstände",null,"Stk",null,null,{"$f":"+'001 Inhaltsverzeichnis'!$E$30","v":"Ja"},35,{"$f":"+'001 Inhaltsverzeichnis'!$A$30","v":222},0]
[222,"Wasserhaltung Filterbrunnen","Deformationsmessungen",null,"Stk",null,null,{"$f":"+'001 Inhaltsverzeichnis'!$E$30","v":"Ja"},36,{"$f":"+'001 Inhaltsverzeichnis'!$A$30","v":222},0]
[231,"Anker","Ankerversuch",null,"Stk",null,null,{"$f":"+'001 Inhaltsverzeichnis'!$E$32","v":"Ja"},37,{"$f":"+'001 Inhaltsverzeichnis'!$A$32","v":231},0]
[231,"Anker","Spannproben",null,"Stk",null,null,{"$f":"+'001 Inhaltsverzeichnis'!$E$32","v":"Ja"},38,{"$f":"+'001 Inhaltsverzeichnis'!$A$32","v":231},0]
[231,"Anker","Korrosionsschutz elektr. Widerstandsmessung",null,"Stk",null,null,{"$f":"+'001 Inhaltsverzeichnis'!$E$32","v":"Ja"},39,{"$f":"+'001 Inhaltsverzeichnis'!$A$32","v":231},0]
[241,"Nagelwand","Tragfähigkeit Nägel",null,"Stk",null,null,{"$f":"+'001 Inhaltsverzeichnis'!E33","v":"Ja"},40,{"$f":"+'001 Inhaltsverzeichnis'!A33","v":241},0]
[251,"Pfahlfundation Bohrpfähle","Tragfähigkeit Bohrpfähle",null,"Stk",null,null,{"$f":"+'001 Inhaltsverzeichnis'!$E$34","v":"Ja"},41,{"$f":"+'001 Inhaltsverzeichnis'!$A$34","v":251},0]
[251,"Pfahlfundation Bohrpfähle","Qualitäts- und Integritätsprüfung",null,"Stk",null,null,{"$f":"+'001 Inhaltsverzeichnis'!$E$34","v":"Ja"},42,{"$f":"+'001 Inhaltsverzeichnis'!$A$34","v":251},0]
[252,"Pfahlfundation Rammpfähle","Tragfähigkeit Rammpfähle",null,"Stk",null,null,{"$f":"+'001 Inhaltsverzeichnis'!$E$35","v":"Ja"},43,{"$f":"+'001 Inhaltsverzeichnis'!$A$35","v":252},0]
[252,"Pfahlfundation Rammpfähle","Erschütterungsmessungen",null,"Stk",null,null,{"$f":"+'001 Inhaltsverzeichnis'!$E$35","v":"Ja"},44,{"$f":"+'001 Inhaltsverzeichnis'!$A$35","v":252},0]
[311,"Strassenentwässerung","Dichtigkeit ","SIA 190:2017, Anhang 3 Verfahren [W]","Stk",null,null,{"$f":"+'001 Inhaltsverzeichnis'!$E$37","v":"Ja"},45,{"$f":"+'001 Inhaltsverzeichnis'!$A$37","v":311},0]
[311,"Strassenentwässerung","Dichtigkeit ","SIA 190:2017, Anhang 4 Verfahren [L]","Stk",null,null,{"$f":"+'001 Inhaltsverzeichnis'!$E$37","v":"Ja"},46,{"$f":"+'001 Inhaltsverzeichnis'!$A$37","v":311},0]
[311,"Strassenentwässerung","Sanierung- oder Neuabnahme","Quick VSA","Stk",null,null,{"$f":"+'001 Inhaltsverzeichnis'!$E$37","v":"Ja"},47,{"$f":"+'001 Inhaltsverzeichnis'!$A$37","v":311},0]
[311,"Strassenentwässerung","Lage",null,"Stk",null,null,{"$f":"+'001 Inhaltsverzeichnis'!$E$37","v":"Ja"},48,{"$f":"+'001 Inhaltsverzeichnis'!$A$37","v":311},0]
[315,"Walzasphalt","Mischgut",null,"Stk",null,null,{"$f":"+'001 Inhaltsverzeichnis'!$E$41","v":"Ja"},49,{"$f":"+'001 Inhaltsverzeichnis'!$A$41","v":315},0]
[315,"Walzasphalt","Bindemittel",null,"Stk",null,null,{"$f":"+'001 Inhaltsverzeichnis'!$E$41","v":"Ja"},50,{"$f":"+'001 Inhaltsverzeichnis'!$A$41","v":315},0]
[315,"Walzasphalt","Bohrkerne","Prüfungen O+G","Stk",null,null,{"$f":"+'001 Inhaltsverzeichnis'!$E$41","v":"Ja"},51,{"$f":"+'001 Inhaltsverzeichnis'!$A$41","v":315},0]
[315,"Walzasphalt","Längsebenheit","Prüfungen O+G","Stk",null,null,{"$f":"+'001 Inhaltsverzeichnis'!$E$41","v":"Ja"},52,{"$f":"+'001 Inhaltsverzeichnis'!$A$41","v":315},0]
[315,"Walzasphalt","Querebenheit","Prüfungen O+G","Stk",null,null,{"$f":"+'001 Inhaltsverzeichnis'!$E$41","v":"Ja"},53,{"$f":"+'001 Inhaltsverzeichnis'!$A$41","v":315},0]
[315,"Walzasphalt","Griffigkeit","Prüfungen O+G","Stk",null,null,{"$f":"+'001 Inhaltsverzeichnis'!$E$41","v":"Ja"},54,{"$f":"+'001 Inhaltsverzeichnis'!$A$41","v":315},0]
[315,"Walzasphalt","Griffigkeit",null,"Stk",null,null,{"$f":"+'001 Inhaltsverzeichnis'!$E$41","v":"Ja"},55,{"$f":"+'001 Inhaltsverzeichnis'!$A$41","v":315},0]
[316,"Gussasphalt","Mischgut",null,"Stk",null,null,{"$f":"+'001 Inhaltsverzeichnis'!$E$42","v":"Ja"},56,{"$f":"+'001 Inhaltsverzeichnis'!$A$42","v":316},0]
[316,"Gussasphalt","Bindemittel",null,"Stk",null,null,{"$f":"+'001 Inhaltsverzeichnis'!$E$42","v":"Ja"},57,{"$f":"+'001 Inhaltsverzeichnis'!$A$42","v":316},0]
[316,"Gussasphalt","Statische Eindringtiefe",null,"Stk",null,null,{"$f":"+'001 Inhaltsverzeichnis'!$E$42","v":"Ja"},58,{"$f":"+'001 Inhaltsverzeichnis'!$A$42","v":316},0]
[316,"Gussasphalt","Dynamische Eindringtiefe",null,"Stk",null,null,{"$f":"+'001 Inhaltsverzeichnis'!$E$42","v":"Ja"},59,{"$f":"+'001 Inhaltsverzeichnis'!$A$42","v":316},0]
[316,"Gussasphalt","Längsebenheit","Prüfungen O+G","Stk",null,null,{"$f":"+'001 Inhaltsverzeichnis'!$E$42","v":"Ja"},60,{"$f":"+'001 Inhaltsverzeichnis'!$A$42","v":316},0]
[316,"Gussasphalt","Griffigkeit","Prüfungen O+G","Stk",null,null,{"$f":"+'001 Inhaltsverzeichnis'!$E$42","v":"Ja"},61,{"$f":"+'001 Inhaltsverzeichnis'!$A$42","v":316},0]
[411,"Untergrundvorbereitung","Haftzugsfestigkeit",null,"Stk",null,null,{"$f":"+'001 Inhaltsverzeichnis'!$E$49","v":"Ja"},62,{"$f":"+'001 Inhaltsverzeichnis'!$A$49","v":411},0]
[411,"Untergrundvorbereitung","Rautiefe",null,"Stk",null,null,{"$f":"+'001 Inhaltsverzeichnis'!$E$49","v":"Ja"},63,{"$f":"+'001 Inhaltsverzeichnis'!$A$49","v":411},0]
[414,"Vorspannung","Spannvorgang, Injektionsgut, Aufzeichnungen",null,"Stk",null,null,{"$f":"+'001 Inhaltsverzeichnis'!E52","v":"Ja"},64,{"$f":"+'001 Inhaltsverzeichnis'!A52","v":414},0]
[415,"Frischbeton","Konsistenz",null,"Stk",null,null,{"$f":"+'001 Inhaltsverzeichnis'!$E$53","v":"Ja"},65,{"$f":"+'001 Inhaltsverzeichnis'!$A$53","v":415},{"$f":"+A76-J76","v":0}]
[415,"Frischbeton","LP",null,"Stk",null,null,{"$f":"+'001 Inhaltsverzeichnis'!$E$53","v":"Ja"},66,{"$f":"+'001 Inhaltsverzeichnis'!$A$53","v":415},0]
[415,"Frischbeton","W/B-Faktor",null,"Stk",null,null,{"$f":"+'001 Inhaltsverzeichnis'!$E$53","v":"Ja"},67,{"$f":"+'001 Inhaltsverzeichnis'!$A$53","v":415},0]
[415,"Frischbeton","Druckfestigkeit",null,"Stk",null,null,{"$f":"+'001 Inhaltsverzeichnis'!$E$53","v":"Ja"},68,{"$f":"+'001 Inhaltsverzeichnis'!$A$53","v":415},0]
[415,"Frischbeton","Frostbeständigkeit",null,"Stk",null,null,{"$f":"+'001 Inhaltsverzeichnis'!$E$53","v":"Ja"},69,{"$f":"+'001 Inhaltsverzeichnis'!$A$53","v":415},0]
[415,"Frischbeton","Frosttausalzbeständigkeitsprüfung VSS",null,"Stk",null,null,{"$f":"+'001 Inhaltsverzeichnis'!$E$53","v":"Ja"},70,{"$f":"+'001 Inhaltsverzeichnis'!$A$53","v":415},0]
[415,"Frischbeton","Frosttausalzbeständigkeitsprüfung SIA",null,"Stk",null,null,{"$f":"+'001 Inhaltsverzeichnis'!$E$53","v":"Ja"},71,{"$f":"+'001 Inhaltsverzeichnis'!$A$53","v":415},0]
[416,"Reprofilierung","Druckfestigkeit",null,"Stk",null,null,{"$f":"+'001 Inhaltsverzeichnis'!$E$54","v":"Ja"},72,{"$f":"+'001 Inhaltsverzeichnis'!$A$54","v":416},0]
[416,"Reprofilierung","Haftzugsfestigkeit",null,"Stk",null,null,{"$f":"+'001 Inhaltsverzeichnis'!$E$54","v":"Ja"},73,{"$f":"+'001 Inhaltsverzeichnis'!$A$54","v":416},0]
[416,"Reprofilierung","Frosttausalzbeständigkeitsprüfung VSS",null,"Stk",null,null,{"$f":"+'001 Inhaltsverzeichnis'!$E$54","v":"Ja"},74,{"$f":"+'001 Inhaltsverzeichnis'!$A$54","v":416},0]
[416,"Reprofilierung","Frosttausalzbeständigkeitsprüfung SIA",null,"Stk",null,null,{"$f":"+'001 Inhaltsverzeichnis'!$E$54","v":"Ja"},75,{"$f":"+'001 Inhaltsverzeichnis'!$A$54","v":416},0]
[416,"Reprofilierung","Chloridwiderstand (XD3)",null,"Stk",null,null,{"$f":"+'001 Inhaltsverzeichnis'!$E$54","v":"Ja"},76,{"$f":"+'001 Inhaltsverzeichnis'!$A$54","v":416},0]
[417,"Oberflächenschutz","Oberflächenzugfestigekti, Haftzug",null,"Stk",null,null,{"$f":"+'001 Inhaltsverzeichnis'!$E$55","v":"Ja"},77,{"$f":"+'001 Inhaltsverzeichnis'!$A$55","v":417},0]
[417,"Oberflächenschutz","Wasseraufnahmekoeffizient",null,"Stk",null,null,{"$f":"+'001 Inhaltsverzeichnis'!$E$55","v":"Ja"},78,{"$f":"+'001 Inhaltsverzeichnis'!$A$55","v":417},0]
[417,"Oberflächenschutz","Schichtdicken",null,"Stk",null,null,{"$f":"+'001 Inhaltsverzeichnis'!$E$55","v":"Ja"},79,{"$f":"+'001 Inhaltsverzeichnis'!$A$55","v":417},0]
[511,"Untergrundvorbereitung","Haftzugsfestigkeit",null,"Stk",null,null,{"$f":"+'001 Inhaltsverzeichnis'!$E$57","v":"Ja"},80,{"$f":"+'001 Inhaltsverzeichnis'!$A$57","v":511},0]
[511,"Untergrundvorbereitung","Rautiefe",null,"Stk",null,null,{"$f":"+'001 Inhaltsverzeichnis'!$E$57","v":"Ja"},81,{"$f":"+'001 Inhaltsverzeichnis'!$A$57","v":511},0]
[511,"Untergrundvorbereitung","Porosität (Wasserleitfähigkeit)",null,"Stk",null,null,{"$f":"+'001 Inhaltsverzeichnis'!$E$57","v":"Ja"},82,{"$f":"+'001 Inhaltsverzeichnis'!$A$57","v":511},0]
[512,"Epoxidharzversiegelung","Haftzugsfestigkeit",null,"Stk",null,null,{"$f":"+'001 Inhaltsverzeichnis'!$E$58","v":"Ja"},83,{"$f":"+'001 Inhaltsverzeichnis'!$A$58","v":512},0]
[512,"Epoxidharzversiegelung","Porenfreiheit",null,"Stk",null,null,{"$f":"+'001 Inhaltsverzeichnis'!$E$58","v":"Ja"},84,{"$f":"+'001 Inhaltsverzeichnis'!$A$58","v":512},0]
[513,"Polymerdichtungsbahnen","Haftzugsfestigkeit",null,"Stk",null,null,{"$f":"+'001 Inhaltsverzeichnis'!$E$59","v":"Ja"},85,{"$f":"+'001 Inhaltsverzeichnis'!$A$59","v":513},0]
[513,"Polymerdichtungsbahnen","Schälzugfestigkeit",null,"Stk",null,null,{"$f":"+'001 Inhaltsverzeichnis'!$E$59","v":"Ja"},86,{"$f":"+'001 Inhaltsverzeichnis'!$A$59","v":513},0]
[514,"Flüssigkunststoff","Haftzugsfestigkeit",null,"Stk",null,null,{"$f":"+'001 Inhaltsverzeichnis'!$E$60","v":"Ja"},87,{"$f":"+'001 Inhaltsverzeichnis'!$A$60","v":514},0]
[514,"Flüssigkunststoff","Schichtstärke",null,"Stk",null,null,{"$f":"+'001 Inhaltsverzeichnis'!$E$60","v":"Ja"},88,{"$f":"+'001 Inhaltsverzeichnis'!$A$60","v":514},0]
[612,"Korrosionsschutz","Visuelle Beurteilung der fertigen Korrosionsschutzes durch externes Prüflabor",null,"Stk",null,null,{"$f":"+'001 Inhaltsverzeichnis'!$E$63","v":"Ja"},89,{"$f":"+'001 Inhaltsverzeichnis'!$A$63","v":612},0]
[612,"Korrosionsschutz","Keilschnittprüfungen am fertigen Korrosionsschutz",null,"Stk",null,null,{"$f":"+'001 Inhaltsverzeichnis'!$E$63","v":"Ja"},90,{"$f":"+'001 Inhaltsverzeichnis'!$A$63","v":612},0]
[612,"Korrosionsschutz","Kontrolle auf Korrisionsstimulatoren Chlordien und Sulfaten",null,"Stk",null,null,{"$f":"+'001 Inhaltsverzeichnis'!$E$63","v":"Ja"},91,{"$f":"+'001 Inhaltsverzeichnis'!$A$63","v":612},0]
[613,"Korrosionsschutz Gerüste / Einhausungen","Überwachung Schwermetalbelastung in Luft und Boden",null,"Stk",null,null,{"$f":"+'001 Inhaltsverzeichnis'!E64","v":"Ja"},92,{"$f":"+'001 Inhaltsverzeichnis'!A64","v":613},0]
[null,null,null,null,null,null,null,"JA",93]
["Prüfungskosten (Standard Schrift)",null,null,null,null,"Menge","Einheitspreis","Ja",94]
["Nr","Themenfeld","Prüfung","Beschrieb","LE",null,null,"Ja",95]
[111,"Aushub","Tragfähigkeit der Aushubsohle","LE = 2 Stk","LE",null,null,{"$f":"+'001 Inhaltsverzeichnis'!E16","v":"Ja"},96,{"$f":"+'001 Inhaltsverzeichnis'!A16","v":111},{"$f":"+A107-J107","v":0}]
[112,"Hinterfüllung","Verformungsmodul, ME","LE = 2 Stk","LE",null,null,{"$f":"+'001 Inhaltsverzeichnis'!E17","v":"Ja"},97,{"$f":"+'001 Inhaltsverzeichnis'!A17","v":112},0]
[113,"Grabenauffüllung","Verformungsmodul, ME","LE = 2 Stk","LE",null,null,{"$f":"+'001 Inhaltsverzeichnis'!E18","v":"Ja"},98,{"$f":"+'001 Inhaltsverzeichnis'!A18","v":113},0]
[114,"Fundationsschicht","Tragfähigkeit Fundationsschicht","LE = 2 Stk","LE",null,null,{"$f":"+'001 Inhaltsverzeichnis'!$E$19","v":"Ja"},99,{"$f":"+'001 Inhaltsverzeichnis'!$A$19","v":114},0]
[114,"Fundationsschicht","Korngrössenverteilung",null,"Stk",null,null,{"$f":"+'001 Inhaltsverzeichnis'!$E$19","v":"Ja"},100,{"$f":"+'001 Inhaltsverzeichnis'!$A$19","v":114},0]
[114,"Fundationsschicht","Klassifizierung grobe, rezyklierte Gesteinskörnungen",null,"Stk",null,null,{"$f":"+'001 Inhaltsverzeichnis'!$E$19","v":"Ja"},101,{"$f":"+'001 Inhaltsverzeichnis'!$A$19","v":114},0]
[114,"Fundationsschicht","Höhenlage Planie",null,"Stk",null,null,{"$f":"+'001 Inhaltsverzeichnis'!$E$19","v":"Ja"},102,{"$f":"+'001 Inhaltsverzeichnis'!$A$19","v":114},0]
[114,"Fundationsschicht","Ebenheit Planie",null,"Stk",null,null,{"$f":"+'001 Inhaltsverzeichnis'!$E$19","v":"Ja"},103,{"$f":"+'001 Inhaltsverzeichnis'!$A$19","v":114},0]
[115,"Fundationsschicht geb.","Mischgut AFK","Eignungsprüfung","Stk",null,null,{"$f":"+'001 Inhaltsverzeichnis'!$E$20","v":"Ja"},104,{"$f":"+'001 Inhaltsverzeichnis'!$A$20","v":115},0]
[115,"Fundationsschicht geb.","Höhenlage bezüglich Projekthöhe",null,"Stk",null,null,{"$f":"+'001 Inhaltsverzeichnis'!$E$20","v":"Ja"},105,{"$f":"+'001 Inhaltsverzeichnis'!$A$20","v":115},0]
[115,"Fundationsschicht geb.","Ebenheit",null,"Stk",null,null,{"$f":"+'001 Inhaltsverzeichnis'!$E$20","v":"Ja"},106,{"$f":"+'001 Inhaltsverzeichnis'!$A$20","v":115},0]
[115,"Fundationsschicht geb.","Hohlraumgehalt",null,"Stk",null,null,{"$f":"+'001 Inhaltsverzeichnis'!$E$20","v":"Ja"},107,{"$f":"+'001 Inhaltsverzeichnis'!$A$20","v":115},0]
[115,"Fundationsschicht geb.","Verdichtungsgrad",null,"Stk",null,null,{"$f":"+'001 Inhaltsverzeichnis'!$E$20","v":"Ja"},108,{"$f":"+'001 Inhaltsverzeichnis'!$A$20","v":115},0]
[115,"Fundationsschicht geb.","Schichtdicken",null,"Stk",null,null,{"$f":"+'001 Inhaltsverzeichnis'!$E$20","v":"Ja"},109,{"$f":"+'001 Inhaltsverzeichnis'!$A$20","v":115},0]
[116,"Fundationsschicht geb.","Druckfestigkeit",null,"Stk",null,null,{"$f":"+'001 Inhaltsverzeichnis'!$E$21","v":"Ja"},110,{"$f":"+'001 Inhaltsverzeichnis'!$A$21","v":116},0]
[116,"Fundationsschicht geb.","Korngrössenverteilung",null,"Stk",null,null,{"$f":"+'001 Inhaltsverzeichnis'!$E$21","v":"Ja"},111,{"$f":"+'001 Inhaltsverzeichnis'!$A$21","v":116},0]
[116,"Fundationsschicht geb.","Verdichtungsgrad",null,"Stk",null,null,{"$f":"+'001 Inhaltsverzeichnis'!$E$21","v":"Ja"},112,{"$f":"+'001 Inhaltsverzeichnis'!$A$21","v":116},0]
[116,"Fundationsschicht geb.","Schichtdicken",null,"Stk",null,null,{"$f":"+'001 Inhaltsverzeichnis'!$E$21","v":"Ja"},113,{"$f":"+'001 Inhaltsverzeichnis'!$A$21","v":116},0]
[116,"Fundationsschicht geb.","Höhenlage bezüglich Projekthöhe",null,"Stk",null,null,{"$f":"+'001 Inhaltsverzeichnis'!$E$21","v":"Ja"},114,{"$f":"+'001 Inhaltsverzeichnis'!$A$21","v":116},0]
[116,"Fundationsschicht geb.","Ebenheit",null,"Stk",null,null,{"$f":"+'001 Inhaltsverzeichnis'!$E$21","v":"Ja"},115,{"$f":"+'001 Inhaltsverzeichnis'!$A$21","v":116},0]
[117,"Schüttung","Trockenraumgewicht, Reibungswinkel, Korngrössenverteilung","LE = 3 Stk","LE",null,null,{"$f":"+'001 Inhaltsverzeichnis'!$E$22","v":"Ja"},116,{"$f":"+'001 Inhaltsverzeichnis'!$A$22","v":117},0]
[117,"Schüttung","Verformungsmodul, ME","LE = 2 Stk","LE",null,null,{"$f":"+'001 Inhaltsverzeichnis'!$E$22","v":"Ja"},117,{"$f":"+'001 Inhaltsverzeichnis'!$A$22","v":117},0]
[211,"Baugrubenabschluss offen","Deformationsmessungen",null,"Stk",null,null,{"$f":"+'001 Inhaltsverzeichnis'!E24","v":"Ja"},118,{"$f":"+'001 Inhaltsverzeichnis'!A24","v":211},0]
[212,"Baugrubenabschluss Rühlwand gerammt","Deformationsmessungen",null,"Stk",null,null,{"$f":"+'001 Inhaltsverzeichnis'!$E$25","v":"Ja"},119,{"$f":"+'001 Inhaltsverzeichnis'!$A$25","v":212},0]
[212,"Baugrubenabschluss Rühlwand gerammt","Erschütterungsmessungen",null,"Stk",null,null,{"$f":"+'001 Inhaltsverzeichnis'!$E$25","v":"Ja"},120,{"$f":"+'001 Inhaltsverzeichnis'!$A$25","v":212},0]
[213,"Baugrubenabschluss Spundwand","Deformationsmessungen",null,"Stk",null,null,{"$f":"+'001 Inhaltsverzeichnis'!$E$26","v":"Ja"},121,{"$f":"+'001 Inhaltsverzeichnis'!$A$26","v":213},0]
[213,"Baugrubenabschluss Spundwand","Erschütterungsmessungen",null,"Stk",null,null,{"$f":"+'001 Inhaltsverzeichnis'!$E$26","v":"Ja"},122,{"$f":"+'001 Inhaltsverzeichnis'!$A$26","v":213},0]
[214,"Baugrubenabschluss Bohrpfahlwand","Deformationsmessungen",null,"Stk",null,null,{"$f":"+'001 Inhaltsverzeichnis'!E27","v":"Ja"},123,{"$f":"+'001 Inhaltsverzeichnis'!A27","v":214},0]
[215,"Baugrubenabschluss Schlitzwand","Deformationsmessungen",null,"Stk",null,null,{"$f":"+'001 Inhaltsverzeichnis'!E28","v":"Ja"},124,{"$f":"+'001 Inhaltsverzeichnis'!A28","v":215},0]
[221,"Wasserhaltung offen","Grundwass- / Hangwasserstände",null,"Stk",null,null,{"$f":"+'001 Inhaltsverzeichnis'!E29","v":"Ja"},125,{"$f":"+'001 Inhaltsverzeichnis'!A29","v":221},0]
[222,"Wasserhaltung Vakuum","Grundwass- / Hangwasserstände",null,"Stk",null,null,{"$f":"+'001 Inhaltsverzeichnis'!$E$30","v":"Ja"},126,{"$f":"+'001 Inhaltsverzeichnis'!$A$30","v":222},0]
[222,"Wasserhaltung Vakuum","Deformationsmessungen",null,"Stk",null,null,{"$f":"+'001 Inhaltsverzeichnis'!$E$30","v":"Ja"},127,{"$f":"+'001 Inhaltsverzeichnis'!$A$30","v":222},0]
[222,"Wasserhaltung Filterbrunnen","Grundwass- / Hangwasserstände",null,"Stk",null,null,{"$f":"+'001 Inhaltsverzeichnis'!$E$30","v":"Ja"},128,{"$f":"+'001 Inhaltsverzeichnis'!$A$30","v":222},{"$f":"+A139-J139","v":0}]
[222,"Wasserhaltung Filterbrunnen","Deformationsmessungen",null,"Stk",null,null,{"$f":"+'001 Inhaltsverzeichnis'!$E$30","v":"Ja"},129,{"$f":"+'001 Inhaltsverzeichnis'!$A$30","v":222},0]
[231,"Anker","Ankerversuch",null,"Stk",null,null,{"$f":"+'001 Inhaltsverzeichnis'!$E$32","v":"Ja"},130,{"$f":"+'001 Inhaltsverzeichnis'!$A$32","v":231},0]
[231,"Anker","Spannproben",null,"Stk",null,null,{"$f":"+'001 Inhaltsverzeichnis'!$E$32","v":"Ja"},131,{"$f":"+'001 Inhaltsverzeichnis'!$A$32","v":231},0]
[231,"Anker","Korrosionsschutz elektr. Widerstandsmessung",null,"Stk",null,null,{"$f":"+'001 Inhaltsverzeichnis'!$E$32","v":"Ja"},132,{"$f":"+'001 Inhaltsverzeichnis'!$A$32","v":231},0]
[241,"Nagelwand","Tragfähigkeit Nägel",null,"Stk",null,null,{"$f":"+'001 Inhaltsverzeichnis'!E33","v":"Ja"},133,{"$f":"+'001 Inhaltsverzeichnis'!A33","v":241},0]
[251,"Pfahlfundation Bohrpfähle","Tragfähigkeit Bohrpfähle",null,"Stk",null,null,{"$f":"+'001 Inhaltsverzeichnis'!$E$34","v":"Ja"},134,{"$f":"+'001 Inhaltsverzeichnis'!$A$34","v":251},0]
[251,"Pfahlfundation Bohrpfähle","Qualitäts- und Integritätsprüfung",null,"Stk",null,null,{"$f":"+'001 Inhaltsverzeichnis'!$E$34","v":"Ja"},135,{"$f":"+'001 Inhaltsverzeichnis'!$A$34","v":251},0]
[252,"Pfahlfundation Rammpfähle","Tragfähigkeit Rammpfähle",null,"Stk",null,null,{"$f":"+'001 Inhaltsverzeichnis'!$E$35","v":"Ja"},136,{"$f":"+'001 Inhaltsverzeichnis'!$A$35","v":252},0]
[252,"Pfahlfundation Rammpfähle","Erschütterungsmessungen",null,"Stk",null,null,{"$f":"+'001 Inhaltsverzeichnis'!$E$35","v":"Ja"},137,{"$f":"+'001 Inhaltsverzeichnis'!$A$35","v":252},0]
[311,"Strassenentwässerung","Dichtigkeit ","SIA 190:2017, Anhang 3 Verfahren [W]","Stk",null,null,{"$f":"+'001 Inhaltsverzeichnis'!$E$37","v":"Ja"},138,{"$f":"+'001 Inhaltsverzeichnis'!$A$37","v":311},0]
[311,"Strassenentwässerung","Dichtigkeit ","SIA 190:2017, Anhang 4 Verfahren [L]","Stk",null,null,{"$f":"+'001 Inhaltsverzeichnis'!$E$37","v":"Ja"},139,{"$f":"+'001 Inhaltsverzeichnis'!$A$37","v":311},0]
[311,"Strassenentwässerung","Sanierung- oder Neuabnahme","Quick VSA","Std",null,null,{"$f":"+'001 Inhaltsverzeichnis'!$E$37","v":"Ja"},140,{"$f":"+'001 Inhaltsverzeichnis'!$A$37","v":311},0]
[311,"Strassenentwässerung","Lage",null,"Stk",null,null,{"$f":"+'001 Inhaltsverzeichnis'!$E$37","v":"Ja"},141,{"$f":"+'001 Inhaltsverzeichnis'!$A$37","v":311},0]
[315,"Walzasphalt","Mischgut",null,"Stk",null,null,{"$f":"+'001 Inhaltsverzeichnis'!$E$41","v":"Ja"},142,{"$f":"+'001 Inhaltsverzeichnis'!$A$41","v":315},0]
[315,"Walzasphalt","Bindemittel",null,"Stk",null,null,{"$f":"+'001 Inhaltsverzeichnis'!$E$41","v":"Ja"},143,{"$f":"+'001 Inhaltsverzeichnis'!$A$41","v":315},0]
[315,"Walzasphalt","Bohrkerne","Prüfungen O+G","Stk",null,null,{"$f":"+'001 Inhaltsverzeichnis'!$E$41","v":"Ja"},144,{"$f":"+'001 Inhaltsverzeichnis'!$A$41","v":315},0]
[315,"Walzasphalt","Längsebenheit","Prüfungen O+G","Stk",null,null,{"$f":"+'001 Inhaltsverzeichnis'!$E$41","v":"Ja"},145,{"$f":"+'001 Inhaltsverzeichnis'!$A$41","v":315},0]
[315,"Walzasphalt","Querebenheit","Prüfungen O+G","Stk",null,null,{"$f":"+'001 Inhaltsverzeichnis'!$E$41","v":"Ja"},146,{"$f":"+'001 Inhaltsverzeichnis'!$A$41","v":315},0]
[315,"Walzasphalt","Griffigkeit","Prüfungen O+G","Stk",null,null,{"$f":"+'001 Inhaltsverzeichnis'!$E$41","v":"Ja"},147,{"$f":"+'001 Inhaltsverzeichnis'!$A$41","v":315},0]
[315,"Walzasphalt","Griffigkeit",null,"Stk",null,null,{"$f":"+'001 Inhaltsverzeichnis'!$E$41","v":"Ja"},148,{"$f":"+'001 Inhaltsverzeichnis'!$A$41","v":315},0]
[316,"Gussasphalt","Mischgut",null,"Stk",null,null,{"$f":"+'001 Inhaltsverzeichnis'!$E$42","v":"Ja"},149,{"$f":"+'001 Inhaltsverzeichnis'!$A$42","v":316},0]
[316,"Gussasphalt","Bindemittel",null,"Stk",null,null,{"$f":"+'001 Inhaltsverzeichnis'!$E$42","v":"Ja"},150,{"$f":"+'001 Inhaltsverzeichnis'!$A$42","v":316},0]
[316,"Gussasphalt","Statische Eindringtiefe",null,"Stk",null,null,{"$f":"+'001 Inhaltsverzeichnis'!$E$42","v":"Ja"},151,{"$f":"+'001 Inhaltsverzeichnis'!$A$42","v":316},0]
[316,"Gussasphalt","Dynamische Eindringtiefe",null,"Stk",null,null,{"$f":"+'001 Inhaltsverzeichnis'!$E$42","v":"Ja"},152,{"$f":"+'001 Inhaltsverzeichnis'!$A$42","v":316},0]
[316,"Gussasphalt","Längsebenheit","Prüfungen O+G","Stk",null,null,{"$f":"+'001 Inhaltsverzeichnis'!$E$42","v":"Ja"},153,{"$f":"+'001 Inhaltsverzeichnis'!$A$42","v":316},0]
[316,"Gussasphalt","Griffigkeit","Prüfungen O+G","Stk",null,null,{"$f":"+'001 Inhaltsverzeichnis'!$E$42","v":"Ja"},154,{"$f":"+'001 Inhaltsverzeichnis'!$A$42","v":316},0]
[411,"Untergrundvorbereitung","Haftzugsfestigkeit","LE = 3 Stk","LE",null,null,{"$f":"+'001 Inhaltsverzeichnis'!$E$49","v":"Ja"},155,{"$f":"+'001 Inhaltsverzeichnis'!$A$49","v":411},0]
[411,"Untergrundvorbereitung","Rautiefe","LE = 3 Stk","LE",null,null,{"$f":"+'001 Inhaltsverzeichnis'!$E$49","v":"Ja"},156,{"$f":"+'001 Inhaltsverzeichnis'!$A$49","v":411},0]
[414,"Vorspannung","Spannvorgang, Injektionsgut, Aufzeichnungen",null,"Stk",null,null,{"$f":"+'001 Inhaltsverzeichnis'!E52","v":"Ja"},157,{"$f":"+'001 Inhaltsverzeichnis'!A52","v":414},0]
[415,"Frischbeton","Konsistenz",null,"Stk",null,null,{"$f":"+'001 Inhaltsverzeichnis'!$E$53","v":"Ja"},158,{"$f":"+'001 Inhaltsverzeichnis'!$A$53","v":415},0]
[415,"Frischbeton","LP",null,"Stk",null,null,{"$f":"+'001 Inhaltsverzeichnis'!$E$53","v":"Ja"},159,{"$f":"+'001 Inhaltsverzeichnis'!$A$53","v":415},0]
[415,"Frischbeton","W/B-Faktor",null,"Stk",null,null,{"$f":"+'001 Inhaltsverzeichnis'!$E$53","v":"Ja"},160,{"$f":"+'001 Inhaltsverzeichnis'!$A$53","v":415},{"$f":"+A171-J171","v":0}]
[415,"Frischbeton","Druckfestigkeit","LE = 3 Stk","LE",null,null,{"$f":"+'001 Inhaltsverzeichnis'!$E$53","v":"Ja"},161,{"$f":"+'001 Inhaltsverzeichnis'!$A$53","v":415},0]
[415,"Frischbeton","Frostbeständigkeit",null,"Stk",null,null,{"$f":"+'001 Inhaltsverzeichnis'!$E$53","v":"Ja"},162,{"$f":"+'001 Inhaltsverzeichnis'!$A$53","v":415},0]
[415,"Frischbeton","Frosttausalzbeständigkeitsprüfung VSS",null,"Stk",null,null,{"$f":"+'001 Inhaltsverzeichnis'!$E$53","v":"Ja"},163,{"$f":"+'001 Inhaltsverzeichnis'!$A$53","v":415},0]
[415,"Frischbeton","Frosttausalzbeständigkeitsprüfung SIA","LE = 2 Stk","LE",null,null,{"$f":"+'001 Inhaltsverzeichnis'!$E$53","v":"Ja"},164,{"$f":"+'001 Inhaltsverzeichnis'!$A$53","v":415},0]
[416,"Reprofilierung","Druckfestigkeit","LE = 5 Stk","LE",null,null,{"$f":"+'001 Inhaltsverzeichnis'!$E$54","v":"Ja"},165,{"$f":"+'001 Inhaltsverzeichnis'!$A$54","v":416},0]
[416,"Reprofilierung","Haftzugsfestigkeit","LE = 3 Stk","LE",null,null,{"$f":"+'001 Inhaltsverzeichnis'!$E$54","v":"Ja"},166,{"$f":"+'001 Inhaltsverzeichnis'!$A$54","v":416},0]
[416,"Reprofilierung","Frosttausalzbeständigkeitsprüfung VSS",null,"Stk",null,null,{"$f":"+'001 Inhaltsverzeichnis'!$E$54","v":"Ja"},167,{"$f":"+'001 Inhaltsverzeichnis'!$A$54","v":416},0]
[416,"Reprofilierung","Frosttausalzbeständigkeitsprüfung SIA",null,"Stk",null,null,{"$f":"+'001 Inhaltsverzeichnis'!$E$54","v":"Ja"},168,{"$f":"+'001 Inhaltsverzeichnis'!$A$54","v":416},0]
[416,"Reprofilierung","Chloridwiderstand (XD3)","LE = 1 Prüfserie","LE",null,null,{"$f":"+'001 Inhaltsverzeichnis'!$E$54","v":"Ja"},169,{"$f":"+'001 Inhaltsverzeichnis'!$A$54","v":416},0]
[417,"Oberflächenschutz","Oberflächenzugfestigekti, Haftzug",null,"Stk",null,null,{"$f":"+'001 Inhaltsverzeichnis'!$E$55","v":"Ja"},170,{"$f":"+'001 Inhaltsverzeichnis'!$A$55","v":417},0]
[417,"Oberflächenschutz","Wasseraufnahmekoeffizient",null,"Stk",null,null,{"$f":"+'001 Inhaltsverzeichnis'!$E$55","v":"Ja"},171,{"$f":"+'001 Inhaltsverzeichnis'!$A$55","v":417},0]
[417,"Oberflächenschutz","Schichtdicken",null,"Stk",null,null,{"$f":"+'001 Inhaltsverzeichnis'!$E$55","v":"Ja"},172,{"$f":"+'001 Inhaltsverzeichnis'!$A$55","v":417},0]
[511,"Untergrundvorbereitung","Haftzugsfestigkeit","LE = 3 Stk","LE",null,null,{"$f":"+'001 Inhaltsverzeichnis'!$E$57","v":"Ja"},173,{"$f":"+'001 Inhaltsverzeichnis'!$A$57","v":511},0]
[511,"Untergrundvorbereitung","Rautiefe","LE = 3 Stk","LE",null,null,{"$f":"+'001 Inhaltsverzeichnis'!$E$57","v":"Ja"},174,{"$f":"+'001 Inhaltsverzeichnis'!$A$57","v":511},0]
[511,"Untergrundvorbereitung","Porosität (Wasserleitfähigkeit)",null,"Stk",null,null,{"$f":"+'001 Inhaltsverzeichnis'!$E$57","v":"Ja"},175,{"$f":"+'001 Inhaltsverzeichnis'!$A$57","v":511},0]
[512,"Epoxidharzversiegelung","Haftzugsfestigkeit","LE = 3 Stk","LE",null,null,{"$f":"+'001 Inhaltsverzeichnis'!$E$58","v":"Ja"},176,{"$f":"+'001 Inhaltsverzeichnis'!$A$58","v":512},0]
[512,"Epoxidharzversiegelung","Porenfreiheit",null,"m2",null,null,{"$f":"+'001 Inhaltsverzeichnis'!$E$58","v":"Ja"},177,{"$f":"+'001 Inhaltsverzeichnis'!$A$58","v":512},0]
[513,"Polymerdichtungsbahnen","Haftzugsfestigkeit","LE = 3 Stk","LE",null,null,{"$f":"+'001 Inhaltsverzeichnis'!$E$59","v":"Ja"},178,{"$f":"+'001 Inhaltsverzeichnis'!$A$59","v":513},0]
[513,"Polymerdichtungsbahnen","Schälzugfestigkeit","LE = 3 Stk","LE",null,null,{"$f":"+'001 Inhaltsverzeichnis'!$E$59","v":"Ja"},179,{"$f":"+'001 Inhaltsverzeichnis'!$A$59","v":513},0]
[514,"Flüssigkunststoff","Haftzugsfestigkeit","LE = 3 Stk","LE",null,null,{"$f":"+'001 Inhaltsverzeichnis'!$E$60","v":"Ja"},180,{"$f":"+'001 Inhaltsverzeichnis'!$A$60","v":514},0]
[514,"Flüssigkunststoff","Schichtstärke","LE = 30 EP","LE",null,null,{"$f":"+'001 Inhaltsverzeichnis'!$E$60","v":"Ja"},181,{"$f":"+'001 Inhaltsverzeichnis'!$A$60","v":514},0]
[612,"Korrosionsschutz","Visuelle Beurteilung der fertigen Korrosionsschutzes durch externes Prüflabor",null,"Stk",null,null,{"$f":"+'001 Inhaltsverzeichnis'!$E$63","v":"Ja"},182,{"$f":"+'001 Inhaltsverzeichnis'!$A$63","v":612},0]
[612,"Korrosionsschutz","Keilschnittprüfungen am fertigen Korrosionsschutz",null,"Stk",null,null,{"$f":"+'001 Inhaltsverzeichnis'!$E$63","v":"Ja"},183,{"$f":"+'001 Inhaltsverzeichnis'!$A$63","v":612},0]
[612,"Korrosionsschutz","Kontrolle auf Korrisionsstimulatoren Chlordien und Sulfaten",null,"Stk",null,null,{"$f":"+'001 Inhaltsverzeichnis'!$E$63","v":"Ja"},184,{"$f":"+'001 Inhaltsverzeichnis'!$A$63","v":612},0]
[613,"Korrosionsschutz Gerüste / Einhausungen","Überwachung Schwermetalbelastung in Luft und Boden",null,"Stk",null,null,{"$f":"+'001 Inhaltsverzeichnis'!E64","v":"Ja"},185,{"$f":"+'001 Inhaltsverzeichnis'!A64","v":613},0]
[null,null,null,null,null,null,null,"Ja",186]
[null,null,null,null,null,null,null,"Ja",187]
[null,null,null,null,null,null,null,"Ja",188]
[null,null,null,null,null,null,null,"Ja",189]
[null,null,null,null,null,null,null,"Ja",190]
[null,null,null,null,null,null,null,"Ja",191]

{"sheet":"111","index":4,"n_rows":23,"n_cols":7,"rows_kept":23,"cut":false,"hidden":false,"merged":[[5,1,5,3],[2,1,2,3],[3,1,3,3],[4,1,4,3],[2,5,4,6],[23,1,23,6],[6,1,6,3],[14,0,14,6],[15,1,15,6],[16,1,16,6],[17,1,17,6],[18,1,18,6],[19,1,19,6],[20,1,20,6],[21,1,21,6],[22,1,22,6],[8,0,8,6]]}
[null,null,null,null,null,null,"Zu 001 Inhaltsverzeichnis"]
["100 Erdarbeiten",null,null,null,null,null,"111 Aushub"]
[{"$f":"+Titelblatt!E8","v":"Gemeinde"},{"$f":"+Titelblatt!F8","v":"Musterhausen"},null,null,{"$f":"+Titelblatt!E19","v":"Ingenieurbüro"},{"$f":"+Titelblatt!F19","v":"Musterbüro\nMusterstrasse 15\n8000 Musterhausen"}]
[{"$f":"+Titelblatt!E9","v":"Strasse"},{"$f":"+Titelblatt!F9","v":"Musterstrasse"},null,null,{"$f":"+Titelblatt!E23","v":" "},{"$f":"+Titelblatt!F23","v":" "}]
[{"$f":"+Titelblatt!E10","v":"Strecke"},{"$f":"+Titelblatt!F10","v":"Musterkreisel bis Musterstrasse"}]
[{"$f":"+Titelblatt!E11","v":"km / Bauwerk"},{"$f":"+Titelblatt!F11","v":"003-002 "}]
[{"$f":"+Titelblatt!E6","v":"Projekttitel"},{"$f":"+Titelblatt!F6","v":"Instandsetzung Musterbrücke …."}]
[]
["Objektspezifischer QM-Plan (Prüfungen durch den Bauherrn bestellt)"]
["Prüfung","Prüfverfahren","Anforderungen","Umfang","Zeitpunkt","Massnahmen bei Nichtgenügen","Bemerkungen"]
["Tragfähigkeit Aushubsohle","VSS 70 317:2019\nVSS 40 585B:2019","Verformungsmodul,\nME1 ≥30 MN/m2","Distanz zwischen Messpunkten ≤ 50 m, 1 Stk pro 600 m2, mindestens 2 Messungen pro Bauteil","24 h nach Arbeitsgang","Nachverdichten, Materialersatz"]
[]
[]
[]
["Anforderungen an die Ausführung"]
["Rubrik","Beschrieb"]
["Zustand Aushubsohle","Keine Auflockerung, keine Durchnässung / Materialersatz bei nicht homogener Oberfläche und/oder durchnässtem Material"]
["Höhenlage Aushubsohle","Lockergestein, ±50 mm (Aushub masch.) ±30 mm (Aushub Hand) / Fels, ±150 mm (Aushub masch.) /\nAbweichung +: Korrektur Abweichung -: Materialeinbau / Sauberkeitsschicht"]
["Höhenlage Sauberkeitsschicht","Höhe, ±30 mm /  Unebenheiten unter 4m Latte,  ±30 mm / \nAbweichung +: Ausbau und Korrektur, Abweichung -: Materialeinbau"]
["Neigung Böschung","Winkel, ±2° / Abweichung +: Korrektur, Abweichung -: Ausmass nach Plan"]
["Schichtgrenze Baugrund","Keine massgebenden Abweichungen gegenüber Planungsannahmen / Allfällige Massnahmen auf Anordnung des Projektgeologen"]
["Lage Werkleitungen","Lage gemäss Werkleitungspläne im Feld markiert /  laufend / Vor Aushubarbeiten / Allgemein: Anordnung Markierung durch Werke, Bei Mittel- und Hochdruck\nGasleitungen: Zusätzlich Sondagen, Bei Hochspannungsleitungen: Zusätzlich Sondagen, Bei Transportleitungen Wasser (DN >250 mm): Zusätzlich Sondagen"]
["Lage Wurzeln (Bäume und Sträucher)","Grabarbeiten im Wurzelbereich (in der nähe von Bäumen) müssen immer von Fachpersonen begleitet werden. Wurzeln und/oder Krone dürfen nur durch Fachpersonen zurückgeschnitten werden (siehe Register 916). "]

{"sheet":"112","index":5,"n_rows":22,"n_cols":7,"rows_kept":22,"cut":false,"hidden":false,"merged":[[5,1,5,3],[2,1,2,3],[3,1,3,3],[4,1,4,3],[2,5,4,6],[6,1,6,3],[14,0,14,6],[15,1,15,6],[16,1,16,6],[17,1,17,6],[8,0,8,6],[23,1,23,6],[18,1,18,6],[19,1,19,6],[20,1,20,6],[21,1,21,6],[22,1,22,6]]}
[null,null,null,null,null,null,"Zu 001 Inhaltsverzeichnis"]
["100 Erdarbeiten",null,null,null,null,null,"112 Hinterfüllung"]
[{"$f":"+Titelblatt!E8","v":"Gemeinde"},{"$f":"+Titelblatt!F8","v":"Musterhausen"},null,null,{"$f":"+Titelblatt!E19","v":"Ingenieurbüro"},{"$f":"+Titelblatt!F19","v":"Musterbüro\nMusterstrasse 15\n8000 Musterhausen"}]
[{"$f":"+Titelblatt!E9","v":"Strasse"},{"$f":"+Titelblatt!F9","v":"Musterstrasse"},null,null,{"$f":"+Titelblatt!E23","v":" "},{"$f":"+Titelblatt!F23","v":" "}]
[{"$f":"+Titelblatt!E10","v":"Strecke"},{"$f":"+Titelblatt!F10","v":"Musterkreisel bis Musterstrasse"}]
[{"$f":"+Titelblatt!E11","v":"km / Bauwerk"},{"$f":"+Titelblatt!F11","v":"003-002 "}]
[{"$f":"+Titelblatt!E6","v":"Projekttitel"},{"$f":"+Titelblatt!F6","v":"Instandsetzung Musterbrücke …."}]
[]
["Objektspezifischer QM-Plan (Prüfungen durch den Bauherrn bestellt)"]
["Prüfung","Prüfverfahren","Anforderungen","Umfang","Zeitpunkt","Massnahmen bei Nichtgenügen","Bemerkungen"]
["Verformungsmodul, ME","VSS 70 317:2019\nVSS 40 585B:2019","Untergrund/Auffüllung: ME1 ≥30 MN/m2  Fundationsschicht: ME1 ≥100 MN/m2","Objektspezifisch definieren, mindestens 2 Messungen pro Bauteil","24 h nach Arbeitsgang","Nachverdichten, Materialersatz","Tragfähigkeit muss lageweise überprüft werden"]
[]
[]
[]
["Anforderungen an die Ausführung"]
["Rubrik","Beschrieb"]
["Materialeigenschaften Hinterfüllung","Aushubmaterial: Kein Bauschutt, kein Material aus Altlastenverdachtsflächen, Fremdmaterial: Gemäss Projektanforderungen / 1 St. pro 100 m3 / Vor Hinterfüllung "]
["Einbauprozess Hinterfüllung","Schütthohe, >0.3 m und <0.6 m / 1 St. pro 100 m3  / Während Einbau /  Ausbau und nochmaliger Einbau"]
["Höhenlage Hinterfüllung","Höhe, ±100 mm / 3 St. pro 200 m2  / Nach Arbeitsgang /  Abweichung +: Ausbau und Korrektur, Abweichung -: Materialeinbau"]
["Schichtdicke","Das Material ist schichtweise einzubringen und zu verdichten. Die Definition der Schichtdicke hat einerseits in Abhängigkeit der Tiefenwirkung des Verdichtungsgerätes zu erfolgen, andererseits wird sie durch den maximalen Korndurchmesser des Materials bestimmt. Der Korndurchmesser soll kleiner als die Hälfte der losen Schichtdicke sein. "]
["Anzahl Übergänge","In Abhängigkeit der Verdichtungsgeräte sind die Anzahl Übergänge zu überwachen / Bei grösseren Baustellen Feldversuche."]
["Wassergehalt","Der Wassergehalt der ungebunden Materialien soll dem optimalen Wassergehalt entsprechen (Streumass ±20 %)."]

{"sheet":"113","index":6,"n_rows":22,"n_cols":7,"rows_kept":22,"cut":false,"hidden":false,"merged":[[5,1,5,3],[2,1,2,3],[3,1,3,3],[4,1,4,3],[2,5,4,6],[18,1,18,6],[19,1,19,6],[6,1,6,3],[14,0,14,6],[15,1,15,6],[16,1,16,6],[17,1,17,6],[8,0,8,6]]}
[null,null,null,null,null,null,"Zu 001 Inhaltsverzeichnis"]
["100 Erdarbeiten",null,null,null,null,null,"113 Grabenauffüllung"]
[{"$f":"+Titelblatt!E8","v":"Gemeinde"},{"$f":"+Titelblatt!F8","v":"Musterhausen"},null,null,{"$f":"+Titelblatt!E19","v":"Ingenieurbüro"},{"$f":"+Titelblatt!F19","v":"Musterbüro\nMusterstrasse 15\n8000 Musterhausen"}]
[{"$f":"+Titelblatt!E9","v":"Strasse"},{"$f":"+Titelblatt!F9","v":"Musterstrasse"},null,null,{"$f":"+Titelblatt!E23","v":" "},{"$f":"+Titelblatt!F23","v":" "}]
[{"$f":"+Titelblatt!E10","v":"Strecke"},{"$f":"+Titelblatt!F10","v":"Musterkreisel bis Musterstrasse"}]
[{"$f":"+Titelblatt!E11","v":"km / Bauwerk"},{"$f":"+Titelblatt!F11","v":"003-002 "}]
[{"$f":"+Titelblatt!E6","v":"Projekttitel"},{"$f":"+Titelblatt!F6","v":"Instandsetzung Musterbrücke …."}]
[]
["Objektspezifischer QM-Plan (Prüfungen durch den Bauherrn bestellt)"]
["Prüfung","Prüfverfahren","Anforderungen","Umfang","Zeitpunkt","Massnahmen bei Nichtgenügen","Bemerkungen"]
["Verformungsmodul, ME","VSS 70 317:2019","Untergrund/Auffüllung: ME1 ≥30 MN/m2 Fundationsschicht: ME1 ≥100 MN/m2","Objektspezifisch definieren, mindestens 2 Messungen pro Bauteil","24 h nach Arbeitsgang","Nachverdichten, Materialersatz"]
[]
[]
[]
["Anforderungen an die Ausführung"]
["Rubrik","Beschrieb"]
["Grundlagen","Siehe TBA, Formular „Gesuch für Arbeiten im Staatsstrassengebiet (051.00.01)“ "]
["Material Grabenauffüllung","Unterhalb Planum: geeignetes Aushubmaterial, Kiesgemisch 0/45, RC Kiesgemisch B 0/45 (ausserhalb Schutzzone, Abstand Grundwasser ab Grabensohle ˃2 m)\nFundationsschicht: Kiesgemisch 0/45, RC-Kiesgemisch B 0/45"]
[]
[]
[]
[null,null,"weitere Dokumente beachten"]

{"sheet":"114","index":7,"n_rows":30,"n_cols":8,"rows_kept":30,"cut":false,"hidden":false,"merged":[[28,1,28,7],[30,1,30,7],[8,0,8,7],[22,1,22,7],[23,1,23,7],[24,1,24,7],[25,1,25,7],[26,1,26,7],[27,1,27,7],[16,0,16,7],[17,1,17,7],[18,1,18,7],[19,1,19,7],[20,1,20,7],[21,1,21,7],[6,1,6,3],[2,1,2,3],[2,5,4,7],[3,1,3,3],[4,1,4,3],[5,1,5,3]]}
[null,null,null,null,null,null,null,"Zu 001 Inhaltsverzeichnis"]
["100 Erdarbeiten",null,null,null,null,null,null,"114 Fundationsschicht"]
[{"$f":"+Titelblatt!E8","v":"Gemeinde"},{"$f":"+Titelblatt!F8","v":"Musterhausen"},null,null,{"$f":"+Titelblatt!E19","v":"Ingenieurbüro"},{"$f":"+Titelblatt!F19","v":"Musterbüro\nMusterstrasse 15\n8000 Musterhausen"}]
[{"$f":"+Titelblatt!E9","v":"Strasse"},{"$f":"+Titelblatt!F9","v":"Musterstrasse"},null,null,{"$f":"+Titelblatt!E23","v":" "},{"$f":"+Titelblatt!F23","v":" "}]
[{"$f":"+Titelblatt!E10","v":"Strecke"},{"$f":"+Titelblatt!F10","v":"Musterkreisel bis Musterstrasse"}]
[{"$f":"+Titelblatt!E11","v":"km / Bauwerk"},{"$f":"+Titelblatt!F11","v":"003-002 "}]
[{"$f":"+Titelblatt!E6","v":"Projekttitel"},{"$f":"+Titelblatt!F6","v":"Instandsetzung Musterbrücke …."}]
[]
["Prüfungen"]
["Prüfung","Prüfverfahren","Anforderungen","Umfang","Zeitpunkt","Massnahmen bei Nichtgenügen","Durchführung\nVergütung","Bemerkungen"]
["Tragfähigkeit Fundationsschicht","VSS 70 119:2021 / \nSN EN13285:2021 \nVSS 70 317:2019\nVSS 40 585B:2019","Verformungsmodul; Planie mit Belag:\nME1 ≥100 MN/m2 und ME2/ME1 < 2.5\nPlanie ohne Belag:\nME1 ≥80 MN/m2 und ME2/ME1 < 2.5","Distanz zwischen Messpunkten ≤ 30 m,\n1 St. pro 300 m2,\nmindestens 2 pro Bauteil","24 h nach Arbeitsgang","Nachverdichtung, Materialersatz bei allen Unterlagen  für folgende Ergebnisse:\nPlanie mit Belag; n < 5 Messungen:\nME1 < 100 MN/m2\n\nPlanie mit Belag; n ≥ 5 Messungen:\n2 Mess. mit ME1 < 90 MN/m2 \n\nPlanie ohne Belag; n < 5 Messungen:\nME1 < 80 MN/m2 \n\nPlanie ohne Belag; n ≥ 5 Messungen:\n2 Mess. mit ME1 < 72 MN/m2 ","Unternehmerlabor\nSubmission in NPK 112","Messprotokoll"]
["Korngrössenverteilung","VSS 40 580:2019 \nVSS 70 119:2021 / \nSN EN13285:2021","EN 13242:2007 / EN13285:2010 [SN 670-119-NA:2011]","1  St. pro 500 m3\nmind.1 St.","Beginn Arbeitsetappe","Rückweisung, Ausbau","Unternehmerlabor\nSubmission in NPK 112","Prüfprotokoll"]
["Klassifizierung der Bestandteile von groben rezyklierten Gesteinskörnungen","VSS 40 580:2019 \nVSS 70 119:2021 / \nSN EN13285:2021\nEN 933-11:2009 [SN 670 902-11-NA:2009]","EN 13242:2007 / EN13285:2010 [SN 670-119-NA:2011]","ab 500m3 bis 3'000m3: 1 St\n1 St pro 3000m3","Beginn Arbeitsetappe","Rückweisung, Ausbau","Unternehmerlabor\nSubmission in NPK 112","Prüfprotokoll"]
["Höhenlage Planie (bezüglich Projekthöhe)","VSS 40 580:2019 ","±10 mm (Einzelwerte)\n±5 mm (Mittelwerte)","alle 20 m","Planieoberfläche","Abweichung +: \nAusbau und Korrektur,  \nAbweichung -: Materialeinbau","Unternehmer\nSubmission in NPK 112","Messprotokoll"]
["Ebenheit Planie","VSS 40 580:2019 ","Maximale Muldentiefe unter 4 m -Latte :15 mm","alle 400 m2","Planieoberfläche","Abweichung +: \nAusbau und Korrektur,  \nAbweichung -: Materialeinbau","Unternehmer\nSubmission in NPK 112","Messprotokoll"]
[]
["Anforderungen an die Ausführung"]
["Rubrik","Beschrieb"]
["Vorgaben TBA","Merkblatt Lieferanten ungebundene Gemische für Fundationsschichten\nZugelassen sind Kiesgemisch 0/45, RC-Kiesgemisch B 0/45"]
["Lieferanten","Verzeichnis zugelassene Lieferanten ungebundene Gemische VSS 70 119:2021 / SN EN13285:2021"]
["Eignung Fundationsschicht ","Verzeichnis zugelassene Lieferanten ungebundene Gemische VSS 70 119:2021 / SN EN13285:2021"]
["Stoffliche Zusammen-setzung Fundationsschicht ","Zusammensetzung /  UG aus Betongranulat, Asphaltgranulat: Einhaltung Grenzwerte gemäss VSS 70 119:2021 / SN EN13285:2021  / 1 St. pro 800 m3 / Vor Arbeitsgang / Rückweisung Material "]
["Materialeigenschaften Fundationsschicht","Deklaration gemäss Projektanforderung /  Vor Arbeitsgang \n"]
["Höhenlage Fundationsschicht (Planum)","Höhe ; ±40 mm (Einzelwerte)  ±20 mm  (Mittelwerte)/ Unebenheiten unter 4m Latte ; ±40 mm / 3 St. pro 200 m2 / Nach Arbeitsgang / Abweichung +: Ausbau und Korrektur; Abweichung -: Materialeinbau"]
["Entmischung","Die Gefahr der Entmischung der Fundationsschicht muss insbesondere bei grossem Maximalkorn beachtet werden. Für Fundationsschichten ist das Grösstkorn auf 63 mm beschränkt."]
["Wassergehalt","Das Material muss bei optimalem Wassergehalt geliefert und eingebaut werden. RC-Kiesgemisch B weist eine erhöhte Wasserempfindlichkeit auf."]
["Schichtstärke","Die Fundationsschicht ist in Schichtstärken von 0.20 bis 0.50 m einzubauen "]
["Sichtkontrollen","Der Einbau darf nicht auf ein durch Niederschlag durchnässtes oder nach Frost aufgeweichtes Planum eingebracht werden"]
[]
[null,null,"weitere Dokumente beachten"]

{"sheet":"115","index":8,"n_rows":23,"n_cols":8,"rows_kept":23,"cut":false,"hidden":false,"merged":[[22,1,22,7],[17,0,17,7],[18,1,18,7],[19,1,19,7],[20,1,20,7],[21,1,21,7],[8,0,8,7],[6,1,6,3],[5,1,5,3],[2,1,2,3],[3,1,3,3],[4,1,4,3],[2,5,4,7]]}
[null,null,null,null,null,null,null,"Zu 001 Inhaltsverzeichnis"]
["100 Erdarbeiten",null,null,null,null,null,null,"115 Fundationsschicht gebunden, Asphaltbeton kaltbauweise"]
[{"$f":"+Titelblatt!E8","v":"Gemeinde"},{"$f":"+Titelblatt!F8","v":"Musterhausen"},null,null,{"$f":"+Titelblatt!E19","v":"Ingenieurbüro"},{"$f":"+Titelblatt!F19","v":"Musterbüro\nMusterstrasse 15\n8000 Musterhausen"}]
[{"$f":"+Titelblatt!E9","v":"Strasse"},{"$f":"+Titelblatt!F9","v":"Musterstrasse"},null,null,{"$f":"+Titelblatt!E23","v":" "},{"$f":"+Titelblatt!F23","v":" "}]
[{"$f":"+Titelblatt!E10","v":"Strecke"},{"$f":"+Titelblatt!F10","v":"Musterkreisel bis Musterstrasse"}]
[{"$f":"+Titelblatt!E11","v":"km / Bauwerk"},{"$f":"+Titelblatt!F11","v":"003-002 "}]
[{"$f":"+Titelblatt!E6","v":"Projekttitel"},{"$f":"+Titelblatt!F6","v":"Instandsetzung Musterbrücke …."}]
[]
["Prüfungen "]
["Prüfung","Prüfverfahren","Anforderungen","Umfang","Zeitpunkt","Massnahmen bei Nichtgenügen","Durchführung\nVergütung","Bemerkungen"]
["Mischgut AFK:\n- Druckfestigkeit\n- Hohlraumgehalt\n- Raumdichte","VSS 40 492:2019","Druckfestigkeit:\nZL7≥ 3 MN/m2\nHohlraumgehalt: 5-12%\nRaumdichte: ist anzugeben","Eignungsprüfung","vor Materialfreigabe","Anpassung Mischgut","Lieferant\neinzurechnen","Ausführung durch akkreditiertes Labor\nPrüfbericht"]
["Höhenlage\nbezüglich Projekthöhe","VSS 40 492:2019","±10 mm","alle 10 m","nach Einbau","Anpassung","Unternehmer\nSubmission in NPK 112"]
["Ebenheit","VSS 40 492:2019","Maximale Muldentiefe unter \n4-m-Latte ≤10mm","alle 200 m2","nach Einbau","Anpassung","Unternehmer\nSubmission in NPK 112","Messprotokoll"]
["Hohlraumgehalt","EN 12697-5:2020\nEN 12697-6:2012\n[SN  670 406:2013]\nEN 12697-8:2020","5-12%","mind. 4 Untersuchungsergebnisse","nach Einbau",null,"O+G\nBauherrenlabor"]
["Verdichtungsgrad","VSS 40 492:2019","≥ 97%\nRaumdichte Bohrkern / Raumdichte Mischgut","Mittelwert aus mind 4 Untersuchungsergebnissen","nach Einbau",null,"O+G\nBauherrenlabor"]
["Schichtdicken","VSS 40 492:2019","Zentralmischverfahren: ±20mm (Einzelwert),  ±10mm (Mittelwert), \nOrtsmischverfahren: ±30mm (Einzelwert),  ±15mm (Mittelwert), ","pro Tagesetappe aus mind. 4 Einzelwerten",null,"Anpassung","Unternehmer\neinzurechnen","Nivellement oder \ndirekte Messung"]
[]
["Anforderungen an die Ausführung"]
["Rubrik","Beschrieb"]
["alle","siehe VSS 40 492:2019"]
["Sollwertbereiche Schichtdicken","AFK 16: 60...100 mm,  AFK 22: 80...150 mm, Abweichungen: Einzelwert ±20 mm, Mittelwert ±10 mm"]
["Recyclingbaustoffe","Die Anforderungen gemäss TBA-Merkblatt Anwendung von Recyclingbaustoffen sind zu beachten"]
["Einbau","Um eine Solldicke von 80 mm zu erreichen ist eine AFK von ca. 120 mmm vorzulegen. Der Verdichtung der Randbereiche ist besondere Beachtung zu schenken. Fallweise ist ein seitliches Überbauen erforderlich."]

{"sheet":"116","index":9,"n_rows":22,"n_cols":8,"rows_kept":22,"cut":false,"hidden":false,"merged":[[17,0,17,7],[18,1,18,7],[19,1,19,7],[20,1,20,7],[21,1,21,7],[8,0,8,7],[6,1,6,3],[5,1,5,3],[2,1,2,3],[3,1,3,3],[4,1,4,3],[2,5,4,7]]}
[null,null,null,null,null,null,null,"Zu 001 Inhaltsverzeichnis"]
["100 Erdarbeiten",null,null,null,null,null,null,"116 Fundationsschichten gebunden, hydraulisch"]
[{"$f":"+Titelblatt!E8","v":"Gemeinde"},{"$f":"+Titelblatt!F8","v":"Musterhausen"},null,null,{"$f":"+Titelblatt!E19","v":"Ingenieurbüro"},{"$f":"+Titelblatt!F19","v":"Musterbüro\nMusterstrasse 15\n8000 Musterhausen"}]
[{"$f":"+Titelblatt!E9","v":"Strasse"},{"$f":"+Titelblatt!F9","v":"Musterstrasse"},null,null,{"$f":"+Titelblatt!E23","v":" "},{"$f":"+Titelblatt!F23","v":" "}]
[{"$f":"+Titelblatt!E10","v":"Strecke"},{"$f":"+Titelblatt!F10","v":"Musterkreisel bis Musterstrasse"}]
[{"$f":"+Titelblatt!E11","v":"km / Bauwerk"},{"$f":"+Titelblatt!F11","v":"003-002 "}]
[{"$f":"+Titelblatt!E6","v":"Projekttitel"},{"$f":"+Titelblatt!F6","v":"Instandsetzung Musterbrücke …."}]
[]
["Prüfungen"]
["Prüfung","Prüfverfahren","Anforderungen","Umfang","Zeitpunkt","Massnahmen bei Nichtgenügen","Durchführung\nVergütung","Bemerkungen"]
["Druckfestigkeit","EN 14227-1:2013 / EN 14227-5:2013 [SN 640 496-NA:2015]","Rcmin ≥ 2 bis 4 N/mm2 \n(je nach Beanspruchung)","gemäss Produktionskontrolle","periodisch während Produktion","Anpassung Mischgut","Unternehmerlabor\nSubmission in NPK 112","Ausführung durch akkreditiertes Labor\nPrüfbericht"]
["Korngrössenverteilung","VSS 70 119:2021 / SN EN13285:2021\nEN 14227-1:2013 / EN 14227-5:2013 [SN 640 496-NA:2015]","gemäss Eignungsprüfung","gemäss Produktionskontrolle","periodisch während Produktion","Anpassung Mischgut","Unternehmerlabor\nSubmission in NPK 112","Ausführung durch akkreditiertes Labor\nPrüfbericht"]
["Verdichtungsgrad","VSS 70 317:2019\nVSS 40 585B:2019","≥ 97% Proctor Standard","objektspezifisch festlegen\n(Proctorversuch, Isotopengerät)","periodisch während Einbau","Nachverdichtung","Unternehmerlabor\nSubmission in NPK 112","Ausführung durch akkreditiertes Labor\nPrüfbericht"]
["Schichtdicken","VSS 40 491:2019","≥ 150 mm\nAbweichungen (2-schichtig):\nEinzelwert ±20 mm Mittelwert ±10 mm\nAbweichungen (1-schichtig):\nEinzelwert ±30 mm Mittelwert ±15 mm","pro Tagesetappe aus mind 4 Einzelwerten",null,null,"Unternehmer\neinzurechnen","Nivellement oder \ndirekte Messung"]
["Höhenlage bezüglich Projekthöhe","VSS 40 491:2019","±10 mm (2-schichtig)\n ±15 mm (1-schichtig)","alle 20 m","nach Einbau",null,"Unternehmer\nSubmission in NPK 112","Messprotokoll"]
["Ebenheit","VSS 40 491:2019","Maximale Muldentiefe unter 4-m-Latte\n≤10 mm (2-schichtig)\n≤15 mm (1-schichtig)","alle 400 m2","nach Einbau",null,"Unternehmer\nSubmission in NPK 112","Messprotokoll"]
[]
["Anforderungen an die Ausführung"]
["Rubrik","Beschrieb"]
["Eignungsprüfung","Gemäss EN 14227-1:2013 / EN 14227-5:2013 [SN 640 496-NA:2015]"]
["Produktionskontrolle","Gemäss EN 14227-1:2013 / EN 14227-5:2013 [SN 640 496-NA:2015]"]
["Recyclingbaustoffe","Die Anforderungen gemäss TBA-Merkblatt Anwendung von Recyclingbaustoffen sind zu beachten"]

{"sheet":"117","index":10,"n_rows":24,"n_cols":7,"rows_kept":24,"cut":false,"hidden":false,"merged":[[23,1,23,6],[6,1,6,3],[14,0,14,6],[15,1,15,6],[16,1,16,6],[17,1,17,6],[8,0,8,6],[18,1,18,6],[19,1,19,6],[20,1,20,6],[21,1,21,6],[22,1,22,6],[5,1,5,3],[2,1,2,3],[3,1,3,3],[4,1,4,3],[2,5,4,6]]}
[null,null,null,null,null,null,"Zu 001 Inhaltsverzeichnis"]
["100 Erdarbeiten",null,null,null,null,null,"117 Schüttung"]
[{"$f":"+Titelblatt!E8","v":"Gemeinde"},{"$f":"+Titelblatt!F8","v":"Musterhausen"},null,null,{"$f":"+Titelblatt!E19","v":"Ingenieurbüro"},{"$f":"+Titelblatt!F19","v":"Musterbüro\nMusterstrasse 15\n8000 Musterhausen"}]
[{"$f":"+Titelblatt!E9","v":"Strasse"},{"$f":"+Titelblatt!F9","v":"Musterstrasse"},null,null,{"$f":"+Titelblatt!E23","v":" "},{"$f":"+Titelblatt!F23","v":" "}]
[{"$f":"+Titelblatt!E10","v":"Strecke"},{"$f":"+Titelblatt!F10","v":"Musterkreisel bis Musterstrasse"}]
[{"$f":"+Titelblatt!E11","v":"km / Bauwerk"},{"$f":"+Titelblatt!F11","v":"003-002 "}]
[{"$f":"+Titelblatt!E6","v":"Projekttitel"},{"$f":"+Titelblatt!F6","v":"Instandsetzung Musterbrücke …."}]
[]
["Objektspezifischer QM-Plan (Prüfungen durch den Bauherrn bestellt)"]
["Prüfung","Prüfverfahren","Anforderungen","Umfang","Zeitpunkt","Massnahmen bei Nichtgenügen","Bemerkungen"]
["Trockenraumgewicht, Reibungswinkel und Korngrössenverteilung: Gemäss Projektanforderung ","VSS 40 585B:2019\nEN 13286-2:2012\n[SN 670 330-2:2015]","≥ 97% Proctor Standard \nD max. 90 mm Feinstanteil:\n < 0.063 mm; max. 8%","3 St. pro 200 m3","Nach Lieferung","Rückweisung Material","Verordnung über die Vermeidung und Entsorgung von Abfällen (VVEA) SR 814.600 einhalten"]
["Verformungsmodul, ME","VSS 70 317:2019","ME1 ≥30 MN/m2 ","Distanz zwischen Messpunkten ≤ 50 m,\n1 St. pro 600 m2,\nmindestens 2 Messungen pro Bauteil","24 h nach Arbeitsgang","Materialersatz"]
[]
[]
["Anforderungen an die Ausführung"]
["Rubrik","Beschrieb"]
["Einbauprozess Dammschüttung","Aufbau der obersten Schicht (d=1 m),  Korngrösse <150 mm / Kontrolle: 3 St. pro 200 m2 / / Nach Arbeitsgang /  Ausbau und nochmaliger Einbau z. L. UN"]
["Höhenlage Dammschüttung","Höhe , ±40 mm / Unebenheiten unter 4m Latte, ±40 mm / Kontrolle: 3 St. pro 200 m2 / Nach Arbeitsgang / Abweichung +: Ausbau und Korrektur z. L. UN /\nAbweichung -: Materialeinbau"]
["Entmischung","Die Entmischung des Schüttmaterials muss verhindert werden. Es ist eine geringe Fallhöhe anzustreben. "]
["Schichtstärke","Das einzubringende und zu verdichtende Material ist in Schichten (horizontal) einzubringen. Die Definition der Schichtstärke hat einerseits in Abhängigkeit der Tiefenwirkung des Verdichtungsgerätes, andererseits wird sie durch den maximalen Korndurchmesser des Materials bestimmt. Der Korndurchmesser soll kleiner als die Hälfte der losen Schichtstärke sein. "]
["Verdichtung","In der Regel ist von aussen nach innen zu verdichten / Nach Bedarf Verdichtungskontrollen"]
["Schüttgeschwindigkeit","Die Schüttgeschwindigkeit ist vor dem Einbau zu definieren und bei der Ausführung zu überwachen. "]
["Entwässerung","Die Oberfläche ist mit geeignetem Gefälle (rund 6 Prozent) auszuführen und somit geeignet zu entwässern. Zudem ist die Oberfläche stets glatt  zu walzen. "]
["Einbauprozess","Der Einbau darf nicht auf ein durch Niederschlag durchnässtes oder nach Frost aufgeweichtes Planum eingebracht werden. Im obersten Meter der Schüttung ist nur Material mit einem maximalen Korndurchmesser von 150 mm zu verwenden."]

{"sheet":"211","index":11,"n_rows":22,"n_cols":7,"rows_kept":22,"cut":false,"hidden":false,"merged":[[15,1,15,6],[16,1,16,6],[22,1,22,6],[5,1,5,3],[17,1,17,6],[18,1,18,6],[19,1,19,6],[20,1,20,6],[21,1,21,6],[6,1,6,3],[13,0,13,6],[8,0,8,6],[2,1,2,3],[3,1,3,3],[4,1,4,3],[2,5,4,6],[14,1,14,6]]}
[null,null,null,null,null,null,"Zu 001 Inhaltsverzeichnis"]
["200 Baugruben",null,null,null,null,null," 211 Baugrubenabschluss, offen"]
[{"$f":"+Titelblatt!E8","v":"Gemeinde"},{"$f":"+Titelblatt!F8","v":"Musterhausen"},null,null,{"$f":"+Titelblatt!E19","v":"Ingenieurbüro"},{"$f":"+Titelblatt!F19","v":"Musterbüro\nMusterstrasse 15\n8000 Musterhausen"}]
[{"$f":"+Titelblatt!E9","v":"Strasse"},{"$f":"+Titelblatt!F9","v":"Musterstrasse"},null,null,{"$f":"+Titelblatt!E23","v":" "},{"$f":"+Titelblatt!F23","v":" "}]
[{"$f":"+Titelblatt!E10","v":"Strecke"},{"$f":"+Titelblatt!F10","v":"Musterkreisel bis Musterstrasse"}]
[{"$f":"+Titelblatt!E11","v":"km / Bauwerk"},{"$f":"+Titelblatt!F11","v":"003-002 "}]
[{"$f":"+Titelblatt!E6","v":"Projekttitel"},{"$f":"+Titelblatt!F6","v":"Instandsetzung Musterbrücke …."}]
[]
["Objektspezifischer QM-Plan (Prüfungen durch den Bauherrn bestellt)"]
["Prüfung","Prüfverfahren","Anforderungen","Umfang","Zeitpunkt","Massnahmen bei Nichtgenügen","Bemerkungen"]
["Deformationsmessungen angrenzende\nBauwerke / Strassen","Geodätische Vermessung","Höhe ≤ 15 mm\nLage ≤ 15 mm","objektspezifisch","Vor Baubeginn","Zusätzliche Sicherungen"]
[]
[]
["Anforderungen an die Ausführung"]
["Rubrik","Beschrieb"]
["Standfestigkeit Böschung","Keine Deformationen, Rutschungen und Steinschläge (bei Fels) \nBei Lockergestein: Anpassung Neigung. Böschung und/oder Baugrube. Evtl. Beizug Geologe und Anordnung Sicherungsmassnahmen oder Bermen\nBei Fels: Evtl. Anordnung Schutzwände oder Schutznetze"]
["Neigung Böschung","Winkel, ±2° / Abweichung +: Korrektur ; Abweichung -: Ausmass nach Plan"]
["Horizontale Lage Böschungen","Lage, ±100 mm / Abweichung +: Ausmass nach Plan ; Abweichung -: Korrektur"]
["Wasseraustritte an Böschungen","Prüfung und evtl. Anpassung Konzept Grundwasserhaltung. Evtl. Beizug von Hydrogeologe"]
["Oberflächenerosion an Böschungen","Oberflächenabfluss ohne Erosion gewährleisten (Fernhaltung Regenwasser /  laufend /  Überprüfung Qualität der Ausführung. Evtl. Anordnung von Entwässerungsgräben hinter Dammkrone, Abdeckungen, Abdichtungen oder Bepflanzungen"]
["Schutz gegen innere Erosion (bei Böschungen)","Zum Schutz gegen innere Erosion sind allenfalls beispielsweise Drainagen oder Entspannungsbrunnen vorzusehen. Allenfalls ist eine Reduzierung des hydraulischen Gradienten (Grundwasserabsenkung) erforderlich. /  Konzept Wasserhaltung konsultieren."]
["Schutz gegen äussere Erosion (bei Böschungen","Zum Schutz gegen äussere Erosion sind allenfalls Abdichtungen (Spritzbeton), Bepflanzungen, Entwässerungsgräben oder eine Abdeckung mittels Kunststofffolien oder Geotextilien vorzusehen. Diese allfälligen Massnahmen sind in Abhängigkeit der Realisierungsdauer des Bauwerks, der Menge und Intensität der zu erwartenden Niederschläge, der Zusammensetzung des Bodens sowie der Böschungsneigung und -höhe zu bestimmen /  Konsultation geotechnische Unterlagen. \n"]

{"sheet":"212","index":12,"n_rows":23,"n_cols":7,"rows_kept":23,"cut":false,"hidden":false,"merged":[[24,1,24,6],[6,1,6,3],[14,0,14,6],[15,1,15,6],[16,1,16,6],[17,1,17,6],[18,1,18,6],[19,1,19,6],[20,1,20,6],[21,1,21,6],[22,1,22,6],[23,1,23,6],[8,0,8,6],[5,1,5,3],[2,1,2,3],[3,1,3,3],[4,1,4,3],[2,5,4,6]]}
[null,null,null,null,null,null,"Zu 001 Inhaltsverzeichnis"]
["200 Baugruben",null,null,null,null,null,"212 Baugrubenabschluss, Rühlwand gerammt\n"]
[{"$f":"+Titelblatt!E8","v":"Gemeinde"},{"$f":"+Titelblatt!F8","v":"Musterhausen"},null,null,{"$f":"+Titelblatt!E19","v":"Ingenieurbüro"},{"$f":"+Titelblatt!F19","v":"Musterbüro\nMusterstrasse 15\n8000 Musterhausen"}]
[{"$f":"+Titelblatt!E9","v":"Strasse"},{"$f":"+Titelblatt!F9","v":"Musterstrasse"},null,null,{"$f":"+Titelblatt!E23","v":" "},{"$f":"+Titelblatt!F23","v":" "}]
[{"$f":"+Titelblatt!E10","v":"Strecke"},{"$f":"+Titelblatt!F10","v":"Musterkreisel bis Musterstrasse"}]
[{"$f":"+Titelblatt!E11","v":"km / Bauwerk"},{"$f":"+Titelblatt!F11","v":"003-002 "}]
[{"$f":"+Titelblatt!E6","v":"Projekttitel"},{"$f":"+Titelblatt!F6","v":"Instandsetzung Musterbrücke …."}]
[]
["Objektspezifischer QM-Plan (Prüfungen durch den Bauherrn bestellt)"]
["Prüfung","Prüfverfahren","Anforderungen","Umfang","Zeitpunkt","Massnahmen bei Nichtgenügen","Bemerkungen"]
["Deformationsmessungen angrenzende Bauwerke / Strassen","Geodätische Vermessung","Höhe ≤ 15 mm\nLage ≤ 15 mm","objektspezifisch","Vor Baubeginn","Zusätzliche Sicherungen"]
["Erschütterungsmessungen"," VSS 40 312:2019","objektspezifisch","objektspezifisch","objektspezifisch","objektspezifisch"]
[]
[]
["Anforderungen an die Ausführung"]
["Rubrik","Beschrieb"]
["Situative Lage ","Lage, ±100 mm /  laufend / Abweichung +: Ausmass nach Plan : Abweichung -: Korrektur"]
["Einbindetiefe","Einbindetiefe gem. Projektvorgaben / Abweichung -: Korrektur (Nachrammen). Evtl. Beizug Geologe und PV /  Rammprotokoll"]
["Vertikale Lage ","Neigung, ±2° /  Verdrehung,  Keine /  Abweichung +: Korrektur ; Abweichung -: Korrektur / Einstellung Rammung. Evtl. Ausbau und nochmalige Rammung "]
["Setzungsüberwachung ","Höhe ; -10 mm / Während Erstellung Bauwerk / Wechsel der Rammgeräte.\nEvtl. Einstellung Rammung und Änderung Konzept ; Evtl. Anbringung von Risssiegel. Konsultation Rissprotokoll / Messprotokoll"]
["Deformationsüberwachung","Vertikale Auslenkung ; ±10 mm /  Evtl. Beizug Geologe und PV /  Messprotokoll"]
["Dichtheit","Wassereintritt ,  max. Rinnsal /  laufend /  Massnahmen zur offenen Wasserhaltung vorsehen"]
["Einhaltung der Immissionsgrenzwerte","Erschütterungen ,  Gemäss spezifischen Anforderungen /  Lärm , Gemäss spezifischen Anforderungen  /  UVB BAFU \"Baulärm-Richtlinie\" , Vereinigung kantonaler Lärmschutzfachleute \"Anwendungshilfe zur Baulärm-Richtlinie\" / stetig (Dauermessung) / Erschütterungen: Wechsel der Bohrgeräte. Evtl. Einstellung der Arbeiten Lärm: Wechsel der Bohrgeräte. Evtl. Einstellung und zeitliche optimierte Anordnung der Bohrarbeiten / Messprotokoll (Dauerüberwachung) , Tagesrapport"]

{"sheet":"213","index":13,"n_rows":24,"n_cols":7,"rows_kept":24,"cut":false,"hidden":false,"merged":[[23,1,23,6],[24,1,24,6],[18,1,18,6],[19,1,19,6],[20,1,20,6],[21,1,21,6],[22,1,22,6],[6,1,6,3],[14,0,14,6],[15,1,15,6],[16,1,16,6],[17,1,17,6],[8,0,8,6],[5,1,5,3],[2,1,2,3],[3,1,3,3],[4,1,4,3],[2,5,4,6]]}
[null,null,null,null,null,null,"Zu 001 Inhaltsverzeichnis"]
["200 Baugruben",null,null,null,null,null,"213 Baugrubenabschluss, Spundwand"]
[{"$f":"+Titelblatt!E8","v":"Gemeinde"},{"$f":"+Titelblatt!F8","v":"Musterhausen"},null,null,{"$f":"+Titelblatt!E19","v":"Ingenieurbüro"},{"$f":"+Titelblatt!F19","v":"Musterbüro\nMusterstrasse 15\n8000 Musterhausen"}]
[{"$f":"+Titelblatt!E9","v":"Strasse"},{"$f":"+Titelblatt!F9","v":"Musterstrasse"},null,null,{"$f":"+Titelblatt!E23","v":" "},{"$f":"+Titelblatt!F23","v":" "}]
[{"$f":"+Titelblatt!E10","v":"Strecke"},{"$f":"+Titelblatt!F10","v":"Musterkreisel bis Musterstrasse"}]
[{"$f":"+Titelblatt!E11","v":"km / Bauwerk"},{"$f":"+Titelblatt!F11","v":"003-002 "}]
[{"$f":"+Titelblatt!E6","v":"Projekttitel"},{"$f":"+Titelblatt!F6","v":"Instandsetzung Musterbrücke …."}]
[]
["Objektspezifischer QM-Plan (Prüfungen durch den Bauherrn bestellt)"]
["Prüfung","Prüfverfahren","Anforderungen","Umfang","Zeitpunkt","Massnahmen bei Nichtgenügen","Bemerkungen"]
["Deformationsmessungen angrenzende Bauwerke / Strassen","Geodätische Vermessung","Höhe ≤ 15 mm\nLage ≤ 15 mm","objektspezifisch","Vor Baubeginn","Zusätzliche Sicherungen"]
["Erschütterungsmessungen"," VSS 40 312:2019","objektspezifisch","objektspezifisch","objektspezifisch"]
[]
[]
["Anforderungen an die Ausführung"]
["Rubrik","Beschrieb"]
["Situative Lage","Lage, ±100 mm /  laufend / Abweichung +: Ausmass nach Plan : Abweichung -: Korrektur"]
["Einbindetiefe ","Einbindetiefe gem. Projektvorgaben / Abweichung -: Korrektur (Nachrammen). Evtl. Beizug Geologe und PV /  Rammprotokoll"]
["Vertikale Lage ","Neigung, ±2° /  Verdrehung,  Keine /  Abweichung +: Korrektur ; Abweichung -: Korrektur / Einstellung Rammung. Evtl. Ausbau und nochmalige Rammung "]
["Setzungsüberwachung ","Höhe ; -10 mm / Während Erstellung Bauwerk / Wechsel der Rammgeräte.\nEvtl. Einstellung Rammung und Änderung Konzept ; Evtl. Anbringung von Risssiegel. Konsultation Rissprotokoll / Messprotokoll"]
["Deformationsüberwachung ","Vertikale Auslenkung ; ±10 mm /  Verdrehung ;  Keine / Evtl. Beizug Geologe und PV /  Messprotokoll"]
["Dichtheit","Wassereintritt ,  max. Rinnsal /  laufend /  Massnahmen zur offenen Wasserhaltung vorsehen"]
["Einhaltung der Immissionsgrenzwerte ","Erschütterungen ,  Gemäss spezifischen Anforderungen /  Lärm , Gemäss spezifischen Anforderungen  /  UVB BAFU \"Baulärm-Richtlinie\" , Vereinigung kantonaler Lärmschutzfachleute \"Anwendungshilfe zur Baulärm-Richtlinie\" / stetig (Dauermessung) / Erschütterungen: Wechsel der Rammgeräte. Evtl. Einstellung der Arbeiten Lärm: Wechsel der Rammgeräte. Evtl. Einstellung und zeitliche optimierte Anordnung der Rammarbeiten / Messprotokoll (Dauerüberwachung) , Tagesrapport"]
["Diverses","Die Profiltypen, die Länge der Profile sowie die Schlösser sind bei Anlieferung zu kontrollieren respektive zu verifizieren. Des Weiteren ist eine geeignete Lagerung der Profile sicherzustellen. Vor dem Einbau ist zu gewährleisten, dass Abdichtungsmaterialien für die Schlösser vorhanden sind. \nBei Bauteile die direkt an die Spundwand realisiert werden (z. B. Füllbeton), ist vorgängig eine Gleitschicht \n(z. B. Kunststofffolie) auf der Spundwand aufzubringen um das Ziehen derselben zu erleichtern. \nBeim Rückzug der Spundwände ist darauf zu achten, dass ein allfälliger Materialaustrag mittels Zuführung von Fremdmaterial kompensiert wird."]

{"sheet":"214","index":14,"n_rows":22,"n_cols":7,"rows_kept":22,"cut":false,"hidden":false,"merged":[[22,1,22,6],[23,1,23,6],[17,1,17,6],[18,1,18,6],[19,1,19,6],[20,1,20,6],[21,1,21,6],[6,1,6,3],[13,0,13,6],[14,1,14,6],[15,1,15,6],[16,1,16,6],[8,0,8,6],[5,1,5,3],[2,1,2,3],[3,1,3,3],[4,1,4,3],[2,5,4,6]]}
[null,null,null,null,null,null,"Zu 001 Inhaltsverzeichnis"]
["200 Baugruben",null,null,null,null,null,"214 Baugrubenabschluss, Bohrpfahlwand, gebohrte Rühlwand\n"]
[{"$f":"+Titelblatt!E8","v":"Gemeinde"},{"$f":"+Titelblatt!F8","v":"Musterhausen"},null,null,{"$f":"+Titelblatt!E19","v":"Ingenieurbüro"},{"$f":"+Titelblatt!F19","v":"Musterbüro\nMusterstrasse 15\n8000 Musterhausen"}]
[{"$f":"+Titelblatt!E9","v":"Strasse"},{"$f":"+Titelblatt!F9","v":"Musterstrasse"},null,null,{"$f":"+Titelblatt!E23","v":" "},{"$f":"+Titelblatt!F23","v":" "}]
[{"$f":"+Titelblatt!E10","v":"Strecke"},{"$f":"+Titelblatt!F10","v":"Musterkreisel bis Musterstrasse"}]
[{"$f":"+Titelblatt!E11","v":"km / Bauwerk"},{"$f":"+Titelblatt!F11","v":"003-002 "}]
[{"$f":"+Titelblatt!E6","v":"Projekttitel"},{"$f":"+Titelblatt!F6","v":"Instandsetzung Musterbrücke …."}]
[]
["Objektspezifischer QM-Plan (Prüfungen durch den Bauherrn bestellt)"]
["Prüfung","Prüfverfahren","Anforderungen","Umfang","Zeitpunkt","Massnahmen bei Nichtgenügen","Bemerkungen"]
["Deformationsmessungen\nangrenzende\nBauwerke / Strassen","Geodätische Vermessung","Höhe ≤ 15 mm\nLage ≤ 15 mm","objektspezifisch","Vor Baubeginn","Zusätzliche Sicherungen"]
[]
[]
["Anforderungen an die Ausführung"]
["Rubrik","Beschrieb"]
["Situative Lage","Lage, ±100 mm /  laufend / Abweichung +: Ausmass nach Plan : Abweichung -: Korrektur"]
["Einbindetiefe ","Einbindetiefe gem. Projektvorgaben / Abweichung -: Zusätzliche Bohrung. Evtl. Beizug Geologe und PV / "]
["Vertikale Lage","Neigung, ±2° /  Verdrehung,  Keine /  Abweichung +: Korrektur ; Abweichung -: Korrektur\nHöhe; -10 mm / Während Erstellung Bauwerk / Wechsel der Bohrgeräte."]
["Setzungsüberwachung ","Evtl. Änderung Konzept ; Evtl. Anbringung von Risssiegel. Konsultation Rissprotokoll / Messprotokoll"]
["Deformationsüberwachung ","Vertikale Auslenkung ; ±10 mm /  Verdrehung ;  Keine / Evtl. Beizug Geologe und PV /  Messprotokoll"]
["Dichtheit","Wassereintritt,  max. Rinnsal /  laufend /  Massnahmen zur offenen Wasserhaltung vorsehen"]
["Einhaltung der Immissionsgrenzwerte ","Erschütterungen ,  Gemäss spezifischen Anforderungen /  Lärm , Gemäss spezifischen Anforderungen  /  UVB BAFU \"Baulärm-Richtlinie\" , Vereinigung kantonaler Lärmschutzfachleute \"Anwendungshilfe zur Baulärm-Richtlinie\" / stetig (Dauermessung) / Erschütterungen: Wechsel der Bohrgeräte. Evtl. Einstellung der Arbeiten Lärm:. Evtl. Einstellung und zeitliche optimierte Anordnung der Bohrarbeiten / Messprotokoll (Dauerüberwachung) , Tagesrapport"]

{"sheet":"215","index":15,"n_rows":23,"n_cols":7,"rows_kept":23,"cut":false,"hidden":false,"merged":[[22,1,22,6],[23,1,23,6],[24,1,24,6],[17,1,17,6],[18,1,18,6],[19,1,19,6],[20,1,20,6],[21,1,21,6],[6,1,6,3],[13,0,13,6],[14,1,14,6],[15,1,15,6],[16,1,16,6],[8,0,8,6],[5,1,5,3],[2,1,2,3],[3,1,3,3],[4,1,4,3],[2,5,4,6]]}
[null,null,null,null,null,null,"Zu 001 Inhaltsverzeichnis"]
["200 Baugruben",null,null,null,null,null,"215 Baugrubenabschluss, Schlitzwand"]
[{"$f":"+Titelblatt!E8","v":"Gemeinde"},{"$f":"+Titelblatt!F8","v":"Musterhausen"},null,null,{"$f":"+Titelblatt!E19","v":"Ingenieurbüro"},{"$f":"+Titelblatt!F19","v":"Musterbüro\nMusterstrasse 15\n8000 Musterhausen"}]
[{"$f":"+Titelblatt!E9","v":"Strasse"},{"$f":"+Titelblatt!F9","v":"Musterstrasse"},null,null,{"$f":"+Titelblatt!E23","v":" "},{"$f":"+Titelblatt!F23","v":" "}]
[{"$f":"+Titelblatt!E10","v":"Strecke"},{"$f":"+Titelblatt!F10","v":"Musterkreisel bis Musterstrasse"}]
[{"$f":"+Titelblatt!E11","v":"km / Bauwerk"},{"$f":"+Titelblatt!F11","v":"003-002 "}]
[{"$f":"+Titelblatt!E6","v":"Projekttitel"},{"$f":"+Titelblatt!F6","v":"Instandsetzung Musterbrücke …."}]
[]
["Objektspezifischer QM-Plan (Prüfungen durch den Bauherrn bestellt)"]
["Prüfung","Prüfverfahren","Anforderungen","Umfang","Zeitpunkt","Massnahmen bei Nichtgenügen","Bemerkungen"]
["Deformationsmessungen angrenzende\nBauwerke / Strassen","Geodätische Vermessung","Höhe ≤ 15 mm\nLage ≤ 15 mm","objektspezifisch","Vor Baubeginn","Zusätzliche Sicherungen"]
[]
[]
["Anforderungen an die Ausführung"]
["Rubrik","Beschrieb"]
["Standfestigkeit Schlitze","laufend  prüfen"]
["Situative Lage ","Lage, ±100 mm /  laufend / Abweichung +: Ausmass nach Plan : Abweichung -: Korrektur"]
["Einbindetiefe ","Einbindetiefe gem. Projektvorgaben / Abweichung -: Korrektur (Nachrammen). Evtl. Beizug Geologe und PV /  ‚Bohrprotokoll‘"]
["Vertikale Lage","Neigung, ±2° /  Verdrehung,  Keine /  Abweichung +: Korrektur ; Abweichung -: Korrektur / Einstellung Rammung. Evtl. Ausbau und nochmalige Rammung "]
["Setzungsüberwachung ","Höhe ; -10 mm / Während Erstellung Bauwerk / Wechsel der ‚Bohrgeräte‘.\nEvtl. Änderung Konzept ; Evtl. Anbringung von Risssiegel. Konsultation Rissprotokoll / Messprotokoll"]
["Deformationsüberwachung","Vertikale Auslenkung ; ±10 mm /  Evtl. Beizug Geologe und PV /  Messprotokoll"]
["Dichtheit ","Wassereintritt ,  max. Rinnsal /  laufend /  Massnahmen zur offenen Wasserhaltung vorsehen"]
["Immissionsgrenzwerte ","Erschütterungen ,  Gemäss spezifischen Anforderungen /  Lärm , Gemäss spezifischen Anforderungen  /  UVB BAFU \"Baulärm-Richtlinie\" , Vereinigung kantonaler Lärmschutzfachleute \"Anwendungshilfe zur Baulärm-Richtlinie\" / stetig (Dauermessung) / Erschütterungen: Wechsel der Bohrgeräte. Evtl. Einstellung der Arbeiten Lärm: Wechsel der Bohrgeräte. Evtl. Einstellung und zeitliche optimierte Anordnung der Bohrarbeiten / Messprotokoll (Dauerüberwachung) , Tagesrapport"]

{"sheet":"221","index":16,"n_rows":19,"n_cols":7,"rows_kept":19,"cut":false,"hidden":false,"merged":[[5,1,5,3],[2,1,2,3],[3,1,3,3],[4,1,4,3],[2,5,4,6],[19,1,19,6],[20,1,20,6],[17,1,17,6],[18,1,18,6],[6,1,6,3],[13,0,13,6],[14,1,14,6],[15,1,15,6],[16,1,16,6],[8,0,8,6]]}
[null,null,null,null,null,null,"Zu 001 Inhaltsverzeichnis"]
["200 Baugruben",null,null,null,null,null,"221 Wasserhaltung, offen"]
[{"$f":"+Titelblatt!E8","v":"Gemeinde"},{"$f":"+Titelblatt!F8","v":"Musterhausen"},null,null,{"$f":"+Titelblatt!E19","v":"Ingenieurbüro"},{"$f":"+Titelblatt!F19","v":"Musterbüro\nMusterstrasse 15\n8000 Musterhausen"}]
[{"$f":"+Titelblatt!E9","v":"Strasse"},{"$f":"+Titelblatt!F9","v":"Musterstrasse"},null,null,{"$f":"+Titelblatt!E23","v":" "},{"$f":"+Titelblatt!F23","v":" "}]
[{"$f":"+Titelblatt!E10","v":"Strecke"},{"$f":"+Titelblatt!F10","v":"Musterkreisel bis Musterstrasse"}]
[{"$f":"+Titelblatt!E11","v":"km / Bauwerk"},{"$f":"+Titelblatt!F11","v":"003-002 "}]
[{"$f":"+Titelblatt!E6","v":"Projekttitel"},{"$f":"+Titelblatt!F6","v":"Instandsetzung Musterbrücke …."}]
[]
["Objektspezifischer QM-Plan (Prüfungen durch den Bauherrn bestellt)"]
["Prüfung","Prüfverfahren","Anforderungen","Umfang","Zeitpunkt","Massnahmen bei Nichtgenügen","Bemerkungen"]
["Grundwasser- / Hangwasserstände","Piezometermessung","Absenkung gemäss Projektvorgaben","objektspezifisch","laufend","Zusätzliche Wasserhaltung mittels Vakuum oder Filterbrunnen"]
[]
[]
["Anforderungen an die Ausführung"]
["Rubrik","Beschrieb"]
["Rechtsmässigkeit GW-Absenkung","Bewilligungsgesuch "]
["GW-Ableitung bei offener Wasserhaltung","Gefälle ; >1% /  Umhüllung Sickerrohre ;  Geotextil und Filterkies /   Pumpleistung ;  Geeignete Anzahl Pumpen und ausreichende Pumpleistung"]
["GW-Ableitung bei geschlossener Wasserhaltung","Anzahl Bohrung ;  Gem. Konzept /  Konzept Wasserhaltung / Anordnung Bohrungen im Einvernehmen mit PV"]
["Entsorgungskonzept GW","Bewilligung GW-Haltung Entwässerungskonzept Baustelle (UN)  -->  Vergleiche Kapitel 911 Baustellenentwässerung"]

{"sheet":"222","index":17,"n_rows":21,"n_cols":7,"rows_kept":21,"cut":false,"hidden":false,"merged":[[5,1,5,3],[2,1,2,3],[3,1,3,3],[4,1,4,3],[2,5,4,6],[6,1,6,3],[14,0,14,6],[15,1,15,6],[16,1,16,6],[17,1,17,6],[8,0,8,6],[21,1,21,6],[22,1,22,6],[18,1,18,6],[19,1,19,6],[20,1,20,6]]}
[null,null,null,null,null,null,"Zu 001 Inhaltsverzeichnis"]
["200 Baugruben",null,null,null,null,null,"222 Wasserhaltung, Vakuum"]
[{"$f":"+Titelblatt!E8","v":"Gemeinde"},{"$f":"+Titelblatt!F8","v":"Musterhausen"},null,null,{"$f":"+Titelblatt!E19","v":"Ingenieurbüro"},{"$f":"+Titelblatt!F19","v":"Musterbüro\nMusterstrasse 15\n8000 Musterhausen"}]
[{"$f":"+Titelblatt!E9","v":"Strasse"},{"$f":"+Titelblatt!F9","v":"Musterstrasse"},null,null,{"$f":"+Titelblatt!E23","v":" "},{"$f":"+Titelblatt!F23","v":" "}]
[{"$f":"+Titelblatt!E10","v":"Strecke"},{"$f":"+Titelblatt!F10","v":"Musterkreisel bis Musterstrasse"}]
[{"$f":"+Titelblatt!E11","v":"km / Bauwerk"},{"$f":"+Titelblatt!F11","v":"003-002 "}]
[{"$f":"+Titelblatt!E6","v":"Projekttitel"},{"$f":"+Titelblatt!F6","v":"Instandsetzung Musterbrücke …."}]
[]
["Objektspezifischer QM-Plan (Prüfungen durch den Bauherrn bestellt)"]
["Prüfung","Prüfverfahren","Anforderungen","Umfang","Zeitpunkt","Massnahmen bei Nichtgenügen","Bemerkungen"]
["Grundwasser- / Hangwasserstände","Piezometermessung","Absenkung gemäss Projektvorgaben","objektspezifisch","laufend","Zusätzliche Wasserhaltung mittels Vakuum oder Filterbrunnen"]
["Deformationsmessungen angrenzende\nBauwerke / Strassen","Geodätische Vermessung","Höhe ≤ 15 mm\nLage ≤ 15 mm","objektspezifisch","Vor Baubeginn","Wasserhaltung reduzieren"]
[]
[]
["Anforderungen an die Ausführung"]
["Rubrik","Beschrieb"]
["Rechtsmässigkeit GW-Absenkung","Bewilligungsgesuch "]
["GW-Ableitung bei offener Wasserhaltung","Gefälle ; >1% /  Umhüllung Sickerrohre ;  Geotextil und Filterkies /   Pumpleistung ;  Geeignete Anzahl Pumpen und ausreichende Pumpleistung"]
["GW-Ableitung bei geschlossener Wasserhaltung","Anzahl Bohrung ;  Gem. Konzept /  Konzept Wasserhaltung / Anordnung Bohrungen im Einvernehmen mit PV"]
["Entsorgungskonzept GW","Bewilligung GW-Haltung Entwässerungskonzept Baustelle (UN)  -->  Vergleiche Kapitel 911 Baustellenentwässerun"]
["Neutralisation GW","Art ;  Primär mit Kohlendioxid (automatisch)  /  pH-Wert (Endkontrolle) ;  bei Versickerung: 6.5 - 8.5 ;  bei Ableitung in ARA:  6.5 - 9.0 / Dauermessung / Evtl. Beizug Hersteller/Lieferant Neutralisationsanlage "]

{"sheet":"223","index":18,"n_rows":20,"n_cols":7,"rows_kept":20,"cut":false,"hidden":false,"merged":[[5,1,5,3],[2,1,2,3],[3,1,3,3],[4,1,4,3],[2,5,4,6],[20,1,20,6],[21,1,21,6],[18,1,18,6],[19,1,19,6],[6,1,6,3],[14,0,14,6],[15,1,15,6],[16,1,16,6],[17,1,17,6],[8,0,8,6]]}
[null,null,null,null,null,null,"Zu 001 Inhaltsverzeichnis"]
["200 Baugruben",null,null,null,null,null,"223 Wasserhaltung, Filterbrunnen"]
[{"$f":"+Titelblatt!E8","v":"Gemeinde"},{"$f":"+Titelblatt!F8","v":"Musterhausen"},null,null,{"$f":"+Titelblatt!E19","v":"Ingenieurbüro"},{"$f":"+Titelblatt!F19","v":"Musterbüro\nMusterstrasse 15\n8000 Musterhausen"}]
[{"$f":"+Titelblatt!E9","v":"Strasse"},{"$f":"+Titelblatt!F9","v":"Musterstrasse"},null,null,{"$f":"+Titelblatt!E23","v":" "},{"$f":"+Titelblatt!F23","v":" "}]
[{"$f":"+Titelblatt!E10","v":"Strecke"},{"$f":"+Titelblatt!F10","v":"Musterkreisel bis Musterstrasse"}]
[{"$f":"+Titelblatt!E11","v":"km / Bauwerk"},{"$f":"+Titelblatt!F11","v":"003-002 "}]
[{"$f":"+Titelblatt!E6","v":"Projekttitel"},{"$f":"+Titelblatt!F6","v":"Instandsetzung Musterbrücke …."}]
[]
["Objektspezifischer QM-Plan (Prüfungen durch den Bauherrn bestellt)"]
["Prüfung","Prüfverfahren","Anforderungen","Umfang","Zeitpunkt","Massnahmen bei Nichtgenügen","Bemerkungen"]
["Grundwasser- / Hangwasserstände","Piezometermessung","Absenkung gemäss Projektvorgaben","objektspezifisch","laufend","Zusätzliche Wasserhaltung mittels Vakuum oder Filterbrunnen"]
["Deformationsmessungen angrenzende\nBauwerke / Strassen","Geodätische Vermessung","Höhe ≤ 15 mm\nLage ≤ 15 mm","objektspezifisch","Vor Baubeginn","Wasserhaltung reduzieren"]
[]
[]
["Anforderungen an die Ausführung"]
["Rubrik","Beschrieb"]
["Rechtsmässigkeit GW-Absenkung","Bewilligungsgesuch "]
["GW-Ableitung bei offener Wasserhaltung","Gefälle ; >1% /  Umhüllung Sickerrohre ;  Geotextil und Filterkies /   Pumpleistung ;  Geeignete Anzahl Pumpen und ausreichende Pumpleistung"]
["GW-Ableitung bei geschlossener Wasserhaltung","Anzahl Bohrung ;  Gem. Konzept /  Konzept Wasserhaltung / Anordnung Bohrungen im Einvernehmen mit PV"]
["Entsorgungskonzept GW","Bewilligung GW-Haltung Entwässerungskonzept Baustelle (UN)  -->  Vergleiche Kapitel 911 Baustellenentwässerung"]

{"sheet":"231","index":19,"n_rows":22,"n_cols":7,"rows_kept":22,"cut":false,"hidden":false,"merged":[[5,1,5,3],[2,1,2,3],[3,1,3,3],[4,1,4,3],[2,5,4,6],[6,1,6,3],[15,0,15,6],[16,1,16,6],[17,1,17,6],[18,1,18,6],[8,0,8,6],[19,1,19,6],[20,1,20,6],[21,1,21,6],[22,1,22,6],[23,1,23,6]]}
[null,null,null,null,null,null,"Zu 001 Inhaltsverzeichnis"]
["200 Baugruben",null,null,null,null,null,"231 Anker"]
[{"$f":"+Titelblatt!E8","v":"Gemeinde"},{"$f":"+Titelblatt!F8","v":"Musterhausen"},null,null,{"$f":"+Titelblatt!E19","v":"Ingenieurbüro"},{"$f":"+Titelblatt!F19","v":"Musterbüro\nMusterstrasse 15\n8000 Musterhausen"}]
[{"$f":"+Titelblatt!E9","v":"Strasse"},{"$f":"+Titelblatt!F9","v":"Musterstrasse"},null,null,{"$f":"+Titelblatt!E23","v":" "},{"$f":"+Titelblatt!F23","v":" "}]
[{"$f":"+Titelblatt!E10","v":"Strecke"},{"$f":"+Titelblatt!F10","v":"Musterkreisel bis Musterstrasse"}]
[{"$f":"+Titelblatt!E11","v":"km / Bauwerk"},{"$f":"+Titelblatt!F11","v":"003-002 "}]
[{"$f":"+Titelblatt!E6","v":"Projekttitel"},{"$f":"+Titelblatt!F6","v":"Instandsetzung Musterbrücke …."}]
[]
["Objektspezifischer QM-Plan (Prüfungen durch den Bauherrn bestellt)"]
["Prüfung","Prüfverfahren","Anforderungen","Umfang","Zeitpunkt","Massnahmen bei Nichtgenügen","Bemerkungen"]
["Ankerversuch","SIA 267:2013\nSIA 267/1:2013","Verifikation Projektannahmen (äusserer Widerstand, Verankerungslänge, etc.) mit Versuchsergebnisse","3 Stk pro Bauteil","3 AT nach dem Einbau","Ersatz","Fehlerursache Messprotokoll\nBeizug PV und Geologe.\nEvtl. Änderung Sicherungskonzept"]
["Spannproben","SIA 267:2013\nSIA 267/1:2013","Spannproben / Zugproben Kraft-Verformungsverhalten","Bei 5% aller Anker, jedoch Minimum 3 Stk pro Bauteil","3 AT nach Einbau","Neuer zusätzlicher Anker (Ersatz)","Messprotokoll\nBeizug PV und Geologe"]
["Korrosionsschutz elektr. Widerstandsmessung ","SIA 267/1:2013\nEN 1537:2013","Anker mit umfassenden Korrosionsschutz R, ≥ 0,1 MΩ","Alle Anker mit umfassensenden Korrosionsschutz","3 AT nach Einbau","Neuer zusätzlicher Anker (Ersatz)","Messprotokoll\nBeizug PV und Geologe"]
[]
[]
["Anforderungen an die Ausführung"]
["Rubrik","Beschrieb"]
["Rechtmässigkeit Erstellung Anker","Bewilligungsgesuch, Ankerkonzession"]
["Eignung Injektion und Injektionsgut der Anker","Verfüllung gemäss Ankertyp / Eignung /  Injektionsgut gemäss Vorgabe"]
["Lage / Neigung / Länge Bohrloch für Anker","Lage ±75 mm /  Δ Neigung ≤2 ° / Δ Länge ≤1/30 Ankerlänge "]
["Ausführung Korrosionsschutz Temporäranker (n ≤ 2 Jahre)","Bereich Verankerungslänge, Umhüllung Zugglied mit zementösem Injektionsgut ≥20 mm / Bereich freie Ankerlänge, Umhüllung Zugglied mit dauerplastischer Schutzmasse / Bereich Ankerkopf, Schutzmasse "]
["Anker (Zugglieder)","Vor dem Einbau ist darauf zu achten, dass die Zugglieder keine Deformationen und keine Beschädigungen des Korrosionsschutzes aufweisen. Zudem ist eine saubere Lagerung inklusive Schutz vor mechanischen Beschädigungen und äussere Einflüsse (z. B. Bildung von Rost, Schweissspritzern) zu gewährleisten.\nBeim Einbau der Zugglieder ist darauf zu achten, dass die Zugglieder keine Deformationen (knicken) erfahren. Des Weiteren sind die Bohrlöcher sauber und frei von Hindernissen zu halten. Die Abstandshalter sind hinsichtlich der richtigen Lage zu überprüfen"]

{"sheet":"241","index":20,"n_rows":19,"n_cols":7,"rows_kept":19,"cut":false,"hidden":false,"merged":[[5,1,5,3],[2,1,2,3],[3,1,3,3],[4,1,4,3],[2,5,4,6],[17,1,17,6],[18,1,18,6],[19,1,19,6],[20,1,20,6],[6,1,6,3],[13,0,13,6],[14,1,14,6],[15,1,15,6],[16,1,16,6],[8,0,8,6]]}
[null,null,null,null,null,null,"Zu 001 Inhaltsverzeichnis"]
["200 Baugruben",null,null,null,null,null,"241 Nagelwand"]
[{"$f":"+Titelblatt!E8","v":"Gemeinde"},{"$f":"+Titelblatt!F8","v":"Musterhausen"},null,null,{"$f":"+Titelblatt!E19","v":"Ingenieurbüro"},{"$f":"+Titelblatt!F19","v":"Musterbüro\nMusterstrasse 15\n8000 Musterhausen"}]
[{"$f":"+Titelblatt!E9","v":"Strasse"},{"$f":"+Titelblatt!F9","v":"Musterstrasse"},null,null,{"$f":"+Titelblatt!E23","v":" "},{"$f":"+Titelblatt!F23","v":" "}]
[{"$f":"+Titelblatt!E10","v":"Strecke"},{"$f":"+Titelblatt!F10","v":"Musterkreisel bis Musterstrasse"}]
[{"$f":"+Titelblatt!E11","v":"km / Bauwerk"},{"$f":"+Titelblatt!F11","v":"003-002 "}]
[{"$f":"+Titelblatt!E6","v":"Projekttitel"},{"$f":"+Titelblatt!F6","v":"Instandsetzung Musterbrücke …."}]
[]
["Objektspezifischer QM-Plan (Prüfungen durch den Bauherrn bestellt)"]
["Prüfung","Prüfverfahren","Anforderungen","Umfang","Zeitpunkt","Massnahmen bei Nichtgenügen","Bemerkungen"]
["Tragfähigkeit Nägel","SIA 267/1:2013","Kraft-Verformungsverhalten gem. SIA 267/1:2013","3 Stk pro Bauteil","3 AT nach Einbau","Ersatz\nEvtl. Anordnung zusätzlicher Nägel","Beizug PV und Geologe"]
[]
[]
["Anforderungen an die Ausführung"]
["Rubrik","Beschrieb"]
["Materialeigenschaften Spritzbeton","Druckfestigkeit nach 28 t, >25 N/mm2  /  Frosttausalzbeständigkeit,  Keine / Richtigstellung durch Lieferant, allenfalls Wechsel Lieferanten. Evtl. Einforderung Eignungsprüfung"]
["Stärke Spritzbeton","Schichtstärke, >100 mm /  Laufend /  Abweichung -: Korrektur "]
["Ausführung Korrosionsschutz Nägel","Schutzstufe,  Gem. Projektvorgaben / Korrektur"]
["Nägel","Vor dem Einbau ist darauf zu achten, dass die Nägel keine Deformationen und keine Beschädigung des Korrosionsschutzes aufweisen. Zudem ist eine saubere Lagerung inklusive Schutz vor mechanischen Beschädigungen und äussere Einflüsse (z. B. Bildung von Rost, Schweissspritzern) zu gewährleisten. \nBeim Einbau der Nägel ist darauf zu achten, dass die Nägel keine Deformationen (knicken) erfahren. Des Weiteren sind die Bohrlöcher sauber und frei von Hindernissen zu halten."]

{"sheet":"251","index":21,"n_rows":44,"n_cols":7,"rows_kept":44,"cut":false,"hidden":false,"merged":[[8,0,8,6],[33,1,33,6],[34,1,34,6],[5,1,5,3],[2,1,2,3],[3,1,3,3],[4,1,4,3],[23,1,23,6],[6,1,6,3],[14,0,14,6],[15,1,15,6],[16,1,16,6],[17,1,17,6],[18,1,18,6],[19,1,19,6],[20,1,20,6],[21,1,21,6],[28,1,28,6],[29,1,29,6],[30,1,30,6],[26,1,26,6],[27,1,27,6],[22,1,22,6],[2,5,4,6],[31,1,31,6],[32,1,32,6],[44,1,44,6],[45,1,45,6],[42,1,42,6],[43,1,43,6],[36,1,36,6],[37,1,37,6],[38,1,38,6],[39,1,39,6],[40,1,40,6],[41,1,41,6],[35,1,35,6],[24,1,24,6],[25,1,25,6]]}
[null,null,null,null,null,null,"Zu 001 Inhaltsverzeichnis"]
["200 Baugruben",null,null,null,null,null,"251 Pfahlfundation, Bohrpfähle\n"]
[{"$f":"+Titelblatt!E8","v":"Gemeinde"},{"$f":"+Titelblatt!F8","v":"Musterhausen"},null,null,{"$f":"+Titelblatt!E19","v":"Ingenieurbüro"},{"$f":"+Titelblatt!F19","v":"Musterbüro\nMusterstrasse 15\n8000 Musterhausen"}]
[{"$f":"+Titelblatt!E9","v":"Strasse"},{"$f":"+Titelblatt!F9","v":"Musterstrasse"},null,null,{"$f":"+Titelblatt!E23","v":" "},{"$f":"+Titelblatt!F23","v":" "}]
[{"$f":"+Titelblatt!E10","v":"Strecke"},{"$f":"+Titelblatt!F10","v":"Musterkreisel bis Musterstrasse"}]
[{"$f":"+Titelblatt!E11","v":"km / Bauwerk"},{"$f":"+Titelblatt!F11","v":"003-002 "}]
[{"$f":"+Titelblatt!E6","v":"Projekttitel"},{"$f":"+Titelblatt!F6","v":"Instandsetzung Musterbrücke …."}]
[]
["Objektspezifischer QM-Plan (Prüfungen durch den Bauherrn bestellt)"]
["Prüfung","Prüfverfahren","Anforderungen","Umfang","Zeitpunkt","Massnahmen bei Nichtgenügen","Bemerkungen"]
["Tragfähigkeit Pfähle","SIA 267:2013\nSIA 267/1:2013","Gem. spezifischen Anforderungen","1 Stk pro Bauwerk","3 AT nach Erstellung","Ersatz Zusatzpfähle","Messprotokoll\nBeizug PV und Geologe"]
["Qualitäts- und Integritätsprüfungen","SIA 267:2013\nSIA 267/1:2013","Bauwerksklassen II u. III ","10%,\nmind. 3 Stk pro Bauwerk","5 AT nach Erstellung","Ersatz Zusatzpfähle"]
[]
[]
["Anforderungen an die Ausführung"]
["Rubrik","Beschrieb > Allgemein"]
["Verifikation Untergrund mittels Baggerschlitz und/oder Bohrung","Untergrundverhältnisse gem. Projektannahmen /  Geologischer Bericht / Beizug von PV und Geologe"]
[]
["Rubrik","Beschrieb > Mikropfähle"]
["Verifikation Konzept Mikropfähle","Verifikation Mikropfahlabstände, Mikropfahlreihenfolge und -länge, Standzeiten Bohrung, Mantelreibung und Spitzenwiderstand /  Pfählungsplan / Beizug PV und Geologe nach Bedarf"]
["Situative Lage Mikropfähle","Lage, ±75 mm /  Pfählungsplan /  Beizug PV und Geologe nach Bedarf"]
["Ausführung Bohrung","Nennweite,  Gem. spezifischen Anforderungen /  Pfählungsplan /  Beizug PV nach Bedarf"]
["Verifikation Bohrlochtiefe","Tiefe,  gem. spezifischen Anforderungen /  Nach erreichen der Sohle /  Abweichung +: Verfüllung, Abweichung -: Bohrung verlängern. "]
["Eignung Injektionsgut Mikropfähle","Eignung,  Injektionsgut gemäss Vorgabe / Richtigstellung durch Lieferant, allenfalls Wechsel Lieferanten"]
["Verbrauch Injektionsgut Mikropfähle","Verbrauch, ±10 % / Abweichung +: Beizug von PV und Geologe\nAbweichung -: Kontrolle Abmessungen"]
["Lage / Durchmesser / Länge Bewehrungsstab","Lage / Durchmesser,  gem. spezifischen Anforderungen /  Länge, ±20 mm / 1 St. pro Mikropfahl /  Korrektur, evtl. Ersatz. Beizug PV nach Bedarf"]
["Zentrierung / Überdeckung Bewehrungsstab","Gem. spezifischen Anforderungen / Korrektur, evtl. Ersatz. Beizug PV nach Bedarf"]
["Sohle Bohrloch","Es ist zu beachten, dass der Restaushub (z. B. unterste 0.20 m) gleichentags wie der Betoniervorgang zu erfolgen hat. Zudem ist die Sauberkeit der Bohrlochsohle sicherzustellen."]
["Bewehrungsstab","Vor dem Einbau ist darauf zu achten, dass beim Bewehrungsstab keine Beschädigung des Korrosionsschutzes vorliegt. Zudem ist eine saubere Lagerung inklusive Schutz vor mechanischen Beschädigungen zu gewährleisten."]
[]
["Rubrik","Beschrieb > Bohrpfähle"]
["Eignung Beton für Bohrpfähle Ortbeton","Eignung ;  Gem. spezifischen Anforderungen / 5 AT vor Einbau /  Richtigstellung durch Lieferant, allenfalls Wechsel Lieferanten /  Nachweis"]
["Verifikation Konzept Bohrpfähle","Verifikation Bohrpfahlabstände, Bohrpfahlreihenfolge und -länge, Standzeiten Bohrung, Mantelreibung / Spitzenwiderstand /  Pfählungsplan / Beizug PV und Geologe nach Bedarf"]
["Situative Lage Bohrpfähle","Lage ; ±75 mm /  Pfählungsplan /  Vor Arbeitsgang /  Beizug PV nach Bedarf"]
["Ausführung Bohrung","Nennweite ;  Gem. spezifischen Anforderungen /  Pfählungsplan /  Vor Arbeitsgang /  Beizug PV nach Bedarf"]
["Verifikation Bohrlochtiefe","Tiefe ;  Gem. spezifischen Anforderungen /  Nach erreichen der Sohle /  Abweichung +: Verfüllung; Abweichung -: Bohrung verlängern"]
["Verifikation Beton für Bohrpfähle Ortbeton (Frischbetonkontrolle)","Gem. spezifischen Anforderungen / Nichtgenügen: Rückweisung Beton. Richtigstellung durch Lieferant, allenfalls Wechsel Lieferanten\n"]
["Betonverbrauch Bohrpfähle Ortbeton","Verbrauch ; ±10 % / Abweichung +: Beizug von PV und Geologe ; Abweichung -: Kontrolle Abmessungen Bohrpfahl"]
["Höhe Überbeton Bohrpfähle Ortbeton","Höhe ;  Gem. spezifischen Anforderungen /  Laufend /  Während Arbeitsgang /  Abweichung -: Aufbetonierung ; Abweichung +: Korrektur"]
["Bewehrungsüberdeckung Bohrpfähle Ortbeton","Überdeckung ;  verrohrte Bohrpfähle >60 mm ; unverrohrte Bohrpfähle / betonieren in Wasser >75 mm / Laufend / Während Arbeitsgang / Abweichung -: Korrektur; Abweichung +: Keine Massnahme"]
["Abstand Bewehrung Bohrpfähle Ortbeton","Abstand ;  Normalbereich ≤0.40 m ; Pfahlkopf ≤0.15 m / Laufend / Während Arbeitsgang / Abweichung -: Keine Massnahme ; Abweichung +: Korrektur "]
["Lage / Durchmesser Bewehrung Bohrpfähle Ortbeton","Gem. spezifischen Anforderungen /  Laufend /  Während Arbeitsgang /  Korrektur. Evtl. Beizug PV"]
["Sohle Bohrloch (bei Pfahlfundationen)","Es ist zu beachten, dass der Restaushub (z. B. unterste 0.20 m) gleichentags wie der Betoniervorgang zu erfolgen hat. Zudem ist die Sauberkeit der Bohrlochsohle sicherzustellen. "]
["Pfahlkopf","Der Pfahlkopf ist schonend und in genügender Stärke abzuspitzen. Dabei muss eine Beschädigung der Bewehrung ausgeschlossen werden können. Zudem ist zu beachten, dass im Bereich des Pfahlkopfes die Betonqualität homogen ist."]

{"sheet":"252","index":22,"n_rows":19,"n_cols":7,"rows_kept":19,"cut":false,"hidden":false,"merged":[[5,1,5,3],[2,1,2,3],[3,1,3,3],[4,1,4,3],[2,5,4,6],[18,1,18,6],[19,1,19,6],[6,1,6,3],[14,0,14,6],[15,1,15,6],[16,1,16,6],[17,1,17,6],[8,0,8,6]]}
[null,null,null,null,null,null,"Zu 001 Inhaltsverzeichnis"]
["200 Baugruben",null,null,null,null,null,"252 Pfahlfundation, Rammpfähle"]
[{"$f":"+Titelblatt!E8","v":"Gemeinde"},{"$f":"+Titelblatt!F8","v":"Musterhausen"},null,null,{"$f":"+Titelblatt!E19","v":"Ingenieurbüro"},{"$f":"+Titelblatt!F19","v":"Musterbüro\nMusterstrasse 15\n8000 Musterhausen"}]
[{"$f":"+Titelblatt!E9","v":"Strasse"},{"$f":"+Titelblatt!F9","v":"Musterstrasse"},null,null,{"$f":"+Titelblatt!E23","v":" "},{"$f":"+Titelblatt!F23","v":" "}]
[{"$f":"+Titelblatt!E10","v":"Strecke"},{"$f":"+Titelblatt!F10","v":"Musterkreisel bis Musterstrasse"}]
[{"$f":"+Titelblatt!E11","v":"km / Bauwerk"},{"$f":"+Titelblatt!F11","v":"003-002 "}]
[{"$f":"+Titelblatt!E6","v":"Projekttitel"},{"$f":"+Titelblatt!F6","v":"Instandsetzung Musterbrücke …."}]
[]
["Objektspezifischer QM-Plan (Prüfungen durch den Bauherrn bestellt)"]
["Prüfung","Prüfverfahren","Anforderungen","Umfang","Zeitpunkt","Massnahmen bei Nichtgenügen","Bemerkungen"]
["Tragfähigkeit Pfähle","SIA 267:2013\nSIA 267/1:2013","Gem. spezifischen Anforderungen","1 Stk pro Bauwerk","3 AT nach Erstellung","Ersatz Zusatzpfähle","Messprotokoll\nBeizug PV und Geologe"]
["Erschütterungsmessungen","VSS 40 312:2019","objektspezifisch","objektspezifisch","objektspezifisch"]
[]
[]
["Anforderungen an die Ausführung"]
["Rubrik","Beschrieb > Allgemein"]
["Verifikation Baugrund mittels Baggerschlitz , Rammsondierung und/oder Bohrung","Untergrundverhältnisse gem. Projektannahmen /  Geologischer Bericht / Beizug von PV und Geologe"]
["Pfahlkopf","Der Pfahlkopf ist schonend und in genügender Stärke abzuspitzen. Dabei muss eine Beschädigung der Bewehrung ausgeschlossen werden können. Zudem ist zu beachten, dass im Bereich des Pfahlkopfes die Betonqualität homogen ist."]
["Lärm/Erschütterungen","Die Vorgaben aus Kapitel 912 Lärm/Erschütterungen sind zu beachten"]

{"sheet":"311","index":23,"n_rows":20,"n_cols":7,"rows_kept":20,"cut":false,"hidden":false,"merged":[[2,5,4,6],[17,0,17,6],[18,1,18,6],[19,1,19,6],[20,1,20,6],[8,0,8,6],[5,1,5,3],[2,1,2,3],[3,1,3,3],[4,1,4,3],[6,1,6,3]]}
[null,null,null,null,null,null,"Zu 001 Inhaltsverzeichnis"]
["300 Verkehrsanlagen",null,null,null,null,null,"311 Strassenentwässerung"]
[{"$f":"+Titelblatt!E8","v":"Gemeinde"},{"$f":"+Titelblatt!F8","v":"Musterhausen"},null,null,{"$f":"+Titelblatt!E19","v":"Ingenieurbüro"},{"$f":"+Titelblatt!F19","v":"Musterbüro\nMusterstrasse 15\n8000 Musterhausen"}]
[{"$f":"+Titelblatt!E9","v":"Strasse"},{"$f":"+Titelblatt!F9","v":"Musterstrasse"},null,null,{"$f":"+Titelblatt!E23","v":" "},{"$f":"+Titelblatt!F23","v":" "}]
[{"$f":"+Titelblatt!E10","v":"Strecke"},{"$f":"+Titelblatt!F10","v":"Musterkreisel bis Musterstrasse"}]
[{"$f":"+Titelblatt!E11","v":"km / Bauwerk"},{"$f":"+Titelblatt!F11","v":"003-002 "}]
[{"$f":"+Titelblatt!E6","v":"Projekttitel"},{"$f":"+Titelblatt!F6","v":"Instandsetzung Musterbrücke …."}]
[]
["Objektspezifischer QM-Plan (Prüfungen durch den Bauherrn bestellt)"]
["Prüfung","Prüfverfahren","Anforderungen","Umfang","Zeitpunkt","Massnahmen bei Nichtgenügen","Bemerkungen"]
["Dichtigkeit","SIA 190:2017,\nAnhang A3 \nVerfahren [W]","Prüfdruck: 0.50 bar; Prüfdauer 30 Min. ausserhalb Grundwasserschutzzonen","Alle Rohre, Formstücke Muffen und Inspektionsöffnungen","nach Fertigstellung, vor dem Entfernen des Lehrgerüstes (Brücken)","Ersatz des undichten, oder defekten Bauteils"]
["Dichtigkeit","SIA 190:2017,\nAnhang A4 \nVerfahren [L]","Prüfdruck 0.20 bar; Prüfdauer gemäss Tabelle 13\n","Alle Rohre, Formstücke Muffen und Inspektionsöffnungen","nach Fertigstellung, vor dem Entfernen des Lehrgerüstes (Brücken)","Wiederholen der Prüfung und / oder wechseln auf Prüfung mit Wasser [W]","Prüfungen DN >1000 nur von zertifizierten Prüfinstituten"]
["Sanierungs- oder Neubauabnahme","Abnahme Video muss erstellt werden.","Gemäss Quick VSA* :2018","Alle Rohre, Formstücke und Muffen ","Nach der Fertigstellung Leitung eingedeckt","In Absprache mit PL SE festzulegen"]
["Lage","Messung","SIA 190:2017 5.3.2.12 und 5.3.2.13\nToleranzen:\nVertikal ± 20mm\nSeitlich ± 30mm","Alle Rohre, Formstücke und Muffen ","Nach der Fertigstellung Leitung nicht eingedeckt","In Absprache mit PL SE (Projektleiter Strassenentwässerung) festzulegen"]
[]
["* QUIK VSA: Die Richtlinie \"QUIK - Qualität in der Kanalsanierung\" ist Bestandteil der VSA Dokumentation \"Erhaltung von Kanalisationen\"; VSA = Verband schweizerischer Abwasserfachleute"]
[]
["Anforderungen an die Ausführung"]
["Rubrik","Beschrieb"]
["Abnahme","SIA 118/190:2017; Ziff. 6.3"]

{"sheet":"312","index":24,"n_rows":23,"n_cols":7,"rows_kept":23,"cut":false,"hidden":false,"merged":[[19,1,19,6],[20,1,20,6],[21,1,21,6],[22,1,22,6],[24,1,24,6],[23,1,23,6],[14,1,14,6],[15,1,15,6],[16,1,16,6],[17,1,17,6],[18,1,18,6],[6,1,6,3],[12,0,12,6],[13,1,13,6],[2,1,2,3],[3,1,3,3],[4,1,4,3],[5,1,5,3],[8,0,8,6],[2,5,4,6]]}
[null,null,null,null,null,null,"Zu 001 Inhaltsverzeichnis"]
["300 Verkehrsanlagen",null,null,null,null,null,"312 Randabschlüsse"]
[{"$f":"+Titelblatt!E8","v":"Gemeinde"},{"$f":"+Titelblatt!F8","v":"Musterhausen"},null,null,{"$f":"+Titelblatt!E19","v":"Ingenieurbüro"},{"$f":"+Titelblatt!F19","v":"Musterbüro\nMusterstrasse 15\n8000 Musterhausen"}]
[{"$f":"+Titelblatt!E9","v":"Strasse"},{"$f":"+Titelblatt!F9","v":"Musterstrasse"},null,null,{"$f":"+Titelblatt!E23","v":" "},{"$f":"+Titelblatt!F23","v":" "}]
[{"$f":"+Titelblatt!E10","v":"Strecke"},{"$f":"+Titelblatt!F10","v":"Musterkreisel bis Musterstrasse"}]
[{"$f":"+Titelblatt!E11","v":"km / Bauwerk"},{"$f":"+Titelblatt!F11","v":"003-002 "}]
[{"$f":"+Titelblatt!E6","v":"Projekttitel"},{"$f":"+Titelblatt!F6","v":"Instandsetzung Musterbrücke …."}]
[]
["Objektspezifischer QM-Plan (Prüfungen durch den Bauherrn bestellt)"]
["Prüfung","Prüfverfahren","Anforderungen","Umfang","Zeitpunkt","Massnahmen bei Nichtgenügen","Bemerkungen"]
[]
[]
["Anforderungen an die Ausführung"]
["Rubrik","Beschrieb"]
["Betonoberfläche","Die Betonoberfläche ist 1 bis 2 Tage nach der Herstellung, ca. alle 20m‘ mit einem Eisen abzuklopfen, wobei das Eisen ohne Kornverlust zurückfedern muss\nIst die Farbe hellgrau, ist der Beton i.O., wenn dunkelgrau kritisch und wenn gelblich-braun nicht i.O.\nBei nicht genügen ist der Beton zu ersetzen."]
["Natursteine","Qualität wird in Nr. 314 Verkehrsanlagen,  Naturstein abgehandelt"]
["Naturstein","Nur nach freigegebenen Label des Bauherrn."]
["Beton","Empfehlung: Splittbeton 4/8,CEM 42.5, 200kg/m3, w/z 0.37 verwenden und nur in Ausnahmefällen bei Nichtproduktion des Werkes den Beton gemäss SN EN 206-1, C16/20, X0, Dmax.16, Cl 1.0. Lieferscheine auf die richtige Betonqualität kontrollieren."]
["Witterungsverhältnisse","Bei Niederschlägen und in Wasser gefüllten Baugräben darf nicht eingebaut werden."]
["Fugen","Fugen mit frosttausalzbeständigem Zementmörtel erstellen. Die Ausnahme bildet die Bewegungsfugen mit Dichtungsmasse gemäss Normal 661."]
["Frosttausalzbeständiger Mörtel","Der Unternehmen muss der BL eine Produkteblatt bezüglich frosttausaltzbeständigem Fugenmörtel abgeben."]
["Nachbehandlung","Die erstellten Randabschlüsse unterliegen einer fachgerechten Nachbehandlung, wie der Feuchthaltung und dem Schutz vor Austrocknung."]
["Invasive Organismen","Die Vorgaben aus Kapitel 917 Invasive Organismen sind zu berücksichtigen (insbesondere Vorbeugung Ausbreitung Asiatischer Laubholzbockkäfer)"]

{"sheet":"313","index":25,"n_rows":23,"n_cols":7,"rows_kept":23,"cut":false,"hidden":false,"merged":[[21,1,21,6],[22,1,22,6],[24,1,24,6],[16,1,16,6],[17,1,17,6],[18,1,18,6],[19,1,19,6],[20,1,20,6],[23,1,23,6],[6,1,6,3],[12,0,12,6],[13,1,13,6],[14,1,14,6],[15,1,15,6],[8,0,8,6],[5,1,5,3],[2,1,2,3],[3,1,3,3],[4,1,4,3],[2,5,4,6]]}
[null,null,null,null,null,null,"Zu 001 Inhaltsverzeichnis"]
["300 Verkehrsanlagen",null,null,null,null,null,"313 Pflästerungen"]
[{"$f":"+Titelblatt!E8","v":"Gemeinde"},{"$f":"+Titelblatt!F8","v":"Musterhausen"},null,null,{"$f":"+Titelblatt!E19","v":"Ingenieurbüro"},{"$f":"+Titelblatt!F19","v":"Musterbüro\nMusterstrasse 15\n8000 Musterhausen"}]
[{"$f":"+Titelblatt!E9","v":"Strasse"},{"$f":"+Titelblatt!F9","v":"Musterstrasse"},null,null,{"$f":"+Titelblatt!E23","v":" "},{"$f":"+Titelblatt!F23","v":" "}]
[{"$f":"+Titelblatt!E10","v":"Strecke"},{"$f":"+Titelblatt!F10","v":"Musterkreisel bis Musterstrasse"}]
[{"$f":"+Titelblatt!E11","v":"km / Bauwerk"},{"$f":"+Titelblatt!F11","v":"003-002 "}]
[{"$f":"+Titelblatt!E6","v":"Projekttitel"},{"$f":"+Titelblatt!F6","v":"Instandsetzung Musterbrücke …."}]
[]
["Objektspezifischer QM-Plan (Prüfungen durch den Bauherrn bestellt)"]
["Prüfung","Prüfverfahren","Anforderungen","Umfang","Zeitpunkt","Massnahmen bei Nichtgenügen","Bemerkungen"]
[]
[]
["Anforderungen an die Ausführung"]
["Rubrik","Beschrieb"]
["Gebundes Bettungsmaterial","Die Oberfläche ist 1 bis 2 Tage nach der Herstellung an min. 4 Stellen mit einem Eisen abzuklopfen, wobei das Eisen ohne Kornverlust zurückfedernmuss und der Splittbeton kompakt bleiben muss\nIst die Farbe hellgrau, ist der Beton i.O., wenn dunkelgrau kritisch und wenn gelblich-braun nicht i.O.\nBei nicht genügen ist das Einbettungsmaterial zu ersetzen"]
["Natursteine","Qualität wird in Nr. 314 Verkehrsanlagen, Naturstein abgehandelt"]
["Naturstein","Nur nach freigegebenen Label des Bauherrn."]
["Bettungsmaterial","Ungebundene Bauweise: reiner Splitt 4/8\nGebundene Bauweise: Splittbeton 4/8,CEM 42.5, 200kg/m3, w/z 0.37 verwenden. Die Lieferscheine kontrollieren auf die richtige Betonqualität. "]
["Witterungsverhältnisse","Bei etremen Niederschlägen mit Wasseranreicherungen und in Wasser gefüllten Baugräben darf nicht eingebaut werden."]
["Fugen","Gebundene Bauweise: Fugen mit frosttausalzbeständigem Zementmörtel erstellen. Die Ausnahme bilden die Bewegungsfugen mit Dichtungsmasse gemäss Normal 661"]
["Frosttausalzbeständiger Mörtel","Der Unternehmen muss der BL eine Produkteblatt bezüglich frosttausaltzbeständigem Fugenmörtel abgeben."]
["Nachbehandlung","Die vergossenen Pflästerungen unterliegen einer fachgerechten Nachbehandlung, wie der Feuchthaltung und dem Schutz vor Austrocknung."]
["Invasive Organismen","Die Vorgaben aus Kapitel 917 Invasive Organismen sind zu berücksichtigen (insbesondere Vorbeugung Ausbreitung Asiatischer Laubholzbockkäfer)"]

{"sheet":"314","index":26,"n_rows":24,"n_cols":8,"rows_kept":24,"cut":false,"hidden":false,"merged":[[20,1,20,7],[21,1,21,7],[22,1,22,7],[23,1,23,7],[8,0,8,7],[10,7,14,7],[17,0,17,7],[18,1,18,7],[19,1,19,7],[6,1,6,3],[2,1,2,3],[2,5,4,7],[3,1,3,3],[4,1,4,3],[5,1,5,3]]}
[null,null,null,null,null,null,null,"Zu 001 Inhaltsverzeichnis"]
["300 Verkehrsanlagen",null,null,null,null,null,null,"314 Naturstein"]
[{"$f":"+Titelblatt!E8","v":"Gemeinde"},{"$f":"+Titelblatt!F8","v":"Musterhausen"},null,null,{"$f":"+Titelblatt!E19","v":"Ingenieurbüro"},{"$f":"+Titelblatt!F19","v":"Musterbüro\nMusterstrasse 15\n8000 Musterhausen"}]
[{"$f":"+Titelblatt!E9","v":"Strasse"},{"$f":"+Titelblatt!F9","v":"Musterstrasse"},null,null,{"$f":"+Titelblatt!E23","v":" "},{"$f":"+Titelblatt!F23","v":" "}]
[{"$f":"+Titelblatt!E10","v":"Strecke"},{"$f":"+Titelblatt!F10","v":"Musterkreisel bis Musterstrasse"}]
[{"$f":"+Titelblatt!E11","v":"km / Bauwerk"},{"$f":"+Titelblatt!F11","v":"003-002 "}]
[{"$f":"+Titelblatt!E6","v":"Projekttitel"},{"$f":"+Titelblatt!F6","v":"Instandsetzung Musterbrücke …."}]
[]
["Prüfungen"]
["Prüfung","Prüfverfahren","Anforderungen","Umfang","Zeitpunkt","Massnahmen bei Nichtgenügen","Durchführung\nVergütung","Bemerkungen"]
["Druckfestigkeit","EN 1926:2006\nSIA 246.202:2007\n","SN EN 1342:2012 [Nationaler Anhang 2021],\n≥ 100 MPa","mind. 10 Probekörper","Erstprüfung, Leistungserklärung","Rückweisung","Prüfung durch Unternehm.\nLieferant\neinzurechnen","SN EN 1342:2012 ist eine harmoniserte Norm"]
["Frost-Tausalzwiderstand","SIA 262/1:2019, \nAnhang C ","SN EN 1342:2012 [Nationaler Anhang 2021],\nm ≤ 500 g/m2","3 Platten oder 4 Bohrkerne","Erstprüfung, Leistungserklärung","Rückweisung","Prüfung durch Unternehm.\nLieferant\neinzurechnen"]
["Abriebwiderstand","SN EN 14157:2017\nSIA 246.215","SN EN 1342:2012 [Nationaler Anhang 2021],\n≤ 12 cm3/50 cm2","mind. 3 Probekörper","Erstprüfung, Leistungserklärung","Rückweisung","Lieferant\neinzurechnen"]
["Griffigkeit \n(Pendelwert)","EN 13036-4:2011\n[SN 640 512-4:2015]\nVSS 40 512:2019","SN EN 1342:2012 [Nationaler Anhang 2021],\nPendelwert SRT≥ 55 ","mind. 5 Messpunkte\n(Fahrbahnbereich)","Prüfung nach Einbau","Ersatz","O+G\nBauherrenlabor"]
["Griffigkeit (Ausflusszeit)","EN 13036-3:2002\n[SN 640 511-3d:2011]\n","SN EN 1342:2012 [Nationaler Anhang 2021],\n Ausfluszeit ≤ 40 s","mind. 10 Prüfpunkte\n(Fahrbahnbereich)","Prüfung nach Einbau","Ersatz","O+G\nBauherrenlabor"]
["Weitere Prüfungen",null,null,null,null,null,"O+G\nBauherrenlabor","werden durch Bauherrn stichprobenartig durchgeführt"]
[]
["Anforderungen an die Ausführung"]
["Rubrik","Beschrieb"]
["Plastersteine im Aussenbereich","Steingrössen und Masstoleranzen: SN 640 480a:2009, Tabelle 1\nSteinbearbeitung: Pflastersteine aus Naturstein, die in Verkehrsflächen zur Anwendung kommen, müssen bruchraue oder maschinell aufgeraute Seitenflächen und Unterseiten haben."]
["Bruchsteinmauern / Betonmauern mit Vormauerung","siehe Fachhandbuch Kunstbauten TBA ZH, Erscheinungsbild Stützbauwerke"]
["Quader-Blocksteinmauern","siehe Fachhandbuch Kunstbauten TBA ZH, Erscheinungsbild Stützbauwerke"]
["Herkunft Natursteine","Die Unternehmung hat die Herkunft der Natursteine in den Angebotsunterlagen anzugeben. Bei Herkunft der Natursteine aus Steinbrüchen ausserhalb Europas muss zudem vor Auftragserteilung ein anerkanntes Zertifikat eingereicht werden, das von einer unabhängigen Drittpartei geprüft worden ist. Die Zertifikate bzw. Bestätigungen dürfen nicht älter als 36 Monate alt sein. \nZugelassene Zertifikate bzw. Standards:\n- SA8000 (Standard for Social Accountability)  Zertifikat mit vorliegendem externen Audit bestätigt\n- BSCI Code of Conduct (Business Social Compliance Initiative)  Einhaltung des Standards mit vorliegendem externen Audit bestätigt\n- ETI Base Code (Ethical Trading Initiative)  Einhaltung des Standards mit vorlie-gendem externen Audit bestätigt\n- Xertifix  Zertifikat mit vorliegendem externen Audit bestätigt\n- Fair Stone Standard  Zertifikat mit vorliegendem externen Audit bestätigt"]
["Umgang mit Holzverpackungen","In importierten Waren mit Holzverpackungen können Schadorganismen (wie z.B. der Asiatische Laubholzbockkäfer) mitgeführt werden. Dadurch verbundene Schäden sind durch eine alternative Lieferung (Big Bags oder lose) oder einen geeigneten Umgang mit den Verpackungen zu verhindern. Die damit verbundenen Aufwendungen sind in die Einheitspreise einzurechnen. Der Auftragnehmer haftet für Schäden, welche durch unsachgemässe Handhabung oder Unterlassungen seinerseits entstehen."]

{"sheet":"315","index":27,"n_rows":48,"n_cols":8,"rows_kept":48,"cut":false,"hidden":false,"merged":[[46,0,46,7],[47,0,47,7],[40,0,40,1],[41,0,41,1],[42,0,42,1],[43,0,43,1],[44,0,44,1],[45,0,45,1],[29,1,29,7],[30,1,30,7],[31,1,31,7],[32,1,32,7],[39,0,39,1],[35,0,35,7],[36,0,36,7],[37,0,38,1],[28,1,28,7],[8,0,8,7],[17,0,17,2],[19,0,19,7],[20,1,20,7],[21,1,21,7],[22,1,22,7],[23,1,23,7],[24,1,24,7],[25,1,25,7],[26,1,26,7],[27,1,27,7],[6,1,6,3],[2,1,2,3],[2,5,4,7],[3,1,3,3],[4,1,4,3],[5,1,5,3]]}
[null,null,null,null,null,null,null,"Zu 001 Inhaltsverzeichnis"]
["300 Verkehrsanlagen",null,null,null,null,null,null,"315 Walzasphalt"]
[{"$f":"+Titelblatt!E8","v":"Gemeinde"},{"$f":"+Titelblatt!F8","v":"Musterhausen"},null,null,{"$f":"+Titelblatt!E19","v":"Ingenieurbüro"},{"$f":"+Titelblatt!F19","v":"Musterbüro\nMusterstrasse 15\n8000 Musterhausen"}]
[{"$f":"+Titelblatt!E9","v":"Strasse"},{"$f":"+Titelblatt!F9","v":"Musterstrasse"},null,null,{"$f":"+Titelblatt!E23","v":" "},{"$f":"+Titelblatt!F23","v":" "}]
[{"$f":"+Titelblatt!E10","v":"Strecke"},{"$f":"+Titelblatt!F10","v":"Musterkreisel bis Musterstrasse"}]
[{"$f":"+Titelblatt!E11","v":"km / Bauwerk"},{"$f":"+Titelblatt!F11","v":"003-002 "}]
[{"$f":"+Titelblatt!E6","v":"Projekttitel"},{"$f":"+Titelblatt!F6","v":"Instandsetzung Musterbrücke …."}]
[]
["Prüfungen"]
["Prüfung","Prüfverfahren","Anforderungen","Umfang","Zeitpunkt","Massnahmen bei Nichtgenügen","Durchführung\nVergütung","Bemerkungen"]
["Bohrkerne * \nPrüfung durch von der Sektion O+G bestimmtes Labor","Schichtdicke Hohlraumgehalt Verdichtungsgrad Schichtverbund nach Leutner","VSS 40 430:2019","Fundations-, Trag- und Binderschichten:\n1 pro 2500 m2 oder min. 4 pro Einbauetappe\nDeckschichten:\n1 pro 2500 m2 oder min. 6 pro Einbauetappe wobei nur 2 mit Schichtverbund geprüft werden.","Prüfungen nach Einbau","Qualitätsanforderungen bitumenhaltiger Schichten\nTBA 601.03.51","O+G\nBauherrenlabor"]
["Längsebenheit *\nPrüfung durch von der Sektion O+G bestimmtes Labor","EN 13036-6:2008\n[SN 640 516-6:2015]\nVSS 40517:2019","VSS 40525:2019","Streckenlängen über 100 m und für Verkehrsklassen\nT2 bis T6","Prüfung nach Einbau bei sauberer Oberfläche","Qualitätsanforderungen bitumenhaltiger Schichten\nTBA 601.03.51","O+G\nBauherrenlabor"]
["Querebenheit *\nPrüfung durch von der Sektion O+G bestimmtes Labor","EN 13036-8:2008\n[SN 640 516-8:2016]\nVSS 40518:2019","VSS 40525:2019","Bei sämtlichen Bohrkernen oder definierten Stellen","Prüfung nach Einbau bei ungenügenden Resultaten","VSS 40525:2019\nfallweise festzulegen","O+G\nBauherrenlabor","Nullmessung Garantie,\n"]
["Griffigkeitsmessung * \nörtliche Prüfung durch von der Sektion O+G bestimmtes Labor","SRT\nEN 13036-4:2011\n[SN 640 512-4:2015]\nAusfluss\nEN 13036-3:2002\n[SN 640 511-3d:2011]\nSandfleck\nEN 13036-1:2010\n[SN 640 511-1:2015]\nVSS 40512:2019","VSS 40525:2019","punktuelle Prüfung mit 10 Messstellen","Prüfung nach Einbau bei Bindemittel-anreicherungen, Betonoberflächen und Unfallschwerpunkten","Merkblatt Griffigkeit von Strassenoberflächen\nTBA 601.03.50","O+G\nBauherrenlabor","Nullmessung Garantie,\n"]
["Griffigkeitsmessung *  Streckenmessungen durch externe","Skidometer\nEN 15901-10:2009 [SNR 640 513-10:2015]\nSRM (Stuttgartner Reibungsmesser)\nEN 15901-11:2011 [SNR 640 513-11:2015]","VSS 40525:2019","Messrad wird bei konstanter Geschwindigkeit intermittierend blockiert.","Prüfung nach Einbau bei Strecken mit Bindemittel-anreicherungen und Unfallschwerpunkten","Merkblatt Griffigkeit von Strassenoberflächen\nTBA 601.03.50","O+G\nBauherrenlabor","ganze Streckenkontrolle für Nullmessung der Garantie"]
["Mischgut *","Hohlraumgehalt-Marshall Korngrössenverteilung Löslicher Bindemittelgehalt","EN 13108-1:2006 \n[SN 640 431-1-NA:2013]\nEN 13108-5:2006\n[SN 640 431-5-NA:2008]\nEN 13108-7:2006 \n[SN 640 431-7-NA:2008]\nEN 13108-20:2016\n[NA fehlt noch]\nEN 13108-21:2016 \n[NA fehlt noch]","Stufe 2: UN\n1 Untersuchungs- und 1 Rückstellprobe pro Halbtagesetappe\nStufe 1: UN und BH\nJe 2 Untersuchungs- und 2 Rückstellproben pro Tagesetappe","Entnahme beim Einbau Prüfungen nach Einbau","Qualitätsanforderungen bitumenhaltiger Schichten\nTBA 601.03.51","Unternehmerlabor\nSubmission in NPK 112","Grundlage VSS 40 434:2019"]
["Bindemittel *","Erweichungspunkt RuK Penetration\nElastische Rückstellung elastomermodifizierter PmB \nKraft-Duktilitätsprüfung  plastomermodifizierter PmB","Qualitätsanforderungen bitumenhaltiger Schichten\nTBA 601.03.51","1x pro Belagstyp, -schicht und Belagsunterbruch über 2 Wochen","Prüfungen nach Einbau","Qualitätsanforderungen bitumenhaltiger Schichten\nTBA 601.03.51","Unternehmerlabor\nSubmission in NPK 112","Grundlage VSS 40 434:2019"]
["* Durch ein akkreditiertes Labor durchzuführen"]
[]
["Anforderungen an die Ausführung"]
["Rubrik","Beschrieb > Qualitäts- und Eignungsnachweise > siehe auch 'www.walzasphaltzulassung.ch'"]
["Walzasphalt ohne Zulassungsnachweis","Der Unternehmer hat die Typprüfung gemäss EN 13108-20:2016 [Nationaler Anhang fehlt noch] und unterschriebene Mischgutdeklaration der zur Anwendung vorgesehenen Mischgutsorten mit dem Angebot abzugeben. Bei fehlender Abgabe kann nur Walzasphalt mit Zulassungsnachweis geliefert werden.\nDer Zweck der Typprüfung besteht darin, den Nachweis der Eigenschaften der einzusetzenden Bestandteile und der Walzasphaltsorten und -typen zu erbringen.\nDie Objektbezogenheit der für diese Erneuerung verwendeten Mischgutsorten ist mit einer unterschriebenen Mischgutdeklaration nachzuweisen (Unterschriften des Lieferwerkes, akkreditierten Prüflabors und der Originalunterschrift des Unternehmers)."]
["Walzasphalt mit Zulassungsnachweis ","Durch den Besitz der jeweiligen, aktuellen Walzasphalt-Zulassung kann auf die Lieferung der gesamten Typprüfung verzichtet werden. Dadurch ist nur eine Kopie der Mischgutdeklaration mit den Unterschriften des Lieferwerkes, akkreditierten Prüflabors und der Originalunterschrift des Unternehmers erforderlich. Dieses Papier wird so zum Bestandteil des Werkvertrages und ist mindestens 6 Wochen vor Einbau durch die Unternehmung an den Bauherrn abzugeben."]
["Rubrik","Beschrieb > Einbau"]
["Probeeinbau","gemäss Ausschreibung oder gemäss spezieller Vereinbarung bei der Ausführung"]
["eingebaute Schicht","Verdichtungsmessungen mit der Isotopensonde durch Unternehmung während dem Einbau sind einzurechnen. (Eigenkontrolle Unternehmer mit Prüfprotokolle von jedem Belagstyp und -schicht min. 1 Halbtageseinsatz für das Einspielen des Einbauzuges)"]
["Einbauprotokoll","pro Einbauetappe und -schicht durch Unternehmung (inklusive Geh- und Radweg)"]
["Untergrundvorbereitung","Belagsoberfläche für Applikation der Bitumenemulsion oder Haftkleber muss wie folgt sein: gereinigt, trocken und der Taupunkt ≥ 3°C.\nFugenflanken müssen wie folgt sein: gebürstet, trocken, aufgeraut und der Taupunkt ≥ 3°C.\nAnreicherungen von Planiematerial muss im Fugen- und Randabschlussbereich entfernt werden (Planiegenauigkeit in diesem Bereich immer negativ."]
["Witterungsverhältnisse","Deckschichten: Temperatur Unterlage ≥ 10°C und bei Niederschlägen darf nicht eingebaut werden. Bei SDA-Belägen  muss die Temperatur der Unterlage ≥ 15°C sein.\nBinder-, Tragschichten bis 60 mm: Temperatur Unterlage ≥ 10°C und nicht bei Niederschlägen bei denen sich ein geschlossener Wasserfilm auf der Unterlage bildet.\nBinder-, Trag- und Fundationsschichten über 60 mm: Temperatur Unterlage ≥ 5°C, Planie bzw. Unterlage dürfen nicht gefroren oder aufgeweicht sein. Nicht bei Niederschlägen bei denen sich ein geschlossener Wasserfilm auf der Unterlage bildet."]
["Einbau","Der Bauleitung respektive Bauherr ist ein Einbaukonzept mindestens 6 Wochen vor Arbeitsbeginn einzureichen (Ablauf Belagseinbau, Walzenspiel, vibrieren, zulässige Schwingungen, usw.).\nArbeitsfugen sind in einer Einbauetappe fugenlos einzubauen (sämtliche Einbaugeräte sind im Einheitspreis einzurechnen, sofern nicht speziell ausgeschrieben). Abweichungen vom fugenlos einzubauen bedürfen einer Begründung oder einer Bewilligung durch den Bauherr.\nUm mechanische und thermische Entmischung beim Transport und beim Abladen zu verhindern, wird empfohlen thermoisolierte Miuldenfahrzeuge mit Abschiebefunktion zu verwenden.\nAllfällige Thermomulden sind für sämtliche Einbauarbeiten in die Einheitspreise einzurechnen. Ausnahme bilden Abweichungen in den Witterungsverhältnissen oder bei temperaturreduzierten heissen Belägen. Diese Abweichungen müssen durch den Bauherrn genehmigt und in den Einbauprotokollen vermerkt werden.\nDie SDA-Beläge dürfen nicht verschmutzt werden (Bankettarbeiten). Allfällige schützende Abdeckmaterialien sind im Einheitspreis einzurechnen."]
["Verkehrsfreigabe","Der Belag soll vor der Verkehrsfreigabe auf seiner Gesamtdicke ausgekühlt sein. Ausnahmen müssen durch Bauherrn genehmigt und im Einbauprotokoll protokolliert werden.\nBei Verschmutzungen muss die Oberfläche vor Verkehrsübergabe gereinigt werden."]
["Mischgutuntersuchungen","Die Mischgutuntersuchungen ohne spezielle Abmachungen sind innerhalb 7 Tagen dem Bauherrn abzugeben. Folgende  erforderliche Angaben müssen vorhanden sein: \nBaustellenbezeichnung, Auftraggeber, Bauleitung, Mischgutlieferant, Lieferwerk, Unternehmer, Probenehmer, Entnahmeort, km oder Koordinate, eventuell Profil, Einbaurichtung, welche Fahrbahn, Entnahmedatum, Entnahmezeit, Boden- und Lufttemperatur, Witterung, Mischguttemperatur bei Anlieferung, Bindemittelart, -sorte, Zusätze, Lieferscheinnummer, Rezeptur- oder Code-Nummer, Eingangsdatum Prüflabor"]
["Luftreinhaltung","Teerhaltige Beläge und Materialien dürfen auf der Baustelle nicht thermisch aufbereitet werden.\nEs darf nur Bitumen mit geringer Rauchgasneigung in Form von Bitumenemulsionen verwendet werden. Bitumenlösungen sind nicht zulässig. Die Verarbeitungstemperatur ist durch geeignete Bindemittelwahl zu reduzieren."]
[]
[null,null,"Berücksichtigung von weiteren Dockumenten."]
[]
["Anforderungsbereich an das rückgewonne Bindemittel im Mischgut:  Trag- und Fundationsschichten"]
["Bindemitteltyp",null,"Penetration bei 25°","Erweichungspunkt","Elastische Rückstellung",null,null,"Bemerkungen"]
[null,null,"[1/10mm]","[°C]","[%]"]
["70/100",null,"35 … 75","47 … 62"]
["50/70",null,"25 … 55","50 … 65"]
["PmB 65/105-60 (CH-E)",null,"40 … 85","55 … 75","≥ 40"]
["PmB 45/80-65 (CH-E)",null,"30 … 65","60 … 85","≥ 40"]
["PmB 25/55-65 (CH-E)",null,"15 … 45","65 … 85","≥ 40*"]
["10/20",null,"  6 … 16","60 … 85"]
["15/25",null,"15 … 35","65 … 80"]
["Legende:\n* Elastische Rückstellung bei 100 mm Fadenlänge"]
["Beim Einsatz von Ausbauasphalt ist das Ergänzungsbindemittel so zu wählen, dass die angegebenen Anforderungsbereiche eingehalten werden. (Zum Beispiel: Spezialbitumen mit erhöhtem PmB-Anteil)\nBei Verwendung von nicht in der Tabelle enthaltenen Bindemitteln, sind die Anforderungsbereiche vor der Ausführung mit dem Bauherrn festzulegen."]

{"sheet":"316","index":28,"n_rows":43,"n_cols":8,"rows_kept":43,"cut":false,"hidden":false,"merged":[[34,0,35,1],[31,1,31,7],[33,0,33,7],[42,0,42,7],[36,0,36,1],[37,0,37,1],[38,0,38,1],[39,0,39,1],[40,0,40,1],[41,0,41,1],[30,1,30,7],[8,0,8,7],[20,0,20,7],[21,1,21,7],[22,1,22,7],[23,1,23,7],[24,1,24,7],[25,1,25,7],[26,1,26,7],[27,1,27,7],[28,1,28,7],[29,1,29,7],[6,1,6,3],[2,1,2,3],[2,5,4,7],[3,1,3,3],[4,1,4,3],[5,1,5,3]]}
[" ",null,null,null,null,null,null,"Zu 001 Inhaltsverzeichnis"]
["300 Verkehrsanlagen",null,null,null,null,null,null,"316 Gussasphalt"]
[{"$f":"+Titelblatt!E8","v":"Gemeinde"},{"$f":"+Titelblatt!F8","v":"Musterhausen"},null,null,{"$f":"+Titelblatt!E19","v":"Ingenieurbüro"},{"$f":"+Titelblatt!F19","v":"Musterbüro\nMusterstrasse 15\n8000 Musterhausen"}]
[{"$f":"+Titelblatt!E9","v":"Strasse"},{"$f":"+Titelblatt!F9","v":"Musterstrasse"},null,null,{"$f":"+Titelblatt!E23","v":" "},{"$f":"+Titelblatt!F23","v":" "}]
[{"$f":"+Titelblatt!E10","v":"Strecke"},{"$f":"+Titelblatt!F10","v":"Musterkreisel bis Musterstrasse"}]
[{"$f":"+Titelblatt!E11","v":"km / Bauwerk"},{"$f":"+Titelblatt!F11","v":"003-002 "}]
[{"$f":"+Titelblatt!E6","v":"Projekttitel"},{"$f":"+Titelblatt!F6","v":"Instandsetzung Musterbrücke …."}]
[]
["Prüfungen"]
["Prüfung","Prüfverfahren","Anforderungen","Umfang","Zeitpunkt","Massnahmen bei Nichtgenügen","Durchführung\nVergütung","Bemerkungen"]
["Mischgut *","Korngrössenverteilung löslicher Bindemittelgehalt","EN 13108-6:2008 \n[SN 640 441b-NA:2010] \nVSS 40 440c:2019\nEN 13108-20:2016\n[NA fehlt noch]\nEN 13108-21:2016 \n[NA fehlt noch]","pro Einbauetappe\nResultate an O+G","Entnahme beim Einbau Prüfungen nach Einbau","Minderwert oder Ersatz","Unternehmerlabor\nSubmission in NPK 112","Grundlage VSS 40 444:2019 Probenahme UN"]
["Bindemittel *","Erweichungspunkt RuK Penetration Elastische Rückstellung elasto-mermodifizierter PmB\nKraft-Duktilitätsprüfung plastomermodifizierter PmB","siehe nachfolgende Tabelle 'Anforderungsbereich an das rückgewonnene Bindemittel im Mischgut'","1x pro Belagstyp, -schicht und Belagsunterbruch über 2 Wochen\nResultate an O+G","Prüfungen nach Einbau","Minderwert oder Ersatz","Unternehmerlabor\nSubmission in NPK 112","Grundlage SN 640 444:2008 Probenahme UN"]
["Statische\nEindringtiefe *","EN 12697-20:2012 [SN 670 420:2015]","EN 13108-6:2008 \n[SN 640 441b-NA:2010]\noder gemäss Werkvertrag **","pro Einbauetappe oder gemäss Vereinbarung\nResultate an O+G","Prüfungen nach Einbau","Minderwert oder Ersatz","Unternehmerlabor\nSubmission in NPK 112","Probenahme UN"]
["Dynamische\nEindringtiefe *","VSS 40440c:2019\nEN 12970:2000\n[SN 640 442:2005]","EN 13108-6:2008 \n[SN 640 441b-NA:2010]\noder gemäss Werkvertrag **","pro Einbauetappe oder gemäss Vereinbarung nur MA-Typ S und H\nResultate an O+G","Prüfungen nach Einbau","Minderwert oder Ersatz","Unternehmerlabor\nSubmission in NPK 112","Probenahme UN"]
["Längsebenheit *\nPrüfung durch von der Sektion O+G bestimmtes Labor","EN 13036-6:2008\n[SN 640 516-6:2015]\nVSS 40517:2019","VSS 40525:2019 ***","nur Streckenlängen ab 50 m und für Verkehrsklassen T2 bis T6","Prüfung nach Einbau bei sauberer Oberfläche","Minderwert, Nachbesserung oder Ersatz","O+G\nBauherrenlabor"]
["Griffigkeitsmessung * \nörtliche Prüfung durch von der Sektion O+G bestimmtes Labor","SRT\nEN 13036-4:2011\n[SN 640 512-4:2015]\nAusfluss\nEN 13036-3:2002\n[SN 640 511-3d:2002]\nSandfleck\nEN 13036-1:2010\n[SN 640 511-1:2015]\nVSS 40512:2019","VSS 40525:2019","punktuelle Prüfung mit 10 Messstellen","Prüfung nach Einbau bei Bindemittel-anreicherungen, Betonoberflächen und Unfallschwerpunkten","Minderwert, Nachbesserung oder Ersatz","O+G\nBauherrenlabor","Nullmessung und vor Ablauf Garantie, sicherheitsrelevant\n"]
["Legende"]
["* Durch ein akkreditiertes Labor durchzuführen",null,null,"Berücksichtigung von weiteren Dokumenten. (Werkvertrag)"]
["** Von Vorteil werden die Eindringtiefen, je nach Verkehrslast und Situation mit dem Werkvertrag geregelt (Norm weist zu hohe Werte auf). "]
["*** Der Abnahmewert muss je nach Oberflächenbearbeitung und Abstreusplitt gegenüber der Normanforderung nach oben korrigiert werden. "]
["Anforderungen an die Ausführung"]
["Rubrik","Beschrieb"]
["Qualitäts- und Eignungsnachweis","Der Unternehmer hat die Typenprüfunge gemäss EN 13108-20:2016 [Nationales Vorwort und Anhahng fehlen noch] und unterschriebener Mischgutdeklaration der zur Anwendung vorgesehenen Gussasphaltsorten mit dem Angebot abzugeben. Bei fehlender Abgabe muss dieses innert 5 Tagen nach Aufforderung nachgeliefert werden.\nDer Zweck der Typprüfung besteht darin, den Nachweis der Eigenschaften der einzusetzenden Bestandteile und der Walzasphaltsorten und -typen zu erbringen.\nDie Objektbezogenheit der für diese Erneuerung verwendeten Mischgutsorten ist mit einer unterschriebenen Mischgutdeklaration nachzuweisen (Unterschriften des Lieferwerkes, akkreditierten Prüflabors und der Originalunterschrift des Unternehmers)."]
["Schutzschicht","Die Schutzschicht auf die PBD ist an der unteren Schichtstärke der Norm einzubauen. Grund: Bitumen MA und der PBD vermischen sich und der MA fliesst viel besser, besonders bei eher hohem Gefälle."]
["Einbauprotokoll","pro Einbauetappe (Tagesetappe) durch Unternehmung"]
["Geräte","Wenn kein Profilmessgerät oder Nachbearbeitungsgerät für das Einarbeiten des Abstreusplittes ausgeschrieben wurden, sind diese in die Einheitspreise oder Installationsglobale einzurechnen."]
["Einbau","Der Bauleitung ist ein Einbaukonzept mindestens 6 Wochen vor Arbeitsbeginn einzureichen (Ablauf Gussasphalteinbau)."]
["Verkehrsfreigabe","Der Belag soll vor der Verkehrsfreigabe auf seiner Gesamtdicke ausgekühlt sein.\nDer lose, ungebundene Splitt ist vor der Verkehrsübergabe abzusaugen; keine mechanische Einwirkung wie Bürsten, usw."]
["Abstreusplitt","Fahrbahn: Der Unternehmer hat mit einem Abstreusplitt 3/6 zu rechnen.\nGehweg: Der Unternehmer hat mit einem Abstreusplitt 2/4 zu rechnen."]
["Ebenheit","Die Ebenheitsanforderungen und die Höhengenauigkeit sind bei der Ausschreibung zu definieren."]
["Gussasphaltuntersuchung","Die Untersuchungsergebnisse der Gussasphaltprobe muss vor Abnahme des Bauwerkes vorliegen. Neben den Ergebnissen sind folgende Angaben erforderlich: Baustellenbezeichnung, Auftraggeber, Bauleitung, Mischgutlieferant, Lieferwerk, Unternehmer, Probenehmer, Entnahmeort, km oder Koordinate, eventuell Profil, Einbaurichtung, welche Fahrbahn, Entnahmedatum, Entnahmezeit, Boden- und Lufttemperatur, Witterung, Mischguttemperatur bei Anlieferung, Bindemittelart, -sorte, Zusätze, Leiferscheinnummer, Rezeptur- oder Code-Nummer, Eingangsdatum Prüflabor"]
["Luftreinhaltung","Teerhaltige Beläge und Materialien dürfen auf der Baustelle nicht thermisch aufbereitet werden.\nEs darf nur Bitumen mit geringer Rauchgasneigung in Form von Bitumenemulsionen verwendet werden. Bitumenlösungen sind nicht zulässig. Die Verarbeitungstemperatur ist durch geeignete Bindemittelwahl zu reduzieren. Es sind geschlossenen Heizkessel mit Temperaturreglern einzusetzen. Die Verarbeitungstemperaturen\ndürfen folgende Werte nicht überschreiten:\n• Gussasphalt maschineller Einbau: 220°C               • Gussasphalt Handeinbau: 240°C               • Heissbitumen: 190°C"]
[]
["Anforderungsbereich an das rückgewonne Bindemittel im Mischgut: Gussasphalt (MA)"]
["Bindemitteltyp",null,"Penetration bei 25°","Erweichungspunkt","Elastische Rückstellung",null,null,"Bemerkungen"]
[null,null,"[1/10mm]","[°C]","[%]"]
["70/100",null,"40 … 75","45 … 62"]
["50/70",null,"30 … 55","48 … 65"]
["35/50",null,"20 … 50","52 … 70"]
["Spezialbindemittel NV auf Basis PmB 25/55-65 (CH-E)",null,"20 … 50","≥ 65","≥ 30"]
["Spezialbindemittel NV auf Basis PmB 45/80-65 (CH-E)",null,"30 … 70","≥ 60","≥ 30"]
["Spezialbindemittel für hochbelastete MA",null,"15 … 35","≥ 70","≥ 35"]
["Beim Einsatz von Ausbauasphalt ist das Ergänzungsbindemittel so zu wählen, dass die angegebenen Anforderungsbereiche eingehalten werden. (Zum Beispiel: Spezialbitumen mit erhöhtem PmB-Anteil)\nBei Verwendung von nicht in der Tabelle enthaltenen Bindemitteln, sind die Anforderungsbereiche vor der Ausführung mit dem Bauherrn festzulegen."]

{"sheet":"317","index":29,"n_rows":16,"n_cols":7,"rows_kept":16,"cut":false,"hidden":false,"merged":[[6,1,6,3],[13,0,13,6],[14,1,14,6],[15,1,15,6],[8,0,8,6],[5,1,5,3],[2,1,2,3],[3,1,3,3],[4,1,4,3],[2,5,4,6]]}
[null,null,null,null,null,null,"Zu 001 Inhaltsverzeichnis"]
["300 Verkehrsanlagen",null,null,null,null,null,"317 Rohr - und Schachtanlagen"]
[{"$f":"+Titelblatt!E8","v":"Gemeinde"},{"$f":"+Titelblatt!F8","v":"Musterhausen"},null,null,{"$f":"+Titelblatt!E19","v":"Ingenieurbüro"},{"$f":"+Titelblatt!F19","v":"Musterbüro\nMusterstrasse 15\n8000 Musterhausen"}]
[{"$f":"+Titelblatt!E9","v":"Strasse"},{"$f":"+Titelblatt!F9","v":"Musterstrasse"},null,null,{"$f":"+Titelblatt!E23","v":" "},{"$f":"+Titelblatt!F23","v":" "}]
[{"$f":"+Titelblatt!E10","v":"Strecke"},{"$f":"+Titelblatt!F10","v":"Musterkreisel bis Musterstrasse"}]
[{"$f":"+Titelblatt!E11","v":"km / Bauwerk"},{"$f":"+Titelblatt!F11","v":"003-002 "}]
[{"$f":"+Titelblatt!E6","v":"Projekttitel"},{"$f":"+Titelblatt!F6","v":"Instandsetzung Musterbrücke …."}]
[]
["Objektspezifischer QM-Plan (Prüfungen durch den Bauherrn bestellt)"]
["Prüfung","Prüfverfahren","Anforderungen","Umfang","Zeitpunkt","Massnahmen bei Nichtgenügen","Bemerkungen"]
["Rohr- und Schachtanlagen","Gemäss Vorgaben TBA-P+R-BSA","Gemäss Vorgaben TBA-P+R-BSA","Gemäss Vorgaben TBA-P+R-BSA","Vor der Überdeckung der Rohranlagen","Ersatz beschädigter Anlageteile","Sämtliche Angaben sind auf der Homepage des TBA verfügbar"]
[]
[]
["Anforderungen an die Ausführung"]
["Rubrik","Beschrieb"]
["Rohr- und Schachtanlagen","Der Bau wie auch die Qualitätsprüfung der Rohr- und Schachtanlagen erfolgt nach den Normen, Richtlinien und Qualitätsprüfungsdokumenten des TBA-P+R-BSA. Sind diese nicht abschliessend, gelten diejenigen des ASTRA."]

{"sheet":"318","index":30,"n_rows":19,"n_cols":7,"rows_kept":19,"cut":false,"hidden":false,"merged":[[17,1,17,6],[18,1,18,6],[8,0,8,6],[19,1,19,6],[6,1,6,3],[13,0,13,6],[14,1,14,6],[15,1,15,6],[16,1,16,6],[5,1,5,3],[2,1,2,3],[3,1,3,3],[4,1,4,3],[2,5,4,6]]}
[null,null,null,null,null,null,"Zu 001 Inhaltsverzeichnis"]
["300 Verkehrsanlagen",null,null,null,null,null,"318 Elektroanlagen"]
[{"$f":"+Titelblatt!E8","v":"Gemeinde"},{"$f":"+Titelblatt!F8","v":"Musterhausen"},null,null,{"$f":"+Titelblatt!E19","v":"Ingenieurbüro"},{"$f":"+Titelblatt!F19","v":"Musterbüro\nMusterstrasse 15\n8000 Musterhausen"}]
[{"$f":"+Titelblatt!E9","v":"Strasse"},{"$f":"+Titelblatt!F9","v":"Musterstrasse"},null,null,{"$f":"+Titelblatt!E23","v":" "},{"$f":"+Titelblatt!F23","v":" "}]
[{"$f":"+Titelblatt!E10","v":"Strecke"},{"$f":"+Titelblatt!F10","v":"Musterkreisel bis Musterstrasse"}]
[{"$f":"+Titelblatt!E11","v":"km / Bauwerk"},{"$f":"+Titelblatt!F11","v":"003-002 "}]
[{"$f":"+Titelblatt!E6","v":"Projekttitel"},{"$f":"+Titelblatt!F6","v":"Instandsetzung Musterbrücke …."}]
[]
["Objektspezifischer QM-Plan (Prüfungen durch den Bauherrn bestellt)"]
["Prüfung","Prüfverfahren","Anforderungen","Umfang","Zeitpunkt","Massnahmen bei Nichtgenügen","Bemerkungen"]
["elektrische Installationen gem. NIN","SINA (Sicherheitsnachweis)","Elektrizitätsgesetz EG, Niederspannungsintallations- \nverordnung NIV, Niederspannungsinstallations- \nnorm NIN, Werkvorschriften (örtlich)","im Verhätlnis zum Umfang der Anlage ","nach Fertigstellung","Erledigung Pendenzen gem. Mängel SINA","Elektrische Kontrolle durch unabhängiges Kontrollbüro"]
["Verkehrsdatenerfassung/ Hochleistungsstrassen/ Glatteisfrühwarnsystem","Gemäss Vorgaben TBA-P+R-BSA","Gemäss Vorgaben TBA-P+R-BSA","Gemäss Vorgaben TBA-P+R-BSA","Bei Inbetriebnahme","Ersatz beschädigter Anlageteile","Sämtliche Angaben sind auf der Homepage des TBA verfügbar"]
[]
["Anforderungen an die Ausführung"]
["Rubrik","Beschrieb"]
["Elektoanlagen und Installationen","Bau und Installation von Elektroanlagen richten sich nach den Normen, Richtlinien und Qualitätsprüfungsdokumenten des TBA-P+R-BSA. Es sind sämtliche Normen und Vorschriften zur Installation von Elektoanlagen gemäss Schweizerischem Recht einzuhalten. Sind die kantonalen Vorgaben für den Bau von BSA Anlagen auf Hochleistungsstrassen nicht abschliessend, gelten diejenigen des ASTRA."]
["Verkehrsdatenerfassung","Bau und Installation einer Verkehrsdatenerfassung richtet sich nach den Normen, Richtlinien und Qualitätsprüfungsdokumenten des TBA-P+R-BSA."]
["Hochleistungsstrassen","Bau und Installation von BSA Anlagen auf Hochleistungsstrassen richten sich nach den Normen, Richtlinien und Qualitätsprüfungsdokumenten des TBA-P+R-BSA. Sind diese nicht abschliessend, gelten diejenigen des ASTRA."]
["Glatteisfrühwarnsystem","Bau und Installation von Glatteisfrühwarnsystemen richten sich nach den Normen, Richtlinien und Qualitätsprüfungsdokumenten des TBA-P+R-BSA. Sind diese nicht abschliessend, gelten diejenigen des ASTRA."]

{"sheet":"319","index":31,"n_rows":17,"n_cols":7,"rows_kept":17,"cut":false,"hidden":false,"merged":[[2,5,4,6],[17,1,17,6],[13,0,13,6],[14,1,14,6],[15,1,15,6],[16,1,16,6],[8,0,8,6],[2,1,2,3],[3,1,3,3],[4,1,4,3],[5,1,5,3],[6,1,6,3]]}
[null,null,null,null,null,null,"Zu 001 Inhaltsverzeichnis"]
["300 Verkehrsanlagen",null,null,null,null,null,"319 Pumpwerk"]
[{"$f":"+Titelblatt!E8","v":"Gemeinde"},{"$f":"+Titelblatt!F8","v":"Musterhausen"},null,null,{"$f":"+Titelblatt!E19","v":"Ingenieurbüro"},{"$f":"+Titelblatt!F19","v":"Musterbüro\nMusterstrasse 15\n8000 Musterhausen"}]
[{"$f":"+Titelblatt!E9","v":"Strasse"},{"$f":"+Titelblatt!F9","v":"Musterstrasse"},null,null,{"$f":"+Titelblatt!E23","v":" "},{"$f":"+Titelblatt!F23","v":" "}]
[{"$f":"+Titelblatt!E10","v":"Strecke"},{"$f":"+Titelblatt!F10","v":"Musterkreisel bis Musterstrasse"}]
[{"$f":"+Titelblatt!E11","v":"km / Bauwerk"},{"$f":"+Titelblatt!F11","v":"003-002 "}]
[{"$f":"+Titelblatt!E6","v":"Projekttitel"},{"$f":"+Titelblatt!F6","v":"Instandsetzung Musterbrücke …."}]
[]
["Objektspezifischer QM-Plan (Prüfungen durch den Bauherrn bestellt)"]
["Prüfung","Prüfverfahren","Anforderungen","Umfang","Zeitpunkt","Massnahmen bei Nichtgenügen","Bemerkungen"]
["elektrische Installationen gem. NIN","SINA (Sicherheitsnachweis)","Elektrizitätsgesetz EG, Niederspannungsintallations- \nverordnung NIV, Niederspannungsinstallations- \nnorm NIN, Werkvorschriften (örtlich)","im Verhätlnis zum Umfang der Anlage ","nach Fertigstellung","Erledigung Pendenzen gem. Mängel SINA","Elektrische Kontrolle durch unabhängiges Kontrollbüro"]
["Gesamte Anlage","Gemäss Vorgaben TBA-P+R-BSA","Gemäss Vorgaben TBA-P+R-BSA","Gemäss Vorgaben TBA-P+R-BSA","Bei Inbetriebnahme","Ersatz beschädigter Anlageteile","Sämtliche Angaben sind auf der Homepage des TBA verfügbar"]
[]
["Anforderungen an die Ausführung"]
["Rubrik","Beschrieb"]
["Elektoanlagen und Installationen","Bau und Installation von Pumpenanlagen richten sich nach den Normen, Richtlinien und Qualitätsprüfungsdokumenten des TBA-P+R-BSA. Sind diese nicht abschliessend, gelten diejenigen des ASTRA. Es sind sämtliche Normen und Vorschriften zur Installation von Elektoanlagen gemäss Schweizerischem Recht einzuhalten."]
["Gesamte Anlage","Funktionsprüfung gemäss Vorgaben TBA-P+R-BSA"]

{"sheet":"320","index":32,"n_rows":15,"n_cols":7,"rows_kept":15,"cut":false,"hidden":false,"merged":[[6,1,6,3],[13,0,13,6],[14,1,14,6],[8,0,8,6],[15,1,15,6],[5,1,5,3],[2,1,2,3],[3,1,3,3],[4,1,4,3],[2,5,4,6]]}
[" ",null,null,null,null,null,"Zu 001 Inhaltsverzeichnis"]
["300 Verkehrsanlagen",null,null,null,null,null,"320 Oeffentliche Beleuchtung"]
[{"$f":"+Titelblatt!E8","v":"Gemeinde"},{"$f":"+Titelblatt!F8","v":"Musterhausen"},null,null,{"$f":"+Titelblatt!E19","v":"Ingenieurbüro"},{"$f":"+Titelblatt!F19","v":"Musterbüro\nMusterstrasse 15\n8000 Musterhausen"}]
[{"$f":"+Titelblatt!E9","v":"Strasse"},{"$f":"+Titelblatt!F9","v":"Musterstrasse"},null,null,{"$f":"+Titelblatt!E23","v":" "},{"$f":"+Titelblatt!F23","v":" "}]
[{"$f":"+Titelblatt!E10","v":"Strecke"},{"$f":"+Titelblatt!F10","v":"Musterkreisel bis Musterstrasse"}]
[{"$f":"+Titelblatt!E11","v":"km / Bauwerk"},{"$f":"+Titelblatt!F11","v":"003-002 "}]
[{"$f":"+Titelblatt!E6","v":"Projekttitel"},{"$f":"+Titelblatt!F6","v":"Instandsetzung Musterbrücke …."}]
[]
["Objektspezifischer QM-Plan (Prüfungen durch den Bauherrn bestellt)"]
["Prüfung","Prüfverfahren","Anforderungen","Umfang","Zeitpunkt","Massnahmen bei Nichtgenügen","Bemerkungen"]
["elektrische Installationen gem. NIN","SINA (Sicherheitsnachweis)","Elektrizitätsgesetz EG, Niederspannungsintallations- \nverordnung NIV, Niederspannungsinstallations-norm NIN, Werkvorschriften (örtlich)","im Verhätlnis zum Umfang der Anlage ","nach Fertigstellung","Erledigung Pendenzen gem. Mängel SINA","Elektrische Kontrolle durch unabhängiges Kontrollbüro"]
["Gesamte Anlage","Gemäss Vorgaben TBA-P+R-BSA","Gemäss Vorgaben TBA-P+R-BSA","Gemäss Vorgaben TBA-P+R-BSA","Bei Inbetriebnahme","Ersatz beschädigter Anlageteile","Sämtliche Angaben sind auf der Homepage des TBA verfügbar"]
[]
["Anforderungen an die Ausführung"]
["Gesamte Anlage","Bau und Installation von Beleuchtungsanlagen richten sich nach den Normen, Richtlinien und Qualitätsprüfungsdokumenten des TBA-P+R-BSA. Es sind sämtliche Normen und Vorschriften zur Installation von Elektoanlagen gemäss Schweizerischem Recht einzuhalten."]

{"sheet":"321","index":33,"n_rows":17,"n_cols":7,"rows_kept":17,"cut":false,"hidden":false,"merged":[[2,5,4,6],[17,1,17,6],[13,0,13,6],[14,1,14,6],[15,1,15,6],[16,1,16,6],[8,0,8,6],[2,1,2,3],[3,1,3,3],[4,1,4,3],[5,1,5,3],[6,1,6,3]]}
[null,null,null,null,null,null,"Zu 001 Inhaltsverzeichnis"]
["300 Verkehrsanlagen",null,null,null,null,null,"321 Lichtsignalanlagen\n"]
[{"$f":"+Titelblatt!E8","v":"Gemeinde"},{"$f":"+Titelblatt!F8","v":"Musterhausen"},null,null,{"$f":"+Titelblatt!E19","v":"Ingenieurbüro"},{"$f":"+Titelblatt!F19","v":"Musterbüro\nMusterstrasse 15\n8000 Musterhausen"}]
[{"$f":"+Titelblatt!E9","v":"Strasse"},{"$f":"+Titelblatt!F9","v":"Musterstrasse"},null,null,{"$f":"+Titelblatt!E23","v":" "},{"$f":"+Titelblatt!F23","v":" "}]
[{"$f":"+Titelblatt!E10","v":"Strecke"},{"$f":"+Titelblatt!F10","v":"Musterkreisel bis Musterstrasse"}]
[{"$f":"+Titelblatt!E11","v":"km / Bauwerk"},{"$f":"+Titelblatt!F11","v":"003-002 "}]
[{"$f":"+Titelblatt!E6","v":"Projekttitel"},{"$f":"+Titelblatt!F6","v":"Instandsetzung Musterbrücke …."}]
[]
["Objektspezifischer QM-Plan (Prüfungen durch den Bauherrn bestellt)"]
["Prüfung","Prüfverfahren","Anforderungen","Umfang","Zeitpunkt","Massnahmen bei Nichtgenügen","Bemerkungen"]
["elektrische Installationen gem. NIN","SINA (Sicherheitsnachweis)","Elektrizitätsgesetz EG, Niederspannungsintallations- \nverordnung NIV, Niederspannungsinstallations- \nnorm NIN, Werkvorschriften (örtlich)","im Verhätlnis zum Umfang der Anlage ","nach Fertigstellung","Erledigung Pendenzen gem. Mängel SINA","Elektrische Kontrolle durch unabhängiges Kontrollbüro"]
["Gesamte Anlage","Gemäss Vorgaben TBA-P+R-BSA","Gemäss Vorgaben TBA-P+R-BSA","Gemäss Vorgaben TBA-P+R-BSA","Bei Inbetriebnahme","Ersatz beschädigter Anlageteile","Sämtliche Angaben sind auf der Homepage des TBA verfügbar"]
[]
["Anforderungen an die Ausführung"]
["Rubrik","Beschrieb"]
["Elektoanlagen und Installationen","Bau und Installation von Lichtsignalanlagen richten sich nach den Normen, Richtlinien und Qualitätsprüfungsdokumenten des TBA-P+R-BSA. Sind diese nicht abschliessend, gelten diejenigen des ASTRA. Es sind sämtliche Normen und Vorschriften zur Installation von Elektoanlagen gemäss Schweizerischem Recht einzuhalten."]
["Gesamte Anlage","Funktionsprüfung gemäss Vorgaben TBA-P+R-BSA"]

{"sheet":"411","index":34,"n_rows":17,"n_cols":7,"rows_kept":17,"cut":false,"hidden":false,"merged":[[18,1,18,6],[6,1,6,3],[14,0,14,6],[15,1,15,6],[16,1,16,6],[17,1,17,6],[8,0,8,6],[5,1,5,3],[2,1,2,3],[3,1,3,3],[4,1,4,3],[2,5,4,6]]}
[null,null,null,null,null,null,"Zu 001 Inhaltsverzeichnis"]
["400 Beton",null,null,null,null,null,"411 Untergrundvorbereitung"]
[{"$f":"+Titelblatt!E8","v":"Gemeinde"},{"$f":"+Titelblatt!F8","v":"Musterhausen"},null,null,{"$f":"+Titelblatt!E19","v":"Ingenieurbüro"},{"$f":"+Titelblatt!F19","v":"Musterbüro\nMusterstrasse 15\n8000 Musterhausen"}]
[{"$f":"+Titelblatt!E9","v":"Strasse"},{"$f":"+Titelblatt!F9","v":"Musterstrasse"},null,null,{"$f":"+Titelblatt!E23","v":" "},{"$f":"+Titelblatt!F23","v":" "}]
[{"$f":"+Titelblatt!E10","v":"Strecke"},{"$f":"+Titelblatt!F10","v":"Musterkreisel bis Musterstrasse"}]
[{"$f":"+Titelblatt!E11","v":"km / Bauwerk"},{"$f":"+Titelblatt!F11","v":"003-002 "}]
[{"$f":"+Titelblatt!E6","v":"Projekttitel"},{"$f":"+Titelblatt!F6","v":"Instandsetzung Musterbrücke …."}]
[]
["Objektspezifischer QM-Plan (Prüfungen durch den Bauherrn bestellt)"]
["Prüfung","Prüfverfahren","Anforderungen","Umfang","Zeitpunkt","Massnahmen bei Nichtgenügen","Bemerkungen"]
["Haftzugfestigkeit ","SN EN 1542:1999\n(SIA 162.421)","MW ≥ 1.5 N/mm²\nEW ≥ 1.0 N/mm²","Min.1 Dreierserie pro Etappe","Vor der Ausführung","Durchführen weiterer Haftzugversuche und bei weiterem Nichtgenügen ggf. geeignete Massnahmen mit dem PV festlegen","Prüfung best. Beton"]
["Rautiefe","SIA 269/2:2011,\nZiffer 7.4.2.6","Beton: Rm ¼ des Grösstkorndurchmesser\nMörtel : Rm 1x Grösstkorndurchmesser","Min 1 Dreierserie pro Etappe ","Vor der Ausführung","Aufrauen / Reprofilierung oder Ausgleich der Rauhigkeit","Prüfung best. Beton"]
[]
[]
["Anforderungen an die Ausführung"]
["Rubrik","Beschrieb"]
["Zementhautabtrag","Durch geeignete Verfahren, Geräte und Materialien ist sicherzustellen, dass die Oberflächenvorbereitung die Eigenschaften des Betonuntergrundes nicht nachteilig verändert. Strahlverfahren des Untergrundes, Rauhigkeit, Rautiefe usw. gemäss Normen, bzw. gemäss Vorgaben des Projektverfassers."]

{"sheet":"412","index":35,"n_rows":28,"n_cols":7,"rows_kept":28,"cut":false,"hidden":false,"merged":[[28,1,28,6],[29,1,29,6],[17,1,17,6],[18,1,18,6],[19,1,19,6],[20,1,20,6],[21,1,21,6],[23,1,23,6],[22,1,22,6],[24,1,24,6],[25,1,25,6],[26,1,26,6],[27,1,27,6],[16,1,16,6],[2,1,2,3],[3,1,3,3],[4,1,4,3],[5,1,5,3],[6,1,6,3],[12,0,12,6],[13,1,13,6],[14,1,14,6],[15,1,15,6],[8,0,8,6],[2,5,4,6]]}
[null,null,null,null,null,null,"Zu 001 Inhaltsverzeichnis"]
["400 Beton",null,null,null,null,null,"412 Schalung"]
[{"$f":"+Titelblatt!E8","v":"Gemeinde"},{"$f":"+Titelblatt!F8","v":"Musterhausen"},null,null,{"$f":"+Titelblatt!E19","v":"Ingenieurbüro"},{"$f":"+Titelblatt!F19","v":"Musterbüro\nMusterstrasse 15\n8000 Musterhausen"}]
[{"$f":"+Titelblatt!E9","v":"Strasse"},{"$f":"+Titelblatt!F9","v":"Musterstrasse"},null,null,{"$f":"+Titelblatt!E23","v":" "},{"$f":"+Titelblatt!F23","v":" "}]
[{"$f":"+Titelblatt!E10","v":"Strecke"},{"$f":"+Titelblatt!F10","v":"Musterkreisel bis Musterstrasse"}]
[{"$f":"+Titelblatt!E11","v":"km / Bauwerk"},{"$f":"+Titelblatt!F11","v":"003-002 "}]
[{"$f":"+Titelblatt!E6","v":"Projekttitel"},{"$f":"+Titelblatt!F6","v":"Instandsetzung Musterbrücke …."}]
[]
["Objektspezifischer QM-Plan (Prüfungen durch den Bauherrn bestellt)"]
["Prüfung","Prüfverfahren","Anforderungen","Umfang","Zeitpunkt","Massnahmen bei Nichtgenügen","Bemerkungen"]
[]
[]
["Anforderungen an die Ausführung"]
["Rubrik","Beschrieb > Vor dem Betonieren"]
["Schalungsbild","Sämtliche Schalungsdetails sind rechtzeitig / frühzeitig mit der Bauherrschaft zu besprechen. Grundsätzlich sind alle Betonkanten durch Dreikantleisten zu brechen."]
["Schalungstyp","Die eingesetzte Schalung für Sichtbeton muss den Anforderungen des PV bzw. dem genehmigten Schalplan  entsprechen (regelmässiges Schalungsbild / gewünschte Aufteilung / Anordnung der Brettstruktur, Brettanordnung, Anordnung der Bindelöcher, Abdichtung der Schalungsstösse)."]
["Schalungseinlagen","Die Schalungseinlagen (Aussparungen, Ankerkörper, Verankerungen, Brückenabläufe, Entlüftungsleitungen bei Spanngliedern sowie sonstige Ausrüstungsteile) müssen gem. dem Schalplan eingebaut werden."]
["Lagegenauigkeit","Die Schalung muss vor der Freigabe zum Betonieren nach Lage und Höhe kontrolliert werden. Die Lage der Schalung und das Einhalten der Masstoleranzen ist gemäss Normen zu kontrollieren. Die einzuhaltende Genauigkeit beträgt in der Regel +/- 3 mm für benachbarte Schalungselemente."]
["Masstoleranzen","Die Masstoleranzen der Schalung müssen den Angaben des Schalplans sowie den gültigen Norm genügen."]
["Sauberkeit","Die Schalung muss vor dem Betonieren gesäubert / gereinigt werden."]
["Trennmitel","Es dürfen nur bewährte Trennmittel (Schalungsöle etc.) verwendet werden, die keine Flecken oder Verfärbungen am Beton hinterlassen. Sie dürfen sich auch nicht nachteilig auf nachfolgend aufgebrachte Oberflächenschutzsysteme auswirken."]
["Dichtigkeit","Sämtliche Schalungsstösse müssen entsprechend dem verwendeten Schalungstyp abgedichtet werden"]
[]
["Rubrik","Beschrieb > während dem Betonieren"]
["Deformationen","Vor dem Betonieren sind die Schalungen und ihre Verankerungen auf ihre Funktionstüchtigkeit zu kontrollieren. Bei Brücken und anderen wichtigen Tragwerken sind die Verformungen der Schalung während des Betonierens und während dem Vorspannen ständig zu beobachten und durch Kontrolle der Lage und durch Nivellements zu kontrollieren, damit bei einem etwaigen Nachgeben sofort Gegenmassnahmen ergriffen werden können. Die zulässigen Deformationen (gem. Vorgaben PV) und Normen müssen eingehalten werden."]
[]
["Rubrik","Beschrieb > nach dem Betonieren"]
["Ausschalfristen","Die Ausschalfrist darf grundsätzlich und auch in besonderen Fällen nicht vor 72 Stunden erfolgen (z.B. Wochentakt). Entsprechend längere Ausschalfristen werden z.B. bei Platten, Überbauten etc. erforderlich. Hier müssen die Vorgaben des PV, bzw. die Empfehlungen der Norm SIA 262 beachtet / eingehalten werden. Bei Spannbetonbauten ist das Spannprogramm zu beachten."]

{"sheet":"413","index":36,"n_rows":32,"n_cols":7,"rows_kept":32,"cut":false,"hidden":false,"merged":[[33,1,33,6],[5,1,5,3],[2,1,2,3],[3,1,3,3],[4,1,4,3],[6,1,6,3],[13,0,13,6],[14,1,14,6],[15,1,15,6],[16,1,16,6],[32,1,32,6],[17,1,17,6],[18,1,18,6],[2,5,4,6],[29,1,29,6],[30,1,30,6],[8,0,8,6],[31,1,31,6],[23,1,23,6],[25,1,25,6],[24,1,24,6],[19,1,19,6],[20,1,20,6],[26,1,26,6],[27,1,27,6],[28,1,28,6],[22,1,22,6]]}
[null,null,null,null,null,null,"Zu 001 Inhaltsverzeichnis"]
["400 Beton",null,null,null,null,null,"413 Betonstahl"]
[{"$f":"+Titelblatt!E8","v":"Gemeinde"},{"$f":"+Titelblatt!F8","v":"Musterhausen"},null,null,{"$f":"+Titelblatt!E19","v":"Ingenieurbüro"},{"$f":"+Titelblatt!F19","v":"Musterbüro\nMusterstrasse 15\n8000 Musterhausen"}]
[{"$f":"+Titelblatt!E9","v":"Strasse"},{"$f":"+Titelblatt!F9","v":"Musterstrasse"},null,null,{"$f":"+Titelblatt!E23","v":" "},{"$f":"+Titelblatt!F23","v":" "}]
[{"$f":"+Titelblatt!E10","v":"Strecke"},{"$f":"+Titelblatt!F10","v":"Musterkreisel bis Musterstrasse"}]
[{"$f":"+Titelblatt!E11","v":"km / Bauwerk"},{"$f":"+Titelblatt!F11","v":"003-002 "}]
[{"$f":"+Titelblatt!E6","v":"Projekttitel"},{"$f":"+Titelblatt!F6","v":"Instandsetzung Musterbrücke …."}]
[]
["Objektspezifischer QM-Plan (Prüfungen durch den Bauherrn bestellt)"]
["Prüfung","Prüfverfahren","Anforderungen","Umfang","Zeitpunkt","Massnahmen bei Nichtgenügen","Bemerkungen"]
[]
[]
[]
["Anforderungen an die Ausführung"]
["Rubrik","Beschrieb  > Material"]
["Betonstahl","Die Betonstähle müssen im Register normkonformer Betonstähle aufgeführt sein. Es gelten die Normen "]
[]
["Rubrik","Beschrieb  > nach der Lieferung"]
["Visuelle Überprüfung ","Bei jeder Betonstahllieferung müssen die Produktangaben überprüft werden. Die Betonstähle müssen im Register der normenkonformen Betonstähle aufgeführt sein. Es sind Betonstähle gem. Norm zu verwenden."]
["Erkennbare Schäden ","Der gelieferte Betonstahl darf keine erkennbaren Schäden aufweisen (z.B. tiefe Rostnarben, Quetschungen, Knicke)"]
["Lagerung","Die Betonstähle müssen bodenfrei gelagert und vor Verschmutzung geschützt werden."]
[]
["Rubrik","Beschrieb  > während und nach dem Einbau"]
["Plankonformität","Die Form, die Lage und Anzahl und der Querschnitt des Betonstahls muss mit den Bewehrungszeichnungen / Ausführungsplänen übereinstimmen."]
["Prüfen der Vollständigkeit und Lage der Bewehrung durch den PV","Die Prüfung der Vollständigkeit und Lage der Bewehrung durch den PV (sog. Bewehrungsabnahme) erfolgt unter der Zuhilfenahme des Bewehrungsplan und der Bewehrungsliste visuell, mit Meter und Abbiegeschablonen rechtzeitig vor jeder Betonieretappe, so dass genügend Zeit für Korrekturen vorhanden ist. Bei grossen, respektiv komplexen Objekten wird empfohlen die Abnahme etappiert durchzuführen und es ist das TBA frühzeitig über die Abnahmen zu informieren. Die Erkenntnisse der Abnahme werden im Abnahmeprotokoll festgehalten."]
["Stabilität","Die Bewehrung muss zu einem festen Gerippe verbunden werden, sodass es zu keinen Verschiebungen während des Einbringens und Verdichtens des Betons kommen kann. Die obere Bewehrung ist gegen Herunterdrücken zu sichern. Die eingebaute (verlegte) Bewehrung darf nur über lastverteilende Bohlen betreten werden."]
["Betonüberdeckung / Distanzhalter","Die vorgeschriebene Betonüberdeckung muss entsprechend der Norm SIA 261 oder gemäss speziellen Projektvorgaben ausgeführt und durch geeignete Abstandhalter gewährleistet werden.  Als Abstandhalter sind ausschliesslich FT-Betonklötzli mit nicht rostendem Bindedraht zu verwenden. Als Distanzhalter für die Bewehrungslagen sind stabile Stützbügel zu verwenden."]
["Bindedrähte","Die Bindedrähte sind gegen das Bauteilinnere zu biegen. Lose auf dem Schalboden liegende Bindedrähte müssen vor dem Betonieren mittels Druckluft oder Magnete entfernt werden. "]
["Rüttel- / Vibriergassen bzw. Lücken","Grundsätzlich sind ausreichende Rüttel- / Vibrierlücken freizuhalten, insbesondere im Bereich von Übergreifungsstössen."]
["Abbiegen","Ein unkontrolliertes Abbiegen der Bewehrung mit Wärme ist unzulässig"]
["Schweissen","Schweissungen an tragender Bewehrung von ermüdungsbeanspruchten bzw. ermüdungsgefährdeten Bauteilen sind nicht zulässig. Grundsätzlich sind Schweissungen durch Vorprüfungen nachzuweisen; zudem sind eine Schweissüberwachung und Arbeitsproben unerlässlich und haben nach den Normen zu erfolgen. "]
["Qualität / Stahlgüte","Die Stahlgüte muss den Projektvorgaben entsprechen. \nFür die bergseitige Anschlussbewehrung bei Winkelstützmauern (Anschluss Fundament/Mauer) bzw. dem Anschluss eines Sporns ist in der Regel ein nichtrostender Stahl  zu verwenden."]

{"sheet":"414","index":37,"n_rows":33,"n_cols":7,"rows_kept":33,"cut":false,"hidden":false,"merged":[[34,1,34,6],[5,1,5,3],[2,1,2,3],[3,1,3,3],[4,1,4,3],[6,1,6,3],[13,0,13,6],[14,1,14,6],[15,1,15,6],[17,1,17,6],[16,1,16,6],[18,1,18,6],[33,1,33,6],[24,1,24,6],[30,1,30,6],[31,1,31,6],[32,1,32,6],[25,1,25,6],[26,1,26,6],[27,1,27,6],[28,1,28,6],[29,1,29,6],[2,5,4,6],[20,1,20,6],[21,1,21,6],[22,1,22,6],[23,1,23,6],[19,1,19,6],[8,0,8,6]]}
[null,null,null,null,null,null,"Zu 001 Inhaltsverzeichnis"]
["400 Beton",null,null,null,null,null,"414 Vorspannung"]
[{"$f":"+Titelblatt!E8","v":"Gemeinde"},{"$f":"+Titelblatt!F8","v":"Musterhausen"},null,null,{"$f":"+Titelblatt!E19","v":"Ingenieurbüro"},{"$f":"+Titelblatt!F19","v":"Musterbüro\nMusterstrasse 15\n8000 Musterhausen"}]
[{"$f":"+Titelblatt!E9","v":"Strasse"},{"$f":"+Titelblatt!F9","v":"Musterstrasse"},null,null,{"$f":"+Titelblatt!E23","v":" "},{"$f":"+Titelblatt!F23","v":" "}]
[{"$f":"+Titelblatt!E10","v":"Strecke"},{"$f":"+Titelblatt!F10","v":"Musterkreisel bis Musterstrasse"}]
[{"$f":"+Titelblatt!E11","v":"km / Bauwerk"},{"$f":"+Titelblatt!F11","v":"003-002 "}]
[{"$f":"+Titelblatt!E6","v":"Projekttitel"},{"$f":"+Titelblatt!F6","v":"Instandsetzung Musterbrücke …."}]
[]
["Objektspezifischer QM-Plan (Prüfungen durch den Bauherrn bestellt)"]
["Prüfung","Prüfverfahren","Anforderungen","Umfang","Zeitpunkt","Massnahmen bei Nichtgenügen","Bemerkungen"]
["Spannvorgang / Injektionsgut / Aufzeichnungen","Gemäss Spannsystem Alle wichtigen Beobachtungen, Kontrollen und Messungen während des Spannvorgangs - Spannfolge / Reihenfolge, Spannkräfte und gemessene Dehnwege - müssen im Spannprotokoll festgehalten werden. Die injizierte Füllgutmenge ist zu protokollieren.","Die gemessene Abweichung des Dehnwegs / der Spannkraft vom berechneten Sollwert darf bei einem einzelnen Spannglied nicht mehr als 15 %  - im Mittel über alle im gleichen Querschnitt verlaufenden Spannglieder nicht mehr als 5 % betragen. Die eingebrachte Füllgutmenge darf die theoretische Menge um höchstens 5% unterschreiten.","Alle Spannglieder",null,"Überprüfung des Systems"]
[]
[]
["Anforderungen an die Ausführung"]
["Rubrik","Beschrieb > Material"]
["Spannstahl, Spannverfahren, Spannsysteme","Zulassung SBB, ASTRA und Normen"]
["Injektionsgut","Gemäss Normen"]
[]
["Rubrik","Beschrieb > Vorspannung / Spannvorgang"]
["Lage der Hüllrohre","Falls die Hüllrohre leer einbetoniert werden sind die  Auftriebsicherungen zu dimensionieren und zu kontrollieren."]
["Spannprogramm / Spannanweisung","Das Aufbringen der Vorspannkräfte hat gem. einem vorgängig festgelegten Spannprogramm / Spannanweisung zu erfolgen. Die (geprüfte und freigegebene) Spannanweisung für die Teil- und Endvorspannung muss auf der Baustelle vorliegen. Darin müssen entsprechende Hinweise über das Lösen  / Absenken / Ausrüsten des Trag- bzw. Lehrgerüstes vermerkt sein. Diese Hinweise sind zu beachten. Die technische Dokumentation für das Spannverfahren muss auf der Baustelle vorliegen. "]
["Betonfestigkeit","Vor dem Aufbringen der Teil- oder der Endvorspannung ist die ausreichende Festigkeit des Betons durch Erhärtungsprüfungen nachzuweisen"]
["Spannvorgang / Aufzeichnungen","Alle wichtigen Beobachtungen, Kontrollen und Messungen während des Spannvorgangs - Spannfolge / Reihenfolge, Spann¬kräfte und gemessene Dehnwege - müssen im Spannprotokoll festgehalten werden. \nDie gemessene Abweichung des Dehnwegs / der Spannkraft vom berechneten Sollwert darf bei einem einzelnen Spannglied nicht mehr als 15 %  - im Mittel über alle im gleichen Querschnitt verlaufenden Spannglieder nicht mehr als 5 % betragen"]
["Fristen","Die Fristen zwischen dem Einbau bzw. dem Spannen und Verpressen der Spannglieder sind kurz zu halten, um Korrosionsschäden am Spannstahl und den Hüllrohren zu vermeiden. Die Randbedingungen sind gem. Norm einzuhalten. Bei bauablaufbedingten, längeren Fristen sind spezielle Schutzmassnahmen gegen Korrosion erforderlich."]
[]
["Rubrik","Beschrieb > Verpress- / Injektionsarbeiten"]
["Zertifikat","Vor dem Verpressen / Injizieren muss das Zertifikat für den Verpressmörtel / Injektionsgut vorliegen"]
["Durchgängigkeit","Die Spannkanäle sind  vor dem Verpressen durch geeignete Massnahmen - z.B. Spülen mit Druckluft - auf freien Durchgang zu prüfen und - falls erforderlich - freigängig zu machen. "]
["Wasser","Bei Frostgefahr muss eventuell vorhandenes Wasser aus den Hüllrohren entfernt werden. Bei Temperaturen < + 5° Celsius sind besondere Massnahmen zu treffen\n (Norm beachten)"]
["Aufbereitung Verpressmörtel / Injektions- bzw. Füllgut","Die Aufbereitung des Füllguts ist mit geeigneten, kontinuierlich arbeitenden Misch- und Fördergeräten durchzuführen. Zur Kontrolle der gewählten Zusammensetzung des Füllguts ist dessen Konsistenz bzw. Fliessfähigkeit zu prüfen. Weiterhin müssen zusätzlich die Wasserausscheidung, die Volumenänderung (Absetz- bzw. Expansionsmass) sowie die Druckfestigkeit systematisch kontrolliert und protokolliert werden (Grundlage hierfür sind die Normen)"]
["Verpressen / Injizieren","Das Verpressen / Injizieren hat baldmöglichst nach dem Vorspannen zu erfolgen (siehe auch Fristen). Zur Gewährleistung der Tragsicherheit und der Dauerhaftigkeit ist es entscheidend, dass die Hüllrohre der Spannglieder mit Füllgut vollständig verfüllt sind. Das satte Verfüllen muss einerseits bei allen Entlüftungsstutzen überprüft werden (Mörtelaustritt bei allen Entlüftungsstutzen), andererseits ist der Verbrauch an Füllgut sorgfältig zu kontrollieren und zu protokollieren."]
["Rückstellproben","Für ggf. später durchzuführende Nachuntersuchungen müssen Rückstellproben der Ausgangsstoffe des Verpressmörtels / Füllguts entnommen und vorschriftsmässig gekennzeichnet und aufbewahrt werden."]
["Aufzeichnungen","Alle wichtigen Beobachtungen während dem Verpressen und alle wichtigen, massgebenden Kennwerte des Füllguts sind in einem Verpress- / Injektionsprotokoll festzuhalten."]

{"sheet":"415","index":38,"n_rows":52,"n_cols":7,"rows_kept":52,"cut":false,"hidden":false,"merged":[[5,1,5,3],[2,1,2,3],[3,1,3,3],[4,1,4,3],[9,0,9,6],[2,5,4,6],[6,1,6,3],[52,1,52,6],[53,1,53,6],[40,1,40,6],[41,1,41,6],[42,1,42,6],[45,1,45,6],[43,1,43,6],[47,1,47,6],[48,1,48,6],[49,1,49,6],[50,1,50,6],[51,1,51,6],[46,1,46,6],[38,0,38,6],[39,1,39,6],[44,1,44,6],[10,0,10,6],[25,0,25,6],[26,0,26,6]]}
[null,null,null,null,null,null,"Zu 001 Inhaltsverzeichnis"]
["400 Beton",null,null,null,null,null,"415 Frisch- und Festbeton"]
[{"$f":"+Titelblatt!E8","v":"Gemeinde"},{"$f":"+Titelblatt!F8","v":"Musterhausen"},null,null,{"$f":"+Titelblatt!E19","v":"Ingenieurbüro"},{"$f":"+Titelblatt!F19","v":"Musterbüro\nMusterstrasse 15\n8000 Musterhausen"}]
[{"$f":"+Titelblatt!E9","v":"Strasse"},{"$f":"+Titelblatt!F9","v":"Musterstrasse"},null,null,{"$f":"+Titelblatt!E23","v":" "},{"$f":"+Titelblatt!F23","v":" "}]
[{"$f":"+Titelblatt!E10","v":"Strecke"},{"$f":"+Titelblatt!F10","v":"Musterkreisel bis Musterstrasse"}]
[{"$f":"+Titelblatt!E11","v":"km / Bauwerk"},{"$f":"+Titelblatt!F11","v":"003-002 "}]
[{"$f":"+Titelblatt!E6","v":"Projekttitel"},{"$f":"+Titelblatt!F6","v":"Instandsetzung Musterbrücke …."}]
[]
["Beton allgemein"]
["Objektspezifischer QM-Plan (Prüfungen durch den Bauherrn bestellt)"]
["In der Regel sind die Prüfungen pro Betonfamilie in Übereinstimmung mit SN EN 13670:2009 für die Überwachungsklasse 2 durchzuführen."]
["Prüfung","Prüfverfahren","Anforderungen","Umfang","Zeitpunkt","Massnahmen bei Nichtgenügen","Bemerkungen"]
["Konsistenz","SN EN 12350-5:2009, \nNorm SIA 262:2013"," gemäss Betonsorte \n(Zertifikat Betonwerk)","Min.1 Kontrolle \n(1. Betonmischung, bzw. \nalle 200 m3)","Unmittelbar nach Anlieferung auf Baustelle","Zurückweisung Beton, Richtigstellung im Betonwerk","Prüfungsart abhängig von der Betonkonsistenz"]
["LP","SN EN 12350-7:2009","Gemäss Zielwert Betonwerk","Min.1 Kontrolle \n(1. Betonmischung, bzw. \nalle 200 m3)","Unmittelbar nach Anlieferung auf Baustelle","Zurückweisung Beton, Richtigstellung im Betonwerk"]
["w/z-Wert","Norm SIA 262/1:2019\nAnhang H","gemäss Betonsorte","Min.1 Kontrolle \n(1. Betonmischung, bzw. \nalle 200 m3)","Unmittelbar nach Anlieferung auf Baustelle","Zurückweisung Beton, Richtigstellung im Betonwerk"]
["Druckfestigkeit","SN EN 12390-3:2009, SN EN 206:2013 +A1:2016 ","gemäss Betonsorte"," Min. 2 Mal oder je 400 m3 oder je 5 Produktionstage \n(1 Mal =  1 Serie à 3 Würfel)","In der Regel nach \n7 und 28 Tagen","Prüfung Bauwerksproben (Kern), ev. Minderwert, Abbruch / Ersatz  Bauteil","weitere Würfel (z.B. für  3 Tage),  Abhängig vom Objekt"]
["Frostbeständigkeit","Norm SIA 262/1: 2019, \nAnhang C","gemäss Betonsorte","Min. 2 Mal oder je 800 m3 oder je 10 Produktionstage \n(1 Mal =  1 Serie à 3 Würfel)"]
["Frosttausalzbeständig-keitsprüfung SIA","Norm SIA 262/1: 2019, \nAnhang C","Anforderung Hoch:\nm ≤ 200 g/m² oder m ≤ 600 g/m² und Δm28  ≤ (Δm6 + Δm14)\nZielwert TBA: < 100 g/m²\n\nAnforderung mittel:\nm ≤ 250 g/m² oder m ≤ 800 g/m² und Δm28  ≤ (Δm6 + Δm14)","Min. 2 Mal oder je 800 m3 oder je 10 Produktionstage \n(1 Mal =  1 Serie à 3 Würfel)","1. Etappe","Behandlung der Betonoberfläche mit geeigneten Materialien","Standardprüfung für die Frosttausalzbeständigkeit"]
["Frosttausalzbeständig- keitsprüfung VSS","VSS 40 464:2019","BE I  FT\nAnforder. hoch:  WFT-P ≥ 80%\nAnforder. mittel: WFT-P ≥ 50%","Min. 2 Mal oder je 800 m3 oder je 10 Produktionstage \n(1 Mal =  1 Serie à 3 Würfel)","1. Etappe","Prüfung gemäss Norm \nSIA 262/1: 2013, \nAnhang C","Alternativ zur SIA-Prüfung, falls schnelle Resultate verfügbar sein müssen"]
["Chloridwiderstand","Norm SIA 262/1: 2019, \nAnhang B","Grenzwert (XD3)\nMittelwert: Dcl ≤ 10x10-12m2/s   Grenzwert \nMittelwert + Grenzabweichung:\nDcl < 13x10-12m2/s","Min. 2 Mal oder je 800 m3 oder je 10 Produktionstage \n(1 Mal =  1 Serie à 3 Würfel)","1. Etappe","Tiefenhydrophobierung"]
["weitere Prüfungen \n(z.B. Wasserleitfähigkeit, Karbonatisierungs- widerstand, etc.)",null,null,null,null,null,"projektspezifisch, in Absprache \nmit TBA / Ing.- Stab\nz.B. bei speziellen Expositionen, bei reduzierter Betonüberdeckung, etc."]
[]
[]
[]
["Beton Kreisel, Betonfahrbahn (einschichtig)"]
["Objektspezifischer QM-Plan (Prüfungen durch den Bauherrn bestellt)"]
["In der Regel sind die Prüfungen pro Betonfamilie in Übereinstimmung mit SN EN 13670:2009 für die Überwachungsklasse 2 durchzuführen."]
["Prüfung","Prüfverfahren","Anforderungen","Umfang","Zeitpunkt","Massnahmen bei Nichtgenügen","Bemerkungen"]
["Konsistenz","SN EN 12350-4:2009, \nNorm SIA 262:2013\nVSS 40 463:2019","C2 steifplastisch \n(Zielwert VM 1.15-1.25)","Min. 1 Kontrolle \n(1. Betonmischung, bzw. \nalle 200 m3)","Unmittelbar nach Anlieferung auf Baustelle","Zurückweisung Beton, Richtigstellung im Betonwerk","Prüfungsart abhängig von der Betonkonsistenz"]
["Luftgehalt im Frischbeton","SN EN 12350-7:2009","Gemäss SN 640 461 \n(Zielwert 3.5 - 4.5%)","Min. 1 Kontrolle \n(1. Betonmischung, bzw. \nalle 200 m3)","Unmittelbar nach Anlieferung auf Baustelle","Zurückweisung Beton, Richtigstellung im Betonwerk"]
["w/z-Wert","Norm SIA 262/1:2019, \nAnhang H","gemäss Betonsorte","Min. 1 Kontrolle \n(1. Betonmischung, bzw. \nalle 200 m3)","Unmittelbar nach Anlieferung auf Baustelle","Zurückweisung Beton, Richtigstellung im Betonwerk"]
["Druckfestigkeit","SN EN 206-1:2013, Anhang A\n SN EN 12390-3:2009","gemäss Betonsorte","Min. 2 Mal oder je 400 m3 oder je 5 Produktionstage \n(1 Mal = 1 Serie à 6 Würfel)","Prüfen pro Serie jeweils 3 Stk. nach 7 und \n28 Tagen","Prüfung Bauwerksproben (Kern), ev. Minderwert, Abbruch / Ersatz Bauteil","weitere Würfel (z.B. für 3 Tage), Abhängig vom Objekt"]
["Biegezugfestigkeit","SN EN 12390-5:2009 (Prismen 120 x 120 x 360 mm)","nach 28 Tagen:\nfctk (t=28d) ≥ 5.5 N/mm2","Min. 2 Mal oder je 400 m3 oder je 5 Produktionstage   \n(1 Mal = 1 Serie à 6 Prismen)","Prüfen pro Serie jeweils 3 Stk. nach 7 und \n28 Tagen","Massnahmen in Absprache mit BH / BL / Ing. Stab TBA","weitere Prismen (z.B. für 48h oder 72h), \nnach 48 Stunden:\nfctk (t=48h) ≥ 3.9 N/mm2\n(70 % Nennfestigkeit: Minimalanforderung für Verkehrsfreigabe)"]
["Frostbeständigkeit","Norm SIA 262/1:2019, \nAnhang C","gemäss Betonsorte","Pro Objekt"]
["Frosttausalzbeständig-keitsprüfung SIA","Norm SIA 262/1:2019, \nAnhang C","m ≤ 200 g/m² oder m ≤ 600 g/m² und Δm28  ≤ (Δm6 + Δm14)\nZielwert TBA: < 100g/m²","Min. 2 Mal oder je 800 m3 oder je 10 Produktionstage (1 Mal = 1 Serie à 3 Würfel)","1. Etappe","Behandlung der Betonoberfläche mit geeigneten Materialien","Standardprüfung für die Frosttausalzbeständigkeit"]
["Frosttausalzbeständig- keitsprüfung VSS","VSS 40 464:2019","BE I  FT: WFT-P ≥ 80%, Anforderung hoch, XF4","Min. 2 Mal oder je 800 m3 oder je 10 Produktionstage \n(1 Mal = 1 Serie à 1 Würfel)","1. Etappe","Massnahmen in Absprache mit BH / BL / Ing. Stab TBA","Alternativ zur SIA-Prüfung, falls schnelle Resultate verfügbar sein müssen"]
["Chloridwiderstand","Norm SIA 262/1:2019, \nAnhang B","Grenzwert (XD3)\nMittelwert: Dcl ≤ 10x10-12m2/s   Grenzwert \nMittelwert + Grenzabweichung:\nDcl < 13x10-12m2/s","1 Prüfserie","1. Etappe","Tiefenhydrophobierung"]
["weitere Prüfungen \n(z.B. Wasserleitfähigkeit, Karbonatisierungs- widerstand, etc.)",null,null,null,null,null,"projektspezifisch, in Absprache \nmit TBA / Ing.- Stab\nz.B. bei speziellen Expositionen, bei reduzierter Betonüberdeckung, etc."]
["Anforderungen an die Ausführung"]
["Rubrik","Beschrieb > Betoneinbau"]
["Frosttausalzbeständigkeit","Sehr hoher FT- Wert für exponierte Bauteile < 100g/ m² (Zielwert). Einige Betonwerke erreichen bereits diese Werte"]
["Erfahrungswerte für Luftporengehalt (Frischbeton)","Bauteile im Spritzwasser-/Sprühnebelbereich: 4…6 %, übrige Bauteile: 2…4 %"]
["Lieferung","Die Richtigkeit der Angaben auf dem Lieferschein sowie die Übereinstimmung mit den Vorgaben gemäss Plan sind zu überprüfen und dokumentieren / Ablage in QS-Ordner"]
["Einbautemperaturen","Der Frischbeton darf ohne besondere Massnahmen beim Einbringen und während der Verarbeitung nicht kälter als 5 °C oder nicht wärmer als 30 °C sein. Bei Lufttemperaturen unter 0 °C darf nicht betoniert werden. Bei Temperaturen über 25 °C sind Massnahmen zu treffen. Regelmässige Kontrolle der Lufttemperatur, Aufzeichnung in Baujournal, ggf. besondere Massnahmen ergreifen oder Betoniertermin verschieben."]
["Fördern des Betons auf der Baustelle","Die Art des Förderns (in Transportgefässen, Transportbändern, Pumpen etc.) und die Zusammensetzung des Betons sind so aufeinander abzustimmen, dass ein Entmischen verhindert wird. Transport von FT-Beton ist nur mit Fahrmischer zulässig.\nBeim Schütten des Betons in Stützen- und  Wandschalungen darf sich der Beton nicht entmischen. Er ist z. B. durch Fallrohre zusammenzuhalten, die erst kurz über der Verarbeitungsstelle enden. Während der Beförderung ist der Beton vor schädlichen Witterungseinflüssen zu schützen."]
["Anschlussbewehrung","Anschlussbewehrungen, die beim Schütten des Betons der vorangegangenen Betonieretappen verunreinigt wurden, sind vor dem Betonieren zu reinigen, bzw. vertrockneter Beton auf den Bewehrungen ist zu entfernen."]
["Verarbeitungszeit, Verdichten des Betons","Generell < 2 h, Ausnahmen sind genehmigen zu lassen. Die Bewehrungsstäbe sind dicht mit Beton zu umhüllen. Der Beton muss vollständig verdichtet werden. Der Beton ist in der Regel mit Innenrüttlern / Vibratoren zu verdichten. Der Beton muss lageweise eingebaut und verdichtet werden. Die oberen Flächen von Überbauten, Trögen usw. sind zusätzlich mit Rüttelbohlen / Vibrationsbohlen abzuziehen. Alle Betonoberflächen müssen feinkörnig, geschlossen und frei von Mörtelwülsten und -graten sein."]
[]
["Rubrik","Beschrieb > Nachbehandlung"]
["Nachbehandlung","Die Mindestnachbehandlungsdauer ist nach den Empfehlungen der Norm SIA 262 zu bestimmen. Die Abhängigkeiten von der Temperatur und der Festigkeitsentwicklung sind allerdings gemäss Forschungsbericht AGB 2011 -001 \"Wirksamkeit und Prüfung der Nachbehandlungsmethoden von Beton\" nicht eindeutig. In der Regel sind die Betonoberflächen während mindestens 5 Tagen mit Plastikfolien und Isoliermatten abzudecken, für frosttausalzbeständige Betone ohne Beigabe künstlicher Luftporen ist diese Frist deutlich zu verlängern. Die Betonoberfläche ist dabei immer feucht zu halten (Betontemperatur nicht \"abschrecken\"). Das Verwenden / Aufsprühen von Nachbehandlungsmitteln bedarf der Zustimmung der Bauherrschaft. "]
["Ausschalfrist","Eine Ausschalfrist von 72 Stunden darf auch in besonderen Fällen (Wochentakt) nicht unterschritten werden. \nMögliche Ausnahme: Kabelköpfe für Schwindvorspannung, wobei die für die entsprechende Vorspannkraft erforderliche Druckfestigkeit erreicht werden (vorliegen) muss. Weitere Ausnahmen sind zu begründen.\nBei Kragplatten und Platten mit Spannweiten > 5 m sowie bei vorgespannten Bauteilen gelten die vom PV angegebenen Ausschalfristen."]
["Ebenheit Betonoberfläche","In der Regel ≤ 15 mm unter der 2 m - Latte (gem. Norm)"]

{"sheet":"416","index":39,"n_rows":25,"n_cols":7,"rows_kept":25,"cut":false,"hidden":false,"merged":[[8,0,8,6],[2,5,4,6],[2,1,2,3],[3,1,3,3],[4,1,4,3],[5,1,5,3],[6,1,6,3],[19,1,19,6],[15,0,15,6],[25,1,25,6],[20,1,20,6],[21,1,21,6],[22,1,22,6],[23,1,23,6],[24,1,24,6],[16,1,16,6],[17,1,17,6],[18,1,18,6]]}
[null,null,null,null,null,null,"Zu 001 Inhaltsverzeichnis"]
["400 Beton",null,null,null,null,null,"416 Reprofilierung"]
[{"$f":"+Titelblatt!E8","v":"Gemeinde"},{"$f":"+Titelblatt!F8","v":"Musterhausen"},null,null,{"$f":"+Titelblatt!E19","v":"Ingenieurbüro"},{"$f":"+Titelblatt!F19","v":"Musterbüro\nMusterstrasse 15\n8000 Musterhausen"}]
[{"$f":"+Titelblatt!E9","v":"Strasse"},{"$f":"+Titelblatt!F9","v":"Musterstrasse"},null,null,{"$f":"+Titelblatt!E23","v":" "},{"$f":"+Titelblatt!F23","v":" "}]
[{"$f":"+Titelblatt!E10","v":"Strecke"},{"$f":"+Titelblatt!F10","v":"Musterkreisel bis Musterstrasse"}]
[{"$f":"+Titelblatt!E11","v":"km / Bauwerk"},{"$f":"+Titelblatt!F11","v":"003-002 "}]
[{"$f":"+Titelblatt!E6","v":"Projekttitel"},{"$f":"+Titelblatt!F6","v":"Instandsetzung Musterbrücke …."}]
[]
["Objektspezifischer QM-Plan (Prüfungen durch den Bauherrn bestellt)"]
["Prüfung","Prüfverfahren","Anforderungen","Umfang","Zeitpunkt","Massnahmen bei Nichtgenügen","Bemerkungen"]
["Druckfestigkeit","SIA 262/1:2019 bzw.\nEN 12390-3:2009 und","Materialklasse M3 \nMittelwert 28T >  25 N/mm2  ","1 Prüfserie (Mittelwert aus 5 Probekörper","Vor Ausführung","Ersatz Reprofilierung","Nachweis durch Zertifikat"]
["Haftzugfestigkeit","VSS SN 640 450:2017","Mittelwert 28T >  1.5 N/mm2,, Einzelwert 28 T > 1.0 N/mm2"," 3 Serien a 3-er Serien","Nach Ausführung","Ersatz Reprofilierung"]
["Frosttausalzbeständigkeit Prüfung SIA","Norm SIA 262/1: 2019, \nAnhang C","Anforderung Hoch:\nm ≤ 200 g/m² oder m ≤ 600 g/m² und Δm28  ≤ (Δm6 + Δm14)\nZielwert TBA: < 100 g/m²\n\nAnforderung mittel:\nm ≤ 250 g/m² oder m ≤ 800 g/m² und Δm28  ≤ (Δm6 + Δm14)","gem. Angaben PL","gem. Angaben PL","Behandlung der Betonoberfläche mit geeigneten Materialien"," Nur als Quervergleich wenn Prüfung VSS SN 640 464 schlechte Werte ergeben"]
["Frosttausalzbeständigkeit Prüfung VSS","VSS 40 464:2019","BE I  FT\nAnforder. hoch:  WFT-P ≥ 80%\nAnforder. mittel: WFT-P ≥ 50%","Pro Objekt","1. Etappe","Prüfung gemäss Norm SIA 262/1: 2013, \nAnhang C","Nachweis durch Zertifikat (Prüfung nur wenn für Bauteil hohe FT – Be-ständigkeit ausgesetzt)"]
[]
["Anforderungen an die Ausführung"]
["Rubrik","Beschrieb > Material"]
["Zementgebunden oder zementgebundene, polymermodifizierte Mörtel, Grösstkorn\n ≤ 4mm","Mörtelklasse M3 (Empfehlung gem. Norm),  Nachweis durch Erstprüfung/Zertifikat\nAnmerkung: Je nach Projekt kann der PV abweichende Eigenschaften vorschreiben. Kunststoffgebundene Mörtel sind in der Regel nicht zugelassen\nEmpfehlung gem. Norm"]
[]
["Rubrik","Beschrieb > Ausführung"]
["Vorbehandlung","Oberfläche > Staubfrei, mit ölfreier Druckluft abgeblasen\nVornässung > Mindestens 24h Berieselung der Anschlussflächen, vorgenässt, jedoch keine Wasserlachen (dunkelgrauer Beton)\nUntergrund > Gemäss Blatt 411"]
["Bewehrung","Korrosionsschutz > Nur bei Betonüberdeckung ≤ 2cm, Material zementgebunden"]
["Einbau Frischmörtel","Aussentemperatur >  Aussentemperatur ≥ 5° (oder gem. Produktblatt)\nMörteltemperatur >  5° ≤ Mörteltemperatur ≤ 25° (oder gem. Produktblatt)\nUnebenheit >  ≤ 10mm unter der 4m Latte, ≤ 5mm unter der 2m Latte\nHöhengenauigkeit >  ± 5 mm"]
["Nachbehandlung","Je nach Mörtel gelten spezifische Produkteanforderungen. Die Nachbehandlung muss solange erfolgen bis der Mörtel mindestens 50% seiner Endfestigkeit erreicht hat, in der Releg mindestens 4 Tage (mit Plastikfolie und Wärmedämmmatten abdecken). In der Nachbehandlungszeit darf kein Austrocknen (Farbumschlag von Dunkel zu Hell) erfolgen.  Das Verwenden / Aufsprühen von Nachbehandlungsmitteln bedarf der Zustimmung der Bauherrschaft."]
["Ausschalfrist","Mind. 72h, anschliessend Plastikfolie und Wärmedämmmatten"]

{"sheet":"417","index":40,"n_rows":30,"n_cols":7,"rows_kept":30,"cut":false,"hidden":false,"merged":[[30,1,30,6],[5,1,5,3],[2,1,2,3],[3,1,3,3],[4,1,4,3],[6,1,6,3],[16,0,16,6],[17,1,17,6],[20,1,20,6],[21,1,21,6],[19,1,19,6],[18,1,18,6],[22,1,22,6],[29,1,29,6],[2,5,4,5],[8,0,8,6],[28,1,28,6],[23,1,23,6],[24,1,24,6],[25,1,25,6],[26,1,26,6],[27,1,27,6]]}
[null,null,null,null,null,null,"Zu 001 Inhaltsverzeichnis"]
["400 Beton",null,null,null,null,null,"417 Oberflächenschutz\n"]
[{"$f":"+Titelblatt!E8","v":"Gemeinde"},{"$f":"+Titelblatt!F8","v":"Musterhausen"},null,null,{"$f":"+Titelblatt!E19","v":"Ingenieurbüro"},{"$f":"+Titelblatt!F19","v":"Musterbüro\nMusterstrasse 15\n8000 Musterhausen"}]
[{"$f":"+Titelblatt!E9","v":"Strasse"},{"$f":"+Titelblatt!F9","v":"Musterstrasse"},null,null,{"$f":"+Titelblatt!E23","v":" "},{"$f":"+Titelblatt!F23","v":" "}]
[{"$f":"+Titelblatt!E10","v":"Strecke"},{"$f":"+Titelblatt!F10","v":"Musterkreisel bis Musterstrasse"}]
[{"$f":"+Titelblatt!E11","v":"km / Bauwerk"},{"$f":"+Titelblatt!F11","v":"003-002 "}]
[{"$f":"+Titelblatt!E6","v":"Projekttitel"},{"$f":"+Titelblatt!F6","v":"Instandsetzung Musterbrücke …."}]
[]
["Objektspezifischer QM-Plan (Prüfungen durch den Bauherrn bestellt)"]
["Prüfung","Prüfverfahren","Anforderungen","Umfang","Zeitpunkt","Massnahmen bei Nichtgenügen","Bemerkungen"]
["Oberflächenzugfestigkeit, Haftzug ","SN EN 1542:1999\n(SIA 162.421)","Mittelwert 7/28T > 1.2 / 1.5 N/mm² \nEinzelwert 7/28 T > 0.8 / 1.0 N/mm²","Jede Bauetappe","Nach Applikation","Entfernen, erneute Applikation","Spachtelung, Versiegelung, Oberflächenschutzsystem"]
["Wasseraufnahmekoeffizient","SN EN 1062-3:2008","A ≤ 0.1 kg/m2√h","1 Prüfung an Referenzflächen","Vor der effektiven Applikation","Material darf nicht verwendet werden","Pastöse Hydrophobierung"]
["Wasseraufnahmekoeffizient","SN EN 1062-3:2008","A ≤ 0.2 kg/m2√h","1 Prüfung an Referenzflächen","Vor der effektiven Applikation","Material darf nicht verwendet werden","Spachtelung, Versiegelung (auch Brückenbeton)"]
["Schichtstärke","Paintbohrer oder Dünnschliffprobe","Trockenfilmstärke > min. Anforderungen","1 Prüfung an Referenzflächen","Vor der effektiven Applikation","Material darf nicht verwendet werden","Oberflächenschutzsystem"]
[]
[]
["Anforderungen an die Ausführung"]
["Rubrik","Beschrieb > Oberflächenschutzsysteme"]
["Material","Nachweis durch Erstprüfung/Zertifikat, Produktedatenblatt\nMaterialien müssen dem Anforderungsprofil der Norm entsprechen"]
["Konzept","Fallweise empfiehlt es sich, die Wirkung der Oberflächenschutzmassnahmen anhand von Kontrollfläche vorgängig abzuklären.  Die Kontrollflächen dienen als Referenz für die Überwachung der Qualität durch Vergleich (Spezifikation gemäss PV)"]
["Richtwerte","Wasseraufnahmekoeffizient Tiefbau- bzw. Brückenbeton < 0.2  kg/m2√h   \nWasseraufnahmekoeffizient nach Hydrophobierung < 0.05  kg/m2√h"]
[]
["Rubrik","Beschrieb > S: Spachtelung V: Versiegelung H: Hydrophobierung"]
["Untergrund  (S, V, H)","Staubfrei, mit ölfreier Druckluft abgeblasen, nach Angabe Hersteller"]
["Restfeuchtigkeit (S)","Gemäss Herstellerangaben, mindestens 24h Berieselung der Auftragsflächen, vorgenässt, jedoch keine Wasserlachen"]
["Rissfreiheit (S)","Sprühtest nach 7 Tagen:\nTotale Risslänge < 1m pro m²\nKeine Risse > 0.15 mm Rissbreite"]
["Nachbehandlung (S)","Gemäss Herstellerangaben. Die gespachtelten Oberflächen sind während 5 Tagen mit Plastikfolien und Isoliermatten abzudecken. Das Verwenden/Aufsprühen von Nachbehandlungsmitteln bedarf der Zustimmung der Bauherrschaft"]
["Restfeuchtigkeit (V, H)","Nach Herstellerangaben, in der Regel trocken, z.B. keine Feuchtigkeit unter aufgebrachter PE-Folie über Nacht.\nDicke Schichten mit Karbidmethode messen ( CM-Messung )"]
["Wirkung (H)","Flächendeckende Wirkung durch Sprühtest und Beobachtung des Abperleffektes"]
["Schichtdicke (V)","Schichtdickenermittlung über den vorgegebenen Materialverbrauch / Direkte Bestimmung am Prüfkörper Haftzug / Messung an Dünnschliffprobe"]

{"sheet":"511","index":41,"n_rows":23,"n_cols":7,"rows_kept":23,"cut":false,"hidden":false,"merged":[[19,1,19,6],[8,0,8,6],[24,1,24,6],[5,1,5,3],[20,1,20,6],[21,1,21,6],[22,1,22,6],[23,1,23,6],[6,1,6,3],[16,0,16,6],[17,1,17,6],[2,1,2,3],[3,1,3,3],[4,1,4,3],[2,5,4,6],[18,1,18,6]]}
[null,null,null,null,null,null,"Zu 001 Inhaltsverzeichnis"]
["500 Abdichtung",null,null,null,null,null,"511 Untergrundvorbereitung"]
[{"$f":"+Titelblatt!E8","v":"Gemeinde"},{"$f":"+Titelblatt!F8","v":"Musterhausen"},null,null,{"$f":"+Titelblatt!E19","v":"Ingenieurbüro"},{"$f":"+Titelblatt!F19","v":"Musterbüro\nMusterstrasse 15\n8000 Musterhausen"}]
[{"$f":"+Titelblatt!E9","v":"Strasse"},{"$f":"+Titelblatt!F9","v":"Musterstrasse"},null,null,{"$f":"+Titelblatt!E23","v":" "},{"$f":"+Titelblatt!F23","v":" "}]
[{"$f":"+Titelblatt!E10","v":"Strecke"},{"$f":"+Titelblatt!F10","v":"Musterkreisel bis Musterstrasse"}]
[{"$f":"+Titelblatt!E11","v":"km / Bauwerk"},{"$f":"+Titelblatt!F11","v":"003-002 "}]
[{"$f":"+Titelblatt!E6","v":"Projekttitel"},{"$f":"+Titelblatt!F6","v":"Instandsetzung Musterbrücke …."}]
[]
["Objektspezifischer QM-Plan (Prüfungen durch den Bauherrn bestellt)"]
["Prüfung","Prüfverfahren","Anforderungen","Umfang","Zeitpunkt","Massnahmen bei Nichtgenügen","Bemerkungen"]
["Haftzugfestigkeit","SN EN 1542:1999\n[SIA 162.421]","MW ³ 1.5 N/mm2 EW ³ 1.0 N/mm2","1 Dreierserie","Vor der Applikation der Versiegelung oder PBD","Verbesserung der Festigkeit des Betonuntergrundes","SN 640 450:2017 Tabelle 5"]
["Rautiefe *","SN EN 1766:2017 Sandverfahren\n[SIA 262.424]","0.5 ≤ Rt ≤ 1.2 mm","1 Dreierserie","Vor der Applikation der Versiegelung oder PBD","< 0.5 mm Aufrauen /\n> 1.2 mm Reprofilierung oder Ausgleich\nder Rauhigkeit","SN 640 450:2017 Tabellen 4 und  5"]
["Porosität (Wasserleitfähigkeit) *","SIA 262/1:2013 Anhang A","Anzugeben","Nur bei Bedarf, wenn keine Versiegelung","Vor der Applikation der Versiegelung oder PBD","Versiegelung erforderlich","SN 640 450:2017 Ziffer 20.3"]
[]
["* Durch ein akkreditiertes Labor durchzuführen. "]
[]
["Anforderungen an die Ausführung"]
["Rubrik","Beschrieb"]
["Porosität","Wasserleitfähigkeit (Porosität), Prüfung gem. SIA: Legt ein Verfahren zur Bestimmung der Wasseraufnahme von Beton fest. Aus dem Prüfergebnis können Aussagen bezüglich Dichtigkeit des Betons gegen nicht drückendes Wasser abgeleitet werden. Zur Vermeidung von Blasen bei der Applikation von Abdichtungen  muss  der  Betonuntergrund möglichst dicht sein. Die Porosität ist gemäss SIA Norm zu ermitteln."]
["Ebenheit","Die Kontrolle erfolgt auf dem Betonuntergrund mit der 2-m-Latte."]
["Feuchtigkeit","Die Restfeuchtigkeit muss ≤ 4 Masse-% sein."]
["Zementhautabtrag","Durch geeignete Verfahren, Geräte und Materialien ist sicherzustellen, dass die Oberflächenvorbereitung die Eigenschaften des Betonuntergrundes nicht nachteilig verändert. Bevorzugt werden\nHDW 750 bar und Sandstrahlen. Kugelstrahlen bedarf infolge der Gefahr der Mikrorissbildung einer Spezialbewilligung durch das TBA Sektion Tragkonstruktionen."]
["Oberfläche","Sauber abgezogen, keine Kanten, keine rauen und porösen Stellen, frei von alten Abdichtungen, Öl, Fett, Wasser, Staub und losen Teilen.\nKeine freiliegenden Bewehrungen"]

{"sheet":"512","index":42,"n_rows":24,"n_cols":7,"rows_kept":24,"cut":false,"hidden":false,"merged":[[23,1,23,6],[6,1,6,3],[15,0,15,6],[16,1,16,6],[25,1,25,6],[17,1,17,6],[18,1,18,6],[19,1,19,6],[24,1,24,6],[8,0,8,6],[5,1,5,3],[20,1,20,6],[21,1,21,6],[22,1,22,6],[2,1,2,3],[3,1,3,3],[4,1,4,3],[2,5,4,6]]}
[null,null,null,null,null,null,"Zu 001 Inhaltsverzeichnis"]
["500 Abdichtung",null,null,null,null,null,"512 Epoxidharzversiegelung"]
[{"$f":"+Titelblatt!E8","v":"Gemeinde"},{"$f":"+Titelblatt!F8","v":"Musterhausen"},null,null,{"$f":"+Titelblatt!E19","v":"Ingenieurbüro"},{"$f":"+Titelblatt!F19","v":"Musterbüro\nMusterstrasse 15\n8000 Musterhausen"}]
[{"$f":"+Titelblatt!E9","v":"Strasse"},{"$f":"+Titelblatt!F9","v":"Musterstrasse"},null,null,{"$f":"+Titelblatt!E23","v":" "},{"$f":"+Titelblatt!F23","v":" "}]
[{"$f":"+Titelblatt!E10","v":"Strecke"},{"$f":"+Titelblatt!F10","v":"Musterkreisel bis Musterstrasse"}]
[{"$f":"+Titelblatt!E11","v":"km / Bauwerk"},{"$f":"+Titelblatt!F11","v":"003-002 "}]
[{"$f":"+Titelblatt!E6","v":"Projekttitel"},{"$f":"+Titelblatt!F6","v":"Instandsetzung Musterbrücke …."}]
[]
["Objektspezifischer QM-Plan (Prüfungen durch den Bauherrn bestellt)"]
["Prüfung","Prüfverfahren","Anforderungen","Umfang","Zeitpunkt","Massnahmen bei Nichtgenügen","Bemerkungen"]
["Haftzugfestigkeit","SN EN 1542:1999\n[SIA 162.421]","MW ³ 1.5 N/mm2 \nEW ³ 1.0 N/mm2","1 Dreierserie","Vor dem nächsten Arbeitsgang","Ersatz","SN 640 450:2017 Tabelle 5"]
["Porenfreiheit *","22 001-12410 FHB KB\nDichtheitsprüfung mittels Hochspannung (Abfunken)","Poren Ø:\n● 0.5 bis 1 mm: max. 1 pro 10 m2\n● über 1 mm: keine","Ränder: 100%, auf 1 m Breite\nRestfläche: 10% der versiegelten Oberfläche, \nmindestens aber 100 m2","Frühestens 48 Std. nach der Applikation","Nachbesserung / Ersatz","Gerät mit Gleichspannung\nPrüfspannung 6 kV"]
[]
["* Durch ein akkreditiertes Labor durchzuführen"]
[]
["Anforderungen an die Ausführung"]
["Rubrik","Beschrieb"]
["Material","Die Ausgangsstoffe, respektiv angemischte bzw. erhärtete Stoffe sind vor dem Einbau zu deklarieren"]
["Auftrag","Nach Angaben des Produktenherstellers, achten auf Objekt- und Lufttemperatur, Verbrauch, usw."]
["Temperatur","Verarbeitung nur bei fallenden Oberflächentemperaturen"]
["Kratzspachtelung","Vertiefungen bis 15 mm sind durch Kratzspachtelung mit Epoxidharzmörtel (MW1:3 bis 1:4, Quarzsand gemäss Angaben der Herstellers) auszugleichen.\nDie Bearbeitungsfläche ist mit ungefülltem Epoxidharz vorzustreichen. Darauf folgt die Kratzspachtelung nass in nass. Die Kratzspachtelung ist mit feuergetrocknetem Quarzsand der Körnung z.B. 0.3 bis 0.8 mm resp. 0.5 bis 1.2 mm abzustreuen; eine Abstreuung im Überschuss ist zu vermeiden. Nicht festhaftendes Abstreugut ist nach dem Aushärten der Kratzspachtelung zu entfernen."]
["Epoxydharz-versiegelung","Bei einer Epoxydharzversiegelung wird der Betonuntergrund mit Epoxydharz abgedeckt und anschliessend gleichmässig (im Überschuss) mit feuergetrocknetem Quarzsand der Körnung 0.5 – 1.2 mm abgestreut. Nicht haftendes Abstreugut ist nach der Aushärtung zu entfernen. In einer weiteren Schicht wird die Oberfläche mit Epoxydharz versiegelt.\nIn der Regel wird eine Menge von 300 bis 700 Gramm Epoxydharz pro Schicht aufgebracht, wobei die Angaben des Lieferanten zu beachten sind. Der Epoxydharz ist so zu verteilen, dass Stoffansammlungen vermieden werden.\nDie zweite Schicht enthält einen Farbpigmentzusatz. Damit wird der gleichmässige Auftrag der zweiten Schicht gewährt."]
["Oberflächenbeschaffenheit der Versiegelung","Geschlossene glatte Oberfläche. Keine sichtbaren, offenen Poren. Keine glasigen und weisse Stellen (Wassereinwirkung)"]
["Luftreinhaltung","Die Luftreinhaltevorschriften gemäss Kapitel 913 > Ausführungs- / Anforderungshinweise > Oberflächenbehandlungen, Dichtungen und Anstrich sind einzuhalten."]

{"sheet":"513","index":43,"n_rows":22,"n_cols":7,"rows_kept":22,"cut":false,"hidden":false,"merged":[[23,1,23,6],[20,1,20,6],[21,1,21,6],[22,1,22,6],[6,1,6,3],[16,0,16,6],[17,1,17,6],[18,1,18,6],[19,1,19,6],[8,0,8,6],[2,5,4,6],[5,1,5,3],[2,1,2,3],[3,1,3,3],[4,1,4,3]]}
[null,null,null,null,null,null,"Zu 001 Inhaltsverzeichnis"]
["500 Abdichtung",null,null,null,null,null,"513 Polymerdichtungsbahnen (PBD)\n"]
[{"$f":"+Titelblatt!E8","v":"Gemeinde"},{"$f":"+Titelblatt!F8","v":"Musterhausen"},null,null,{"$f":"+Titelblatt!E19","v":"Ingenieurbüro"},{"$f":"+Titelblatt!F19","v":"Musterbüro\nMusterstrasse 15\n8000 Musterhausen"}]
[{"$f":"+Titelblatt!E9","v":"Strasse"},{"$f":"+Titelblatt!F9","v":"Musterstrasse"},null,null,{"$f":"+Titelblatt!E23","v":" "},{"$f":"+Titelblatt!F23","v":" "}]
[{"$f":"+Titelblatt!E10","v":"Strecke"},{"$f":"+Titelblatt!F10","v":"Musterkreisel bis Musterstrasse"}]
[{"$f":"+Titelblatt!E11","v":"km / Bauwerk"},{"$f":"+Titelblatt!F11","v":"003-002 "}]
[{"$f":"+Titelblatt!E6","v":"Projekttitel"},{"$f":"+Titelblatt!F6","v":"Instandsetzung Musterbrücke …."}]
[]
["Objektspezifischer QM-Plan (Prüfungen durch den Bauherrn bestellt)"]
["Prüfung","Prüfverfahren","Anforderungen","Umfang","Zeitpunkt","Massnahmen bei Nichtgenügen","Bemerkungen"]
["Haftzugfestigkeit *","SIA 281/3:2002","Bei 5oC ³ 0.76 N/mm2 \nBei 30oC ³ 0.26 N/mm2","1 Dreierserie pro 1000 m2 oder pro Ausführungsetappe","Nach Einbau","Ersatz","SN 640 450:2017"]
["Schälzugfestigkeit *","SIA 281/2:2011","Bei 8oC ³ 6.2 N/mm2 \nBei 30oC ³ 1.0 N/mm2","1 Dreierserie pro 1000 m2 oder pro Ausführungsetappe","Nach Einbau","Ersatz","SN 640 450:2017"]
[]
[]
["* Durch ein akkreditiertes Labor durchzuführen"]
[]
["Anforderungen an die Ausführung"]
["Rubrik","Beschrieb"]
["Polymerdichtungsbahnen","Nachweiserbringung des Eintrages im aktuell gültigen SIA-Register (www.sia.ch/register).\nWenn nicht im SIA-Register aufgeführt > Nachweis durch Erstprüfung (Anforderungen, Prüfungen und Kontrollen der Polymerbitumen-Dichtungsbahnen unter Gussasphalt MA beziehungsweise unter Asphaltbeton AC."]
["Einbau","Nach Angaben und Verarbeitungshinweisen des Produktherstellers, achten auf Objekt- und Lufttemperaturen  und Feuchtigkeit\nVollflächig und hohlstellenfreies Verkleben der Bahnen mit einer über die ganze Bahnbreite gleichmässig wirkenden Wärmequelle. Durch die Erwärmung dürfen Versiegelung und Kratzspachtelung nicht beschädigt werden.\nBei starker Sonneneinstrahlung sind sofort Schutzmassnahmen gegen das Aufheizen der Abdichtung zu treffen."]
["Oberflächeneigenschaften","Überlappung der Bahnen ist in der Regel bei 100 mm, bei Einzelstellen minimal 70 mm erlaubt, maximal darf bis 150 mm die Stösse verklebt werden. Mehr als 3-fach-Überlappungen sind nicht zulässig.\nBreite Schweissraupen: Längsnaht 5 – 30 mm, vereinzelte bis 80 mm lang sein / Entlang Stossüberlappungen 5 – 150 mm\nKeine Hohlstellen: Abrechen mit Laubrechen über ganze Fläche."]
["Luftreinhaltung","Die Luftreinhaltevorschriften gemäss Kapitel 913 > Ausführungs- / Anforderungshinweise > Oberflächenbehandlungen, Dichtungen und Anstrich sind einzuhalten."]

{"sheet":"514","index":44,"n_rows":23,"n_cols":7,"rows_kept":23,"cut":false,"hidden":false,"merged":[[5,1,5,3],[2,1,2,3],[3,1,3,3],[4,1,4,3],[2,5,4,6],[19,1,19,6],[20,1,20,6],[21,1,21,6],[22,1,22,6],[6,1,6,3],[15,0,15,6],[16,1,16,6],[17,1,17,6],[18,1,18,6],[8,0,8,6]]}
[null,null,null,null,null,null,"Zu 001 Inhaltsverzeichnis"]
["500 Abdichtung",null,null,null,null,null,"514 Flüssigkunststoff (FLK)"]
[{"$f":"+Titelblatt!E8","v":"Gemeinde"},{"$f":"+Titelblatt!F8","v":"Musterhausen"},null,null,{"$f":"+Titelblatt!E19","v":"Ingenieurbüro"},{"$f":"+Titelblatt!F19","v":"Musterbüro\nMusterstrasse 15\n8000 Musterhausen"}]
[{"$f":"+Titelblatt!E9","v":"Strasse"},{"$f":"+Titelblatt!F9","v":"Musterstrasse"},null,null,{"$f":"+Titelblatt!E23","v":" "},{"$f":"+Titelblatt!F23","v":" "}]
[{"$f":"+Titelblatt!E10","v":"Strecke"},{"$f":"+Titelblatt!F10","v":"Musterkreisel bis Musterstrasse"}]
[{"$f":"+Titelblatt!E11","v":"km / Bauwerk"},{"$f":"+Titelblatt!F11","v":"003-002 "}]
[{"$f":"+Titelblatt!E6","v":"Projekttitel"},{"$f":"+Titelblatt!F6","v":"Instandsetzung Musterbrücke …."}]
[]
["Objektspezifischer QM-Plan (Prüfungen durch den Bauherrn bestellt)"]
["Prüfung","Prüfverfahren","Anforderungen","Umfang","Zeitpunkt","Massnahmen bei Nichtgenügen","Bemerkungen"]
["Haftzugfestigkeit","SIA 281/3:2002","MW ³ 1.5 N/mm2 \nEW ³ 1.0 N/mm2","1 Dreierserie","Nach Einbau","Ersatz","SN 640 450:2017 Tabelle 9"]
["Schichtstärke *","Einsteckfühler","Min- und Max-Wert nach Angabe Unternehmer","min. 3 Serien à 30 EP","Nach Einbau","Überarbeiten/Ersatz","SN 640 450:2017"]
[]
["* Durch ein akkreditiertes Labor durchzuführen"]
[]
["Anforderungen an die Ausführung"]
["Rubrik","Beschrieb"]
["FLK-Abdichtungen","Bei einer Flüssigkunststoffabdichtung wird der Betonuntergrund mit Epoxydharz abgedeckt und anschliessend gleichmässig (im Überschuss) mit feuergetrocknetem Quarzsand der Körnung 0.1 – 0.5, respektive 0.3- 0.8 mm oder 0.7 – 1.2 mm abgestreut. Nicht haftendes Abstreugut ist nach der Aushärtung zu entfernen. In einer weiteren Schicht wird die Oberfläche mit Epoxydharz versiegelt.\nAuf diese Grundierung ist die FLK Abdichtung im flüssigen Zustand aufzutragen.\nNachweis durch Erstprüfung 6 Wochen vor dem Einbau"]
["Traggrundvorbereitung","Entfernung von Verunreinigungen"]
["Einbau","Auf Angaben und Verarbeitungshinweisen des Produktherstellers achten. Objekt- und Lufttemperaturen  und Feuchtigkeit\nOberflächentemperatur: zwischen +8 und +40°C, Mindestens 3°C über der Taupunkttemperatur"]
["Oberflächeneigenschaften","Keine Überstände, keine Fremdeinschlüsse, keine Blasen, keine Hohlstellen: Sichtprüfung, Abklopfen ganze Fläche"]
["Schichtstärke","Die Mittlere Schichtdicke muss mindestens der vom Hersteller angegebene Sollwert erreichen, aber min 2.0 mm, und max. 4 mm"]
["Luftreinhaltung","Die Luftreinhaltevorschriften gemäss Kapitel 913 > Ausführungs- / Anforderungshinweise > Oberflächenbehandlungen, Dichtungen und Anstrich sind einzuhalten."]

{"sheet":"611","index":45,"n_rows":39,"n_cols":7,"rows_kept":39,"cut":false,"hidden":false,"merged":[[37,1,37,6],[17,1,17,6],[2,1,2,3],[3,1,3,3],[4,1,4,3],[5,1,5,3],[6,1,6,3],[13,0,13,6],[14,1,14,6],[15,1,15,6],[16,1,16,6],[28,1,28,6],[18,1,18,6],[20,1,20,6],[21,1,21,6],[36,1,36,6],[19,1,19,6],[22,1,22,6],[8,0,8,6],[2,5,4,6],[29,1,29,6],[35,1,35,6],[23,1,23,6],[24,1,24,6],[25,1,25,6],[26,1,26,6],[27,1,27,6],[34,1,34,6],[30,1,30,6],[31,1,31,6],[32,1,32,6],[33,1,33,6]]}
[null,null,null,null,null,null,"Zu 001 Inhaltsverzeichnis"]
["600 Stahlbau",null,null,null,null,null,"611 Allgemein"]
[{"$f":"+Titelblatt!E8","v":"Gemeinde"},{"$f":"+Titelblatt!F8","v":"Musterhausen"},null,null,{"$f":"+Titelblatt!E19","v":"Ingenieurbüro"},{"$f":"+Titelblatt!F19","v":"Musterbüro\nMusterstrasse 15\n8000 Musterhausen"}]
[{"$f":"+Titelblatt!E9","v":"Strasse"},{"$f":"+Titelblatt!F9","v":"Musterstrasse"},null,null,{"$f":"+Titelblatt!E23","v":" "},{"$f":"+Titelblatt!F23","v":" "}]
[{"$f":"+Titelblatt!E10","v":"Strecke"},{"$f":"+Titelblatt!F10","v":"Musterkreisel bis Musterstrasse"}]
[{"$f":"+Titelblatt!E11","v":"km / Bauwerk"},{"$f":"+Titelblatt!F11","v":"003-002 "}]
[{"$f":"+Titelblatt!E6","v":"Projekttitel"},{"$f":"+Titelblatt!F6","v":"Instandsetzung Musterbrücke …."}]
[]
["Objektspezifischer QM-Plan (Prüfungen durch den Bauherrn bestellt)"]
["Prüfung","Prüfverfahren","Anforderungen","Umfang","Zeitpunkt","Massnahmen bei Nichtgenügen","Bemerkungen"]
[]
[]
[]
["Anforderungen an die Ausführung"]
["Rubrik","Beschrieb > vor der Fertigung"]
["Herstellerqualifikation","In der Baumeistersubmission ist die Herstellerqualifikation zu definieren. (EXCx gemäss SIA 263/1:2013)\nDie Unternehmung hat die Eignung  mit den geforderten Betriebsausweisen EXC1 bis EXC2 zu bestätigen."]
["Werkstattpläne","Kontrolle und Freigabe der Werkstattpläne durch PV vor Herstellung, Richtige Umsetzung der Projektpläne "]
["Rubrik","Beschrieb > Material"]
["Geforderte Stahlqualität","Kontrolle Lieferscheine / Prüfbescheinigungen, Anforderungen gemäss Ausführungsplänen"]
["Rubrik","Beschrieb > während der Fertigung"]
["Konforme Schweissungen, Schweissnähte","Qualitätsanforderungen und Schweissverfahren gem. SN EN ISO 3834-1:2006-08, SN EN 1090-2:2018;SIA 263.052:2018 und SN EN ISO 15607:2004-03. \nSicht- und Massprüfungen: Bewertungsgruppe nach SN EN ISO 5817:2014-09 Gruppe B: 100% und Gruppe C: 100%\nEindring- / Magnetpulverprüfung: Umfang nach SN EN 1090-2:2018, Tabelle 24 bei für  RT/UT nicht zugänglichen oder nicht geeigneten Schweissnähten\nRöntgenprüfung (RT): Prüfumfang nach SN EN 1090-2:2018, Tabelle 24\nUltraschallprüfung (UT): Prüfumfang nach SN EN 1090-2:2018, Tabelle 24"]
["Bolzenschweissen","Das Schweissen von Bolzen erfolgt nach SIA 263/1:2013 Ziffer 11.1.6. Minimalprüfumfang und -anforderungen gemäss SIA 263/1:2013 Ziffer 11.1.7"]
["Rubrik","Beschrieb > während / nach der Montage"]
["Vorspannkraft bei vorgespannten Schraubverbindungen","Anziehen von vorgespannten Schraubverbindungen gemäss SIA 263/1 Ziffer 7.5"]
["Rubrik","Beschrieb > Vorbereitung Konstruktion für Korrosionsschutz"]
["Anforderungen an Stahl für feuerverzinkte Konstruktionen ","Es dürfen nur Stähle verwendet werden, die gemäss SN EN 10025 als zum Feuerverzinken geeignet eingestuft sind.\nDas Material muss frei von Walzfehlern sein (wie z.B. Schalen, Schuppen, Schalenstreifen, Überfaltung, Ziehriefen etc. nach SN EN 10163-1:2005). Eine entsprechende Vereinbarung zwischen Verarbeiter und Stahllieferant ist bereits bei der Stahlbestellung zu treffen.\nUm die geforderte Feuerverzinkungsqualität erreichen zu können soll die Summe des Silizium (Si)- + Phospor (P)- Gehaltes wie folgt eingegrenzt werden:\n> 0.13% < Si + P ≤ 0.28% (Sebisty-Bereich, silbrig glänzend bis mattgrau, mittlere Schichtdicke)\nSchweisssprays, Zieh-Hilfsmittel, Signierungen, Silicon-Schmiermittel und Kühlmittelemulsionen mit Silicon-Additiven und andere Verunreinigungen, die der Verzinker weder durch Entfetten noch Beizen beseitigen kann, sind durch den Stahlbauer zu entfernen"]
["Feuerverzinkungstaugliche Konstruktion","Die Teile sind feuerverzinkungsgerecht gemäss SN EN ISO 1461:2009 und dem SIA Merkblatt 2022:2003 zu konstruieren: keine Spalten, genügend grosse Ablauf-, Be- und Entlüftungslöcher; keine geschlossenen Hohlräume (Explosionsgefahr)"]
["Vorbereitungsgrade des Stahlbaus","Prinzipiell ist der Vorbereitungsgrad „P2“ gemäss SN EN ISO 8501-3:2007 anzuwenden. Zusätzlich zum Vorbereitungsgrad „P2“ sind folgende Arbeiten im Vorbereitungsgrad „P3“ auszuführen: Alle scharfen Kanten, auch allfällige scharfe Walzkanten, sind zu brechen (runden mit Radius > 2mm). Kanten von Löchern, Schlitzlöchern / Langlöchern sind unter 45° zu brechen (gemäss SN EN ISO 12 944-3:2018, Anhang D). Grate an Löchern und entlang von Schnittkanten müssen dabei entfernt werden.\nAlle Schweissnähte sind durchgehend zu schweissen, unterbrochene Schweissnähte sind nicht zugelassen. Alle Schweissspritzer, Schweissperlen und Schweissschlackenreste sind restlos zu entfernen. Alle Walzfehler sind auszuschleifen"]
["Hohlräume in Stahlkonstruktionen","Hohlräume sind dicht zu verschliessen. Dichtgeschlossene Hohlbauteile bedürfen keines Korrosionsschutzes. Zur späteren Prüfung der Dichtigkeit wird empfohlen, an der\ntiefsten Stelle einen Schraubstopfen vorzusehen.\nAusnahme bei verzinkten Konstruktionen: dichte Hohlräume sind nicht zugelassen."]
["Brennschnittkanten","Die bei Brennschnittkanten unvermeidbaren Veränderungen der Stahloberfläche (Rauheit, Aufhärtung, chemische Zusammensetzung) können bei Beschichtungen und Spritzmetallisierung zu Haftungsstörungen, beim Feuerverzinken zu inhomogenen Zinküberzügen führen. Die Herstellung des festgelegten Vorbereitungsgrades (Reinheit und Rauheit) erfordert gegebenenfalls spezielle Nacharbeiten. Siehe SN EN ISO 8501-3:2007 \nBei Brennschnittkanten, insbesondere bei plasmageschnittenen Werkstückkanten, kann es im Bereich der Schnittflächen zu Veränderungen in der Werkstückoberfläche kommen (z.B. Aufkohlung). Diese Veränderungen können auch eine veränderte Eisen-Zink-Reaktion zur Folge haben, mit dem Ergebnis, dass sich Zinküberzüge ausbilden, deren Dicke unter den geforderten Normwerten liegt. In solchen Fällen sind die Brennschnittflächen mindestens 0.2mm abzuarbeiten, z.B. durch Schleifen."]
["Löcher","Löcher müssen gebohrt oder nach dem Stanzen um mindestens 2mm aufgebohrt werden"]
["Art des Strahlmittels","Die Oberflächenvorbereitung (inkl. Entfernen der alten Beschichtungen) erfolgt im Freihand-Druckluftstrahlverfahren mit trockener und ölfreier Druckluft, unter Verwendung eines kantigen, gebrochenen mineralischen Strahlmittels. Ein metallisches, kantiges Strahlmittel (Grit), als Einweg- oder Mehrwegstrahlmittel, ist nur bei Arbeiten im Werk zugelassen, und auch nur dann, wenn keine Brennschnitt-flächen vorhanden sind. Die Härte des Strahlmittels muss dabei mindestens 63 HRC entsprechen. Das Strahlen mit Shot-Strahlmittel (rundes Strahlmittel) ist auch im Werk nicht zugelassen. 1) \nZusätzlich: Metallisches Strahlmittel muss kantig und auch kantig brechend sein."]
["Strahlschuttentsorgung","Der anfallende Strahlschutt ist je nach Örtlichkeit (Betriebsbedingungen, Belastbarkeit der Einrüstung usw.) in angemessenen Zeiträumen aufzunehmen bzw. mit entsprechenden Anlagen aufzusaugen, in dichten, geschlossenen Behältern (Silos) zu sammeln und in Kunststoffsäcke (\"big bags\") für den Abtransport ordnungsgemäss abzufüllen, zwischen zu lagern, abzuführen und zu entsorgen. Filterstaub und Strahlschutt müssen geschützt aufbewahrt werden. Es darf kein Strahlschutt oder Filterstaub in die Umwelt gelangen. Dem Auftraggeber ist die Erstausfertigung der Analysen, der Bescheid über die Zuordnung zum Deponietyp, die „Empfänger-Bewilligung“ beivorgesehenen Entsorger und die Nachweise über die Beförderung und Beseitigung des Strahlschuttes zu übergeben. 1)\nDie Zwischenlagerung und die Entsorgung von Strahlgut und Filterstaub hat nach den gesetzlichen Vorschriften zu erfolgen. "]
["Wiederaufbereitung des Strahlgutes","Verwendet die Korrosionsschutzfirma eine Strahlgutwiederaufbereitungsanlage muss dem Angebot die „Bewilliung der Anlage“ (normalerweise KIGA) beigelegt werden. Bei einem Fehlen der Bewilligung muss auf Einwegstrahlmittel umgestellt werden.\nBemerkung per 27.9.11: Im Moment ist gem. Gesetz nicht klar, ob Mehrwegstrahlmittel vor der Wiederaufbereitung „Sonderabfall“ oder Werkabfall“ ist."]
["Oberflächenvorbereit-ung der schadhaften Stellen","Zwischen intakter Beschichtung und blanker Metalloberfläche entsteht eine Übergangszone. Diese sollte so schmal wie möglich ausgeführt werden. Insbesondere beim Strahlen ist darauf zu achten, dass die intakten Flächen so wenig wie möglich durch das Strahlen beeinträchtigt werden. Hand- oder maschinelle Entrostung entsprechend dem Reinheitsgrad P St 2 oder P St 3. 1)"]
["Oberflächenvorbereitung der intakten Altbeschichtung","Vor dem Überbeschichten müssen Verschmutzungen, Abbau- und Kreidungsprodukte sowie schlecht haftende Stellen der Altbeschichtung entfernt werden. Dafür geeignet sind folgende Verfahren:\n- Sweep Strahlen (mit Vorbehalt)\n- Abwaschen mit viel kaltem Wasser + Netzmittelzusatz mit Einsatz von Bürsten (z.B. mit Gregomatic Vakuumwasch und Spül-Absaug-Gesamtsysten für Oberflächen jeder Struktur)\n- Reinigung und Schleifen (Scotch Bride) mit z.B. Salmiaklauge und Nachwaschen mit Wasser. Finden diese Arbeiten auf der Baustelle statt, ist das Abwasser zu erfassen und zu behandeln"]
["Druckluftstrahlen","Die Druckluftstrahlung hat mit trockener, ölfreier Luft zu erfolgen"]
[]
["1) SBB Dokument Ausführungs- und Qualitätsvorschriften (AQV) für Korrosionsschutz von Stahlbrücken"]

{"sheet":"612","index":46,"n_rows":61,"n_cols":7,"rows_kept":61,"cut":false,"hidden":false,"merged":[[5,1,5,3],[29,1,29,6],[28,1,28,6],[2,1,2,3],[3,1,3,3],[4,1,4,3],[8,0,8,6],[2,5,4,6],[37,1,37,6],[6,1,6,3],[11,0,11,6],[16,0,16,6],[25,0,25,6],[26,1,26,6],[27,1,27,6],[32,1,32,6],[33,1,33,6],[34,1,34,6],[35,1,35,6],[36,1,36,6],[30,1,30,6],[31,1,31,6],[48,1,48,6],[38,1,38,6],[39,1,39,6],[40,1,40,6],[41,1,41,6],[42,1,42,6],[43,1,43,6],[44,1,44,6],[45,1,45,6],[46,1,46,6],[47,1,47,6],[55,1,55,6],[56,1,56,6],[57,1,57,6],[58,1,58,6],[49,1,49,6],[50,1,50,6],[51,1,51,6],[52,1,52,6],[53,1,53,6],[54,1,54,6]]}
[null,null,null,null,null,null,"Zu 001 Inhaltsverzeichnis"]
["600 Stahlbau",null,null,null,null,null,"612 Korrosionsschutz"]
[{"$f":"+Titelblatt!E8","v":"Gemeinde"},{"$f":"+Titelblatt!F8","v":"Musterhausen"},null,null,{"$f":"+Titelblatt!E19","v":"Ingenieurbüro"},{"$f":"+Titelblatt!F19","v":"Musterbüro\nMusterstrasse 15\n8000 Musterhausen"}]
[{"$f":"+Titelblatt!E9","v":"Strasse"},{"$f":"+Titelblatt!F9","v":"Musterstrasse"},null,null,{"$f":"+Titelblatt!E23","v":" "},{"$f":"+Titelblatt!F23","v":" "}]
[{"$f":"+Titelblatt!E10","v":"Strecke"},{"$f":"+Titelblatt!F10","v":"Musterkreisel bis Musterstrasse"}]
[{"$f":"+Titelblatt!E11","v":"km / Bauwerk"},{"$f":"+Titelblatt!F11","v":"003-002 "}]
[{"$f":"+Titelblatt!E6","v":"Projekttitel"},{"$f":"+Titelblatt!F6","v":"Instandsetzung Musterbrücke …."}]
[]
["Objektspezifischer QM-Plan (Prüfungen durch den Bauherrn bestellt)"]
["Prüfung","Prüfverfahren","Anforderungen","Umfang","Zeitpunkt","Massnahmen bei Nichtgenügen","Bemerkungen"]
[]
["Korrosionsschutzarbeiten im Freien: Anstrichsfläche bis 500m2"]
[]
["Visuelle Gesamtbeurteilung des fertigen Korrosionsschutz","Visuelle Beurteilung des Korrosionsschutzsysten durch ein externes Prüflabor","Keine Fehlstellen","Stichproben","Nach Abschluss der Korrosionsschutzarbeiten","Rückweisung / Mängelrüge","Protokoll / Abnahmeprotokoll"]
["Keilschnittprüfungen am fertigen Korrosionsschutz","Schichtdickenmessungen mittels Keilschnittprüfung nach SN EN ISO 19399:2018","Gemäss Vorgabe PV","Stichproben","Nach Abschluss der Korrosionsschutzarbeiten","Rückweisung / Mängelrüge","Protokoll / Abnahmeprotokoll"]
[]
["Korrosionsschutzarbeiten im Freien: Anstrichsfläche über 500m2"]
["Reinheitsgrad","SN EN ISO 8501-1:2008","Mindestens Sa 2 ½","Stichproben + und Kontrollfelder","Vor dem Aufbringen der Grundbeschichtung","Nachstrahlen","QM Dokument à Kapitel Kontrollfeld x"]
["Rauigkeit","a) \nSN EN ISO 8503-2:2012\nb,c) \nSN EN ISO 8503-1:2012","3 Möglichkeiten: \na) Vergleichsplatte „Grit“, zwischen Segment 2 und 3; \nb) mittlere Rauigkeit Rz zwischen 50 und 115 µm\nc) Oberflächenvergröss. > 18%","Stichproben + und Kontrollfelder","Vor dem Aufbringen der Grundbeschichtung","Nachstrahlen","QM Dokument à Kapitel Kontrollfeld x"]
["Kontrolle auf Korrosionsstimulatoren Chloriden und Sulfate","SN EN ISO 8502-6:2006\nDIN SPEC 55684:2018","Prüfstreifen, maximale Chloridbelastung: 7µg/cm2 ","Stichproben + und Kontrollfelder","Vor dem Aufbringen der Grundbeschichtung","Waschen mit Wasserhochdruck  sowie Nachstrahlen;, ggf. auswechseln Strahlmittel","QM Dokument à Kapitel Kontrollfeld x"]
["Schichtdickenmessung \nGrundierung","SN EN ISO 2808:2007\nISO 19840:2012","Gemäss Vorgabe PV","Systematische Messungen, ca. 50 Messungen je 100m2 ","Nach dem Aushärten der Beschichtung","Nachstreichen","QM Dokument à Kapitel Kontrollfeld x"]
["Schichtdickenmessung\n1. Zwischenbeschichtung","SN EN ISO 2808:2007\nISO 19840:2012","Gemäss Vorgabe PV","Systematische Messungen, ca. 25 Messungen je 100m2 ","Nach dem Aushärten der Beschichtung","Anpassen der nächsten Beschichtungsschichtdicken","QM Dokument à Kapitel Kontrollfeld x"]
["Schichtdickenmessung\n2. Zwischenbeschichtung","SN EN ISO 2808:2007\nISO 19840:2012","Gemäss Vorgabe PV","Systematische Messungen, ca. 50 Messungen je 100m2 ","Nach dem Aushärten der Beschichtung","Anpassen der nächsten Beschichtungsschichtdicken","QM Dokument à Kapitel Kontrollfeld x"]
["Schichtdickenmessung Deckbeschichtung","SN EN ISO 2808:2007\nISO 19840:2012","Gemäss Vorgabe PV","Systematische Messungen, ca. 50 Messungen je 100m2 ","Nach dem Aushärten der Beschichtung",null,"QM Dokument à Kapitel Kontrollfeld x"]
[]
["Anforderungen an die Ausführung"]
["Rubrik","Beschrieb > Schutz der Umwelt"]
["Luftreinhaltung","Bei Arbeiten an Objekten im Freien mit einer Oberfläche über 50 m2 sind die staubhaltigen Abgase zu erfassen und einer Entstaubungsanlage zuzuführen, falls die Stäube Schwermetalle, polychlorierte Biphenyle (PCB) oder polyzyklische aromatische Kohlenwasserstoffe (PAK) enthalten. Die Staubemissionen dürfen höchstens 1 mg/m3 betragen.\nFür die Neubeschichtung sind umweltverträgliche Beschichtungsmittel (lösemittelarm, schwermetallfrei und PAK-frei) einzusetzen. Neue feuerverzinkte Oberflächen sind mit einem schwermetallfreien Schutzanstrich gegen Abwitterung zu versehen, sofern das Objekt der Witterung ausgesetzt ist.\nsiehe auch Kapitel 613 und Kapitel 911 ff."]
["Rubrik","Beschrieb > Oberflächenvorbereitung"]
["Sauberkeit der gestrahlten Oberfläche","Visuelle Kontrolle nach SN EN ISO 8502-3:2012, DIN SPEC 55684:2018, staubfrei und frei von Verunreinigungen"]
["Reinheitsgrad","Die Kontrolle erfolgt nach SN EN ISO 8501-1:2008 stichprobenaritig (Kontrollfelder) vor dem Aufbringen der Grundbeschichtung. Der Reinheitsgrad muss mindestens Sa 2 ½ aufweisen. Bei Nichtgenügen ist ein Nachstrahlen erforderlich. Die Erkenntnisse der Kontrolle sind in einem Abnahmeprotokoll festzuhalten."]
["Rauhigkeit","Die Kontrolle erfolgt nach SN EN ISO 8503-2:2012 und 8503-1:2012 stichprobenaritig (Kontrollfelder) vor dem Aufbringen der Grundbeschichtung. Die Bestimmung der Rauigkeit erfolgt nach einer von 3 Methoden > a) Vergleichsplatte „Grit“, zwischen Segment 2 und 3; b) mittlere Rauigkeit Rz zwischen 50 und 115 µm; c) Oberflächenvergrösserung > 18%. Bei Nichtgenügen der Anforderung der gewählten Methode ist ein Nachstrahlen erforderlich. Die Erkenntnisse der Kontrolle sind in einem Abnahmeprotokoll festzuhalten."]
["Rubrik","Beschrieb > Beschichtung"]
["Zulassung Beschichtungsstoffe","Beschichtungsstoffe müssen den TL/TP-KOR-Stahlbauten entsprechen und in der von der Deutschen Bundesanstalt für Strassenwesen (BASt) geführten \"Zusammenstellung der zertifizierten Beschichtungsstoffe nach TL/TP-KOR-Stahlbauten für die Anwendung an Bauwerken und Bauteilen der Bundesverkehrswege\" aufgeführt sein."]
["Klimatische Bedingungen","Messen von Luft- und Oberflächentemperatur und Luftfeuchtigkeit, Bestimmen des Taupunktabstandes mit dem Messgerät:\n- Messverfahren: Klimamessgeräte, Datenlogger, SN EN ISO 8502-4:2017\n- Anforderungen: Taupunktabstand: > 4°; max. Oberflächentemperatur: 35°\n- Umfang: i.d.R. bis 48h nach Abschluss der Beschichtungsarbeiten 2)\n\nHinweis zur Bemerkung: „ i.d.R. bis 48 h nach Abschluss der Beschichtungsarbeiten“. Die Anforderung ist zu löschen, falls auf der Baustelle nur die Deckbeschichtung aufgebracht werden muss (Werksbeschichtung der Grundierung und der beiden Zwischenbeschichtungen; Deckbeschichtung auf der Baustelle). Falls die Anforderung bestehen bleibt wäre eine Einhausung notwendig (unverhältnismässige Mehrkosten)."]
["Beschichtungsprogramm","Dokumentation Arbeitsablauf, Einhalten der Trocknungszeiten, Referenzierung auf Klimadatenmessung"]
["Kontrollfelder","1 Kontrollfeld bis 1000m2; ab 1000m2 gem. Vereinbarung; Protokoll zwischen: Applikateur, Lieferant Beschichtungsstoff, Bauleitung, ggf. Bauherrschaft; \nSiehe auch 1), Kapitel 7.5"]
["Schichtdickenmessungen","Die SN EN ISO 12944-5:2018 definiert die Schichtdicken bei Beschichtungssystemen mit der Sollschichtdicke. Dabei werden Einzelwerte, die mindestens 80 % der vereinbarten Sollschichtdicken erreichen, toleriert, wenn der Mittelwert aller Messungen mindestens die vereinbarte Sollschichtdicke erreicht. Die geforderte Mindestschichtdicke beträgt folglich 80 % der Sollschichtdicke. Abweichend von SN EN ISO 12944-5:2018 darf in der Regel die gemessene Schichtdicke pro Beschichtung das Dreifache der Sollschichtdicke nicht überschreiten. 1) "]
["Aufbringen der Grundbeschichtung","Die Grundbeschichtung muss wegen der einsetzenden Flugrostbildung sofort nach der Abnahme der gestrahlten Flächen appliziert werden (in der Regel am gleichen Tag). Als Ausnahme kann gelten, wenn die relative Luftfeutigkeit < 40 % beträgt. In diesem Fall findet keine Korrosion der gestrahlten Fläche statt. \nIst Flugrost entstanden, müssen die Flächen ohne Mehrkosten für den Bauherrn erneut gestrahlt werden. 1)"]
["Beschichtungsverfahren","Alle Beschichtungen, welche auf der Baustelle aufgebracht werden, müssen gestrichen oder gerollt (nach ordnungsgemässem Vorstreichen aller Kanten, vorspringender Ecken, Aussteifungen, Nieten, Schrauben, etc.) werden. Das Aufbringen der Beschichtungen mittels Spritzen ist auf der Baustelle nicht gestattet  1)"]
["Korrosionsschutz auf Kontaktflächen von gleitfesten Verbindungen","Allgemein: Visuelle Schichtdickenmessungen am Bauteil:\n- Oberflächenvorbereitung gemäss SIA 263/1:2013 Ziffer 7.3.3\n- Nur 2 Beschichtungen (Grundierung und 1 Zwischenbeschichtung)\n- Sollschichtdicke = Maximalschichtdicke"]
["Korrosionsschutz bei vorgespannten Schrauben","Bei dem Einsatz von HV-Schrauben auf beschichteten Stahlkonstruktionen ist mit geeigneten Massnahmen vor allem folgendes zu verhindern:\n- Die Beschädigung bzw. Zerstörung des Korrosionsschutzes rund um die Unterlagsscheiben der HV-Schrauben durch die grossen Anpressdrücke (Zerdrückung der Beschichtung mit Aufwölbungen um die Schraube).\n- Ein zu grosser Abfall der Vorspannkraft in den Schraubverbindungen durch das Herausquetschen der Beschichtung.\n- Aufwulstungen sind abzustossen und fachgerecht auszubessern\n- Nach dem Einbau / Montage hat ein geeigneter Grundanstich auf den Schraubenköpfen und den Mutter zu erfolgen.\n\nEs sind die Massnahmen gem. 1), Kapitel 5.8.4 (Einsatz von HV- Schrauben) durchzuführen. Im Speziellen verwiesen wird auf: \n(5) Die Vorspannkraft darf erst nach Beendigung der Schlusstrocknungsdauer aufgebracht werden.\n(6)  Erst nach erfolgter Montage und Abschluss der Schraubenvorspannungen sind diese Bereiche mit der 2. Zwischenbeschichtung und der Deckbeschichtung zu versehen.\n(7) Vor dem Aufbringen der 2. Zwischenbeschichtung und der Deckbeschichtung hat eine ordnungsgemässe Reinigung dieser Beschichtungsflächen zu erfolgen. Die feuerverzinkten, mit MoS2 geschmierten, Schrauben sind dabei ebenfalls zu reinigen und zu entfetten (Test) und mit den beiden letzten Beschichtungen zu versehen."]
["Fugen","Grössere Fugen zwischen Konstruktionsteilen sind nach einer fachgerechten Reinigung bzw. Oberflächenvorbereitung mit geeigneten Dichtmassen (Verfüllen der Fugen mit 1-Komponenten Polyurethan-Fugenmasse wie z.B. Sikaflex 11 FC oder gleichwertiges Produkt) dicht zu verschliessen. Sofern der Spalt zu eng zum Verfugen ist, ist dieser sorgfältig und mindestes zweimal im Rahmen der Kantenschutzarbeiten auszustreichen. 1)\nDie Ausführung hat vor dem Aufbringen des Deckanstriches zu erfolgen. (Silikon-Kitte sind nicht zugelassen)"]
["Farbwahl","Zur Unterscheidung der einzelnen Beschichtungen (Grundbeschichtung, erste und zweite Zwischenbeschichtung, Deckbeschichtung) sind diese untereinander farblich abzutönen. Das Rollen der Deckbeschichtung muss möglichst gleichmässig und gleichgerichtet sein (gutes Aussehen der Beschichtung). 1)"]
["Rubrik","Beschrieb > Feuerverzinken / Duplexieren"]
["Allgemein","Bauteile, die als Korrosionsschutz entweder eine Feuerverzinkung oder Feuerverzinkung und anschliessende Beschichtung erhalten, sind nach der Norm EN ISO 1461 auszuführen.\nGenereller Hinweis: Feuerverzinkte Konstruktionen für die Duplexierung müssen bereits bei der Bestellung der Feuerverzinkung als „zu duplexierende Konstruktion“ bestellt werden"]
["Übernahme der Stahlkonstuktion durch die Verzinkerei","Visuelle Kontrolle der vollständigen Konstruktion vor der Feuerverzinkung:\n- Anforderung: Konstruktion verzinkungsgerecht, sauber verputzt"]
["Anforderungen an die Feuerverzinkung","Es gilt die Norm EN ISO 1461, insbesondere auch für die Mindestschichtdicken, die maximal zulässige Fehlergrösse (0.5% der Oberfläche) und für Ausbesserungen.\nAusserdem gelten folgende Bestimmungen zusätzlich:\nDie Feuerverzinkung muss frei sein von Tränen, Zähnen, Zinkanhäufungen, Ascheresten, Hartzinkkristallen und Weissrost. Weissrostbildung der jungen Verzinkung ist durch korrekte Lagerung zu vermeiden und ggf. durch eine fachgerechte Reinigung (durch den Verursacher) zu entfernen. \nDie Feuerverzinkung wird nicht nachbehandelt (ausser für allfällige Beschichtungen: Feinstrahlen mit mineralischem Strahlmittel: Korn 0,1 bis 0,5 mm, Druck an der Düse max. 2 bar). Für ästhetisch anspruchsvolle Duplexsysteme (Feuerverzinkung plus Beschichtung) ist eine allenfalls raue Feuerverzinkungsoberfläche vor dem Staubstrahlen abzuziehen resp. flach zu schleifen. \nDas Ausbessern von Zink-Verletzungen ist nur mittels 2 x 2K-EP-Zinkphosphat, 2 x 2K-EP-Eisenglimmer oder mittels Zink-Lot bei kleinen Stellen (Aufhängepunkte) gemäss EN ISO 1461 zulässig. Zink- oder Aluminiumbronze-Sprays sind strikte unzulässig. Die Schichtdicken von Beschichtungen an Ausbesserungen müssen insgesamt mind. 30 µm höher sein als die angrenzende Zinkschicht"]
["Übernahme der verzinkten Konkstruktion","Visuelle Kontrolle der Beschichtung nach der Feuerverzinkung"]
["Schichtdicke Feuerverzinkung","Schichtdickenmessung:\n- Verfahren nach SN EN ISO 1461\n- Anforderungen gemäss SN EN ISO 1461 "]
["Staubstrahlen (Sweepen)","Das feuerverzinkte Bauteil ist an den zu beschichtenden Flächen zu sweepen.\nDruckluftstrahlung mit reduziertem Druck: 2-3 bar hinter der Düse, feines, kantiges Korn mit Korngrösse: 0.2 bis 0.4 mm, Abstand zwischen Düse und Strahlgut: ca. 0.7 bis, 1 m, Rauigkeit: 20 µm < Rz < 40 µm"]
["Rauigkeit für Duplexieren","Vollflächige Rauigkeit gemäss ISO 8503 im ersten Quadranten der Vergleichsscheibe, gemittelte max. Rautiefe Ry5 (Rz): 30µm "]
["Zulassung Beschichtungsstoffe","Beschichtungsstoffe müssen den TL/TP-KOR-Stahlbauten entsprechen und in der von der Deutschen Bundesanstalt für Strassenwesen (BASt) geführten \"Zusammenstellung der zertifizierten Beschichtungsstoffe nach TL/TP-KOR-Stahlbauten für die Anwendung an Bauwerken und Bauteilen der Bundesverkehrswege\" aufgeführt sein."]
["Klimatische Bedingungen","Messen von Luft- und Oberflächentemperatur und Luftfeuchtigkeit, Bestimmen des Taupunktabstandes mit dem Messgerät:\n- Messverfahren: Klimamessgeräte, Datenlogger, ISO 8502-4 Merkblätter\n- Anforderungen: Taupunktabstand: > 4°; max. Oberflächentemperatur: 35°\n- Umfang: i.d.R. bis 48h nach Abschluss der Beschichtungsarbeiten 2)"]
["Beschichtungs-programm","Dokumentation Arbeitsablauf, Einhalten der Trocknungszeiten, Referenzierung auf Klimadatenmessung"]
["Schichtdickenmessung\nZwischenbeschichtung","Schichtdickenmessung der Zwischenbeschichtung:\n- Prüfverfahren: nach EN ISO 2808 und ISO 19840\n- Anforderungen: gemäss Vorgabe PV \n- Umfang: systematische Messungen, ca. 50 Messungen je 100m2"]
["Schichtdickenmessung Deckbeschichtung","Schichtdickenmessung der Zwischenbeschichtung:\n- Prüfverfahren: nach EN ISO 2808 und ISO 19840\n- Anforderungen: gemäss Vorgabe PV \n- Umfang: systematische Messungen, ca. 50 Messungen je 100m2"]
["Kontrollfelder","1 Kontrollfeld bis 1000m2; ab 1000m2 gem. Vereinbarung; Protokoll zwischen: Applikateur, Lieferant Beschichtungsstoff, Bauleitung, ggf. Bauherrschaft; \nSiehe auch 1), Kapitel 7.5"]
["Montagearbeiten","Schweissarbeiten an feuerverzinkten Teilen sind grundsätzlich nicht zulässig (Zinkdämpfe, Gefahr von Lotbruch). \nStahlbau: Schraubverbindungen haben mit feuerverzinkten Schraubengarnituren zu erfolgen. Galvanisch verzinkte Garnituren sind nicht zulässig. Bei feuerverzinkten Konstruktionen sind Gleitfeste Schraubverbindungen mittels hochfest vorgespannten 10.9-HV-Schrauben nicht zulässig; hingegen Scher-Lochleibungsverbindungen und solche mit Passschrauben (HVP) sind erlaubt."]
["1) SBB Dokument Ausführungs- und Qualitätsvorschriften (AQV) für Korrosionsschutz von Stahlbrücken"]
["2) SBB Dokument Ausführungs- und Qualitätsvorschriften (AQV) für Baulicher Lärmschutz Stahlpfosten"]

{"sheet":"613","index":47,"n_rows":25,"n_cols":7,"rows_kept":25,"cut":false,"hidden":false,"merged":[[25,1,25,6],[26,1,26,6],[17,1,17,6],[2,1,2,3],[3,1,3,3],[4,1,4,3],[5,1,5,3],[6,1,6,3],[13,0,13,6],[14,1,14,6],[15,1,15,6],[16,1,16,6],[24,1,24,6],[2,5,4,6],[23,1,23,6],[18,1,18,6],[19,1,19,6],[20,1,20,6],[21,1,21,6],[22,1,22,6],[8,0,8,6]]}
[null,null,null,null,null,null,"Zu 001 Inhaltsverzeichnis"]
["600 Stahlbau",null,null,null,null,null,"613 Korrosionsschutz: Gerüste / Einhausungen"]
[{"$f":"+Titelblatt!E8","v":"Gemeinde"},{"$f":"+Titelblatt!F8","v":"Musterhausen"},null,null,{"$f":"+Titelblatt!E19","v":"Ingenieurbüro"},{"$f":"+Titelblatt!F19","v":"Musterbüro\nMusterstrasse 15\n8000 Musterhausen"}]
[{"$f":"+Titelblatt!E9","v":"Strasse"},{"$f":"+Titelblatt!F9","v":"Musterstrasse"},null,null,{"$f":"+Titelblatt!E23","v":" "},{"$f":"+Titelblatt!F23","v":" "}]
[{"$f":"+Titelblatt!E10","v":"Strecke"},{"$f":"+Titelblatt!F10","v":"Musterkreisel bis Musterstrasse"}]
[{"$f":"+Titelblatt!E11","v":"km / Bauwerk"},{"$f":"+Titelblatt!F11","v":"003-002 "}]
[{"$f":"+Titelblatt!E6","v":"Projekttitel"},{"$f":"+Titelblatt!F6","v":"Instandsetzung Musterbrücke …."}]
[]
["Objektspezifischer QM-Plan (Prüfungen durch den Bauherrn bestellt)"]
["Prüfung","Prüfverfahren","Anforderungen","Umfang","Zeitpunkt","Massnahmen bei Nichtgenügen","Bemerkungen"]
["Überwachung Schwermetallbelastung in der Luft und im Boden","Verfahren von Berghoff (nach VDI 2219)","Immissionsgrenzwerte für den Gesamtniederschlag und für Blei und Zink gemäss LRV (Luftreinhalteverordnung)","Objektspezifisch, ab 500m2 Anstrichsfläche","Vor, während und nach den Strahlarbeiten","- Korrekturmassnahmen Einhausung\n- Kontrolle Abluft- / Entstaubungsanlage","Protokoll"]
[]
[]
["Anforderungen an die Ausführung"]
["Rubrik","Beschrieb > Vor der Montage"]
["Statisches Konzept der Gerüstung + Einhausung","Prüfung der Gerüstpläne und der statischen Berechnungen mit Prüfbericht, 4 Wochen vor Montagebeginn durch PV, Anforderungen gemäss Vorgaben PV"]
["Rubrik","Beschrieb > Vor Beginn der Strahlarbeiten"]
["Gerüst","Bei der Befestigung der Gerüste an der Brückenkonstruktion ist darauf zu achten, dass keine dauernden Verbiegungen oder unzulässigen Deformationen von Bauteilen entstehen.\nDas Gerüst muss so konzipiert werden, dass möglichst wenige Aufhängungs- und Abstützpunkte an der Stahlkonstruktion vorhanden sind. Solche Punkte sind jeweils doppelt in unmittelbarer Nähe zueinander vorzusehen, damit sie bei den Strahl- und Applikationsarbeiten umgesetzt werden können. Profilkanten im Bereich von Aufhängungspunkten sind auf zweckmässige Art (z.B. mit Gummi- oder Holzunterlagen) zu schützen. 1)"]
["Freigabe Gerüst","Abnahme Gerüst, Sicherheit / zulässige Belastungen gemäss Vorgabe PV und gemäss 1) Kapitel 3"]
["Einhausung","Siehe Kapitel 4.1 in  SBB Dokument Ausführungs- und Qualitätsvorschriften (AQV) für Korrosionsschutz von Stahlbrücken"]
["Funktionstüchtigkeit der Einhausung à Inbetriebnahme Einhausung","Kontrolle Dichtigkeit, Unterdruck gemäss Kapitel 4.1 in SBB Dokument Ausführungs- und Qualitätsvorschriften (AQV) für Korrosionsschutz von Stahlbrücken"]
["Rubrik","Beschrieb > Während und nach den Strahlarbeiten"]
["Funktionstüchtigkeit der Einhausung à Betrieb der Einhausung","Laufende Kontrolle der Einhausung auf Beschädigungen. Der Unternehmer hat Vorkehrungen / Massnahmen zu treffen, dass während den Strahlarbeiten die Einhausung nicht verletzt wird."]
["Entstaubungsanlagen","Siehe Kapitel 4.2 in SBB Dokument Ausführungs- und Qualitätsvorschriften (AQV) für Korrosionsschutz von Stahlbrücken"]
["Schlussreinigung Gerüst und Einhausung","Abnahme Gerüst, Gerüst und Einhausung sind sauber und weitgehend „staubfrei“. Keine Strahlrückstände mehr am Gerüst und an der Einhausung"]

{"sheet":"911","index":48,"n_rows":25,"n_cols":7,"rows_kept":25,"cut":false,"hidden":false,"merged":[[2,1,2,3],[3,1,3,3],[4,1,4,3],[6,1,6,3],[12,0,12,6],[8,0,8,6],[2,5,4,6],[23,1,23,6],[20,1,20,6],[22,1,22,6],[18,1,18,6],[5,1,5,3],[13,1,13,6],[17,1,17,6],[16,1,16,6],[14,1,14,6],[15,1,15,6],[19,1,19,6],[21,1,21,6]]}
[null,null,null,null,null,null,"Zu 001 Inhaltsverzeichnis"]
["900 Umwelt",null,null,null,null,null,"911 Baustellenentwässerung\n"]
[{"$f":"+Titelblatt!E8","v":"Gemeinde"},{"$f":"+Titelblatt!F8","v":"Musterhausen"},null,null,{"$f":"+Titelblatt!E19","v":"Ingenieurbüro"},{"$f":"+Titelblatt!F19","v":"Musterbüro\nMusterstrasse 15\n8000 Musterhausen"}]
[{"$f":"+Titelblatt!E9","v":"Strasse"},{"$f":"+Titelblatt!F9","v":"Musterstrasse"},null,null,{"$f":"+Titelblatt!E23","v":" "},{"$f":"+Titelblatt!F23","v":" "}]
[{"$f":"+Titelblatt!E10","v":"Strecke"},{"$f":"+Titelblatt!F10","v":"Musterkreisel bis Musterstrasse"}]
[{"$f":"+Titelblatt!E11","v":"km / Bauwerk"},{"$f":"+Titelblatt!F11","v":"003-002 "}]
[{"$f":"+Titelblatt!E6","v":"Projekttitel"},{"$f":"+Titelblatt!F6","v":"Instandsetzung Musterbrücke …."}]
[]
["Objektspezifischer QM-Plan (Prüfungen durch den Bauherrn bestellt)"]
["Prüfung","Prüfverfahren","Anforderungen","Umfang","Zeitpunkt","Massnahmen bei Nichtgenügen","Bemerkungen"]
[]
[]
["Anforderungen an die Ausführung"]
["Rubrik","Beschrieb"]
["Baustellenentwässer-ungskonzept","Wenn durch den Bauvorgang unter- oder oberirdische Gewässer oder Abwasseranlagen beeinträchtigt werden können, muss ein Entwässerungskonzept nach SIA/VSA 431:1997 erstellt und der zuständigen Behörde 1) zur Bewilligung eingereicht werden. Dies ist insbesondere der Fall bei:\n- Untertagebau\n- Spezialtiefbauarbeiten\n- Baugrubenentwässerungen (Ausnahme: Bagatellfälle ohne Gefahr für ober- und unterirdische Gewässer)\n- Aufstellen von Anlagen für die Herstellung von Beton\n- Bohr- und Fräsarbeiten (Ausnahmen regelt die SIA/VSA 431:1997)\n- Grundwasserabsenkung\n- Anlagen zum Umschlag von Beton, sofern pro Tag mehr als 1000 Liter Abwasser anfallen oder die Baustelle länger als 3 Monate dauert\n- Bauten innerhalb von Grundwasserschutzzonen und -arealen\n- Bauvorhaben auf Altlasten, belasteten Standorten oder Verdachtsflächen\nDas Konzept ist rechtzeitig einzureichen, sodass die entsprechende Bewilligung vor Baubeginn vorliegt."]
["Grundlagen","Die Entwässerung von Baustellen richtet sich nach der Empfehlung SIA/VSA 431:1997.\nAbweichungen davon sind durch das AWEL, Sektion Siedlungsentwässerung genehmigen zu lassen. Einleitungen sind bewilligungspflichtig, wobei für Einleitungen in die Kanalisation die Bewilligung beim Kanalisationsbetreiber (i.d.R. Gemeinde) einzuholen ist. Einleitungen in öffentliche Gewässer sowie für Versickerungen sind durch das AWEL genehmigen zu lassen.\nDie Neutralisation von basischem Abwasser erfolgt ausschliesslich mit automatischen CO2-Anlagen, soweit das unternehmerseitig ausgearbeitete Entwässerungskonzept keine Alternativentsorgung aufzeigt. Das vorgereinigte Abwasser wird i.d.R. über eine ARA entsorgt. \n"]
["Bewilligungen","Die notwendigen Bewilligungen (Einleitungen, Versickerungsanlagen, Grundwasserhaltungen, Behandlungsanlagen, grosse Tankanlagen, etc.) sind durch den Zuschlagsempfänger rechtzeitig einzuholen."]
["Wassergefährdende Stoffe, Betankung","Die Lagerung und der Umgang mit wassergefährdenden Stoffen hat  der SIA-Empfehlung 431 Ziff. 2.4 / 5.4 zu entsprechen.\nBaustellentanks für wassergefährdende Stoffe müssen über ein Tankkontrolldokument verfügen. Das letzte Prüfdatum auf dem Typenschild darf nicht länger als 5 Jahre zurückliegen (2.5 Jahre bei IBC’s).\nVon allen auf der Baustelle gelagerten/verwendeten wassergefährdenden Flüssigkeiten und Chemikalien sind die entsprechenden Sicherheitsdatenblätter aktuell zu halten. Die zu treffenden Arbeits-, Sicherheits- und Notfallmassnahmen für diese Stoffe sind in den Arbeitsanweisungen festzuhalten.\nFür Störfälle mit wassergefährdenden Stoffen hat der Unternehmer einen Organisationsplan für Sofortmassnahmen bereitzustellen und die Belegschaft periodisch über die Massnahmen zu orientieren."]
["Grundwasserschutz","Das Grundwasser darf nicht mit gefährdenden Chemikalien belastet werden. Vergleiche SIA-Empfehlung 431:1997. \nFür Bauten im Grundwasser und Grundwasserabsenkungen gelten ausserdem die Punkte 3 – 13 der Allgemeinen Nebenbestimmungen für das Bauen im Grundwasser und Grundwasserabsenkungen des AWEL.\nFür Bauten in Grundwasserschutzzonen gelten zudem die Punkte 3 – 14 der Allgemeine Nebenbestimmungen für die Ausführung von Bauten in Grundwasserschutzzonen (Zone S) des AWEL."]
["Unfallmeldung","Jeder Schadenfall, bei dem wassergefährdende Flüssigkeiten in ein Gewässer, in eine Kanalisation oder in das Erdreich ausgelaufen sind und jede Gewässerverschmutzung muss unverzüglich der Polizei Tel.-Nr. 117, der Bauleitung und der Bauherrschaft gemeldet werden.\nFalls Sofortmassnahmen zur Schadensminimierung erforderlich sind, ist zudem die Feuerwehr Tel.-Nr. 118 aufzubieten."]
["Einleitung Abwässer","Die Kontrolle der ordnungsgemässen Einleitung von Abwasser erfolgt visuell (Sichttiefe > 30 cm) und mit pH-Indiaktor/-Sonde (ARA 6.5 > pH > 9, sonst 6.5 > pH > 8.5). Sie erfolgt ab Inbetriebnahme, fortlaufend, solange Abwasser eingeleitet wird. Automatische Anlagen sind mind. 1x pro Tag zu kotrollieren. Abweichungen werden umgehend den zuständigen Behörden, der Bauleitung und der Bauherrschaft gemeldet. Das Ergebnis dieser Kontrolle ist zu rapportieren. Die Behebung der Unzulänglichkeit hat sofort zu erfolgen."]
["Kontrollen","Die laufende, ordnungsgemässe Umsetzung des Entwässerungskonzeptes, des Grundwasserschutzes sowie der Lagerung wassergefährender Stoffe ist Sache der Unternehmung und wird durch die Bauleitung mit Stichproben überprüft. Die Erkenntnisse dieser Stichproben werden im Bausitzungs-/Jourfixprotokoll festgehalten. Verstösse können bis zu einer Anzeige bei der zuständigen Stelle führen."]
[]
[]
["1) Zuständig ist. i.d.R. die Gemeinde. Versickerungen von Abwasser, Einleitungen in ein Oberflächengewässer oder eine Meteorwasserkanalisation müssen durch das AWEL bewilligt werden."]

{"sheet":"912","index":49,"n_rows":24,"n_cols":7,"rows_kept":24,"cut":false,"hidden":false,"merged":[[2,1,2,3],[3,1,3,3],[4,1,4,3],[20,1,20,6],[21,1,21,6],[19,1,19,6],[8,0,8,6],[2,5,4,6],[5,1,5,3],[15,1,15,6],[17,1,17,6],[15,0,17,0],[22,1,22,6],[6,1,6,3],[12,0,12,6],[13,1,13,6],[18,1,18,6],[14,1,14,6],[16,1,16,6]]}
[null,null,null,null,null,null,"Zu 001 Inhaltsverzeichnis"]
["900 Umwelt",null,null,null,null,null,"912 Lärm/Erschütterungen\n"]
[{"$f":"+Titelblatt!E8","v":"Gemeinde"},{"$f":"+Titelblatt!F8","v":"Musterhausen"},null,null,{"$f":"+Titelblatt!E19","v":"Ingenieurbüro"},{"$f":"+Titelblatt!F19","v":"Musterbüro\nMusterstrasse 15\n8000 Musterhausen"}]
[{"$f":"+Titelblatt!E9","v":"Strasse"},{"$f":"+Titelblatt!F9","v":"Musterstrasse"},null,null,{"$f":"+Titelblatt!E23","v":" "},{"$f":"+Titelblatt!F23","v":" "}]
[{"$f":"+Titelblatt!E10","v":"Strecke"},{"$f":"+Titelblatt!F10","v":"Musterkreisel bis Musterstrasse"}]
[{"$f":"+Titelblatt!E11","v":"km / Bauwerk"},{"$f":"+Titelblatt!F11","v":"003-002 "}]
[{"$f":"+Titelblatt!E6","v":"Projekttitel"},{"$f":"+Titelblatt!F6","v":"Instandsetzung Musterbrücke …."}]
[]
["Objektspezifischer QM-Plan (Prüfungen durch den Bauherrn bestellt)"]
["Prüfung","Prüfverfahren","Anforderungen","Umfang","Zeitpunkt","Massnahmen bei Nichtgenügen","Bemerkungen"]
[]
[]
["Anforderungen an die Ausführung"]
["Rubrik","Beschrieb"]
["Maschinenliste","Der Unternehmer muss der Bauleitung vor Baubeginn eine detaillierte Geräteliste (inkl. Subunternehmer) zustellen. Darin müssen die Gerätebezeichnung, der Typ, das Datum der Inbetriebsetzung, das Gewicht, die Motorenleistung, die Art des Partikelfilters, das Datum der erforderlichen Wartungen, der Schallleistungspegel und für bodenrelevante Arbeiten die Auflagefläche ersichtlich sein. Bei Änderungen des Maschinenparks ist die Geräteliste entsprechend anzupassen und der Bauleitung abzugeben. Den Anforderungen nicht genügende Maschinen sind umgehend durch den Bauunternehmer auf eigene Kosten auszuwechseln."]
["Lärmige und lärmintensive Arbeiten (spitzen, rammen,vibrieren, sprengen, etc.)","Die Lärmschutzmassnahmen für Bauarbeiten richten sich nach der Baulärm-Richtlinie (BAFU)\nFür die vorliegende Baustelle gilt die folgende Massnahmenstufe :"]
[null,"Stufe A (Bauarbeiten nicht beeinflusst; Maschinen, Geräte und Transportfahrzeuge entsprechen der Normalausrüstung)\nStufe B (Bauarbeiten beschränkt beeinflusst; Maschinen, Geräte und Transportfahrzeuge entsprechen dem anerkannten Stand der Technik)\nStufe C (Bauarbeiten erheblich beeinflusst; Maschinen, Geräte und Transportfahrzeuge entsprechen dem neuesten Stand der Technik)."]
[null,"Werden Bauarbeiten oder lärmintensive Bauarbeiten während Zeiten mit erhöhtem Ruheanspruch (12:00 bis 13:00 Uhr, 19:00 bis 07:00 Uhr oder an Sonn- und allgemeinen Feiertagen) durchgeführt, kommt die jeweils nächsthöhere Massnahmenstufe zur Anwendung (Die Massnahmen der Stufe C werden nicht verschärft).\nDer anerkannte Stand der Technik verweist auf die Maschinenlärmverordnung (MaLV) des UVEK (Vergleiche auch Beilage: \"Grenzwerte für Maschinen, die dem anerkannten Stand der Technik entsprechen\"). Der neuste Stand der Technik entspricht denjenigen Maschinen und Geräten, die mit dem \"Blauen Engel\" ausgezeichnet wurden."]
["Ausnahmebewilligungen für Arbeiten während der Ruhezeiten","Für Bauarbeiten sind neben der Baulärmrichtlinie, die Ruhezeitverordnungen (Polizeiverordnungen) der Gemeinden sowie die Bestimmungen zum Schutz der Arbeitnehmer zu beachten. Für entsprechende Arbeiten sind vorgängig die notwendigen Bewilligungen einzuholen. Die Unternehmung sorgt in Absprache mit der BL ausserdem für eine vorgängige Information der betroffenen Anwohner. Dazu informiert sie die BL mindestens eine Woche im Voraus."]
["Bautransporte","Die Lärmschutzmassnahmen für Bautransporte richten sich nach der Baulärm-Richtlinie des BAFU (2011).\nDie Massnahmen gemäss der für die Baustelle gültigen Massnahmenstufe: A oder B sind einzuhalten."]
["Erschütterungsrelevante Arbeiten (Rammen, Vibrieren, Sprengen etc.)","Die Beurteilung der Auswirkungen von Erschütterungen auf Bauwerke erfolgt gemäss VSS 40 312:2019. Zur Minimierung der Erschütterungseinwirkungen auf Menschen (Belästigung) gelten dieselben zeitlichen Einschränkungen und Informationspflichten wie für lärmige/ lärmintensive Arbeiten."]
["Kontrollen","Die laufende, ordnungsgemässe Einhaltung der Vorgaben ist Sache der Unternehmung und wird durch die Bauleitung mit Stichproben überprüft. Eine Kontrolle erfolgt in jedem Fall zu Baubeginn und bei Änderungen des Maschinenparks. Die Erkenntnisse dieser Stichproben werden im Bausitzungs-/Jourfixprotokoll festgehalten. Verstösse können bis zu einer Anzeige bei der zuständigen Stelle führen."]
[]
[null,null,"Durch Projektverfasser auszuwählen"]

{"sheet":"913","index":50,"n_rows":26,"n_cols":7,"rows_kept":26,"cut":false,"hidden":false,"merged":[[25,0,25,6],[5,1,5,3],[2,1,2,3],[3,1,3,3],[4,1,4,3],[2,5,4,6],[16,1,16,6],[17,1,17,6],[18,1,18,6],[6,1,6,3],[12,0,12,6],[13,1,13,6],[15,1,15,6],[14,1,14,6],[8,0,8,6],[19,1,19,6],[22,1,22,6],[24,1,24,6],[20,1,20,6],[23,1,23,6],[21,1,21,6]]}
[null,null,null,null,null,null,"Zu 001 Inhaltsverzeichnis"]
["900 Umwelt",null,null,null,null,null,"913 Luft"]
[{"$f":"+Titelblatt!E8","v":"Gemeinde"},{"$f":"+Titelblatt!F8","v":"Musterhausen"},null,null,{"$f":"+Titelblatt!E19","v":"Ingenieurbüro"},{"$f":"+Titelblatt!F19","v":"Musterbüro\nMusterstrasse 15\n8000 Musterhausen"}]
[{"$f":"+Titelblatt!E9","v":"Strasse"},{"$f":"+Titelblatt!F9","v":"Musterstrasse"},null,null,{"$f":"+Titelblatt!E23","v":" "},{"$f":"+Titelblatt!F23","v":" "}]
[{"$f":"+Titelblatt!E10","v":"Strecke"},{"$f":"+Titelblatt!F10","v":"Musterkreisel bis Musterstrasse"}]
[{"$f":"+Titelblatt!E11","v":"km / Bauwerk"},{"$f":"+Titelblatt!F11","v":"003-002 "}]
[{"$f":"+Titelblatt!E6","v":"Projekttitel"},{"$f":"+Titelblatt!F6","v":"Instandsetzung Musterbrücke …."}]
[]
["Objektspezifischer QM-Plan (Prüfungen durch den Bauherrn bestellt)"]
["Prüfung","Prüfverfahren","Anforderungen","Umfang","Zeitpunkt","Massnahmen bei Nichtgenügen","Bemerkungen"]
[]
[]
["Anforderungen an die Ausführung"]
["Rubrik","Beschrieb"]
["Allgemein","Es gelten die BAFU-Richtlinie \"Luftreinhaltung auf Baustellen\" (Baurichtlinie Luft), die Verordnung zum Massnahmenplan Luftreinhaltung und die Weisungen des Kantons Zürich über die Emissionsminderung von Fahrzeugen resp. Maschinen und Geräten bei der Beschaffung sowie dem Betrieb durch die kantonale Verwaltung und beauftragte Unternehmen (RRB-Nr. 1425 und 1426 vom 11. Dezember 2013). Es sind generell emissionsarme Bauweisen und Bauverfahren vorzusehen und anzuwenden."]
["Verbrennen von Bauabfällen","Ist auf Baustellen verboten."]
["Dieselbetriebene Maschinen / Geräte","Die eingesetzten Maschinen und Geräte mit einer Leistung von mehr als 18 kW bis und mit 37 kW ab Baujahr 2008 als auch mit einer Leistung von mehr als 37 kW für alle Baujahre müssen mit einem geprüften, gewarteten und funktionstüchtigen Partikelfiltersystem1) mit Konformitätsbescheinigung (Art. 19a und 19b sowie Anhang 4 Ziff. 3 ff. LRV) ausgerüstet sein."]
["Benzinbetriebene Maschinen / Geräte","Benzinbetriebene Maschinen und Arbeitsgeräte sind mit Alkylatbenzin (Gerätebenzin) nach SN 181 163:2015 zu betreiben."]
["Strassenfahrzeuge","Motorwagen mit mehr als 3,5 Tonnen Gesamtgewicht müssen in den Abgabekategorien 2 oder 3 (gemäss Anhang 1 SVAV) zugelassen sein.2)"]
["Staubbekämpfung","Staubentwicklung ist durch geeignete Massnahmen soweit wie möglich zu verhindern, so etwa durch Reinigung von Verkehrswegen, befeuchten unbefestigter Wege und Plätze, Einrichten von Radwaschanlagen, Wasservorhänge bei Abbrucharbeiten etc.."]
["Oberflächenbehandlungen, Dichtungen und Anstriche","Für Oberflächenbehandlungen, Dichtungen und Anstriche sind umweltverträgliche (lösungsmittelfreie) Produkte zu verwenden. Dies gilt auch für Klebstoffe."]
["Korrosionsschutzarbeiten","Siehe  Kapitel 612 > Anforderungen an die Ausführung > Luftreinhaltung"]
["Walzasphalt, Gussasphalt","Siehe Kapitel 315 und 316 > Anforderungen an die Ausführung > Luftreinhaltung"]
["Kontrollen","Die laufende, ordnungsgemässe Einhalltung der Vorgaben ist Sache der Unternehmung und wird durch die Bauleitung mit Stichproben überprüft. Eine Kontrolle erfolgt in jedem Fall zu Baubeginn und bei Änderungen des Maschinenparks. Die Erkenntnisse dieser Stichproben werden im Bausitzungs-/Jourfixprotokoll festgehalten. Verstösse können zu einer Anzeige bei der Polizei führen."]
[]
["1) Die Pflicht zur Ausrüstung mit einem geprüften Partikelfiltersystem bedeutet, dass entweder ein geprüftes Partikelfiltersystem aufgebaut ist oder die Emissionen der Maschine den Anzahlgrenzwert von 1*10121/kWh für Feststoffpartikel mit einem Durchmesser von 23-300 nm nicht übersteigen darf. In beiden Fällen muss eine Konformitätsbescheinigung gemäss Art. 19b LRV vorliegen und die Maschine sowie das Filtersystem müssen korrekt gemäss Anhang 4 Ziffer 33 LRV gekennzeichnet sein.\n2) Erzeugt die Baustelle einer Anlage, die der Pflicht zur Umweltverträglichkeitsprüfung untersteht, Strassentransportvolumen von mehr als 20'000 m3, sind die Transporte von Massengütern mit Fahrzeugen auszuführen, welche der Abgabekategorie 3 gemäss Anhang 1 der Verordnung vom 6. März 2000 über eine leistungsabhängige Schwerverkehrsabgabe (SVAV) zugehören. Fahrzeuge der Abgabekategorie 2 gemäss Anhang 2  SVAV sind nur zugelassen, wenn sie mit einem Partikelfiltersystem nachgerüstet worden sind und zusätzlich die Anforderungen gemäss Anhang 1a SVAV erfüllen."]

{"sheet":"914","index":51,"n_rows":50,"n_cols":7,"rows_kept":50,"cut":false,"hidden":false,"merged":[[32,0,32,1],[32,2,32,6],[46,0,46,1],[46,2,46,6],[48,0,48,1],[48,2,48,6],[42,0,42,6],[43,0,43,1],[43,2,43,6],[33,0,33,6],[39,0,39,1],[39,2,39,6],[40,0,40,1],[35,0,35,1],[34,0,34,6],[35,2,35,6],[49,0,49,1],[49,2,49,6],[47,0,47,1],[47,2,47,6],[44,0,44,1],[44,2,44,6],[45,0,45,1],[45,2,45,6],[41,0,41,1],[41,2,41,6],[36,0,36,1],[36,2,36,6],[37,0,37,1],[37,2,37,6],[38,0,38,1],[38,2,38,6],[40,2,40,6],[31,2,31,6],[28,0,28,1],[29,0,29,1],[31,0,31,1],[30,0,30,1],[30,2,30,6],[19,1,19,6],[20,1,20,6],[28,2,28,6],[29,2,29,6],[27,0,27,1],[27,2,27,6],[22,1,22,6],[23,0,23,6],[24,0,24,6],[25,0,25,6],[26,2,26,6],[21,1,21,6],[26,0,26,1],[5,1,5,3],[2,1,2,3],[3,1,3,3],[4,1,4,3],[2,5,4,6],[17,1,17,6],[18,1,18,6],[16,1,16,6],[6,1,6,3],[12,0,12,6],[13,1,13,6],[15,1,15,6],[14,1,14,6],[8,0,8,6]]}
[null,null,null,null,null,null,"Zu 001 Inhaltsverzeichnis"]
["900 Umwelt",null,null,null,null,null,"914 Bauabfälle"]
[{"$f":"+Titelblatt!E8","v":"Gemeinde"},{"$f":"+Titelblatt!F8","v":"Musterhausen"},null,null,{"$f":"+Titelblatt!E19","v":"Ingenieurbüro"},{"$f":"+Titelblatt!F19","v":"Musterbüro\nMusterstrasse 15\n8000 Musterhausen"}]
[{"$f":"+Titelblatt!E9","v":"Strasse"},{"$f":"+Titelblatt!F9","v":"Musterstrasse"},null,null,{"$f":"+Titelblatt!E23","v":" "},{"$f":"+Titelblatt!F23","v":" "}]
[{"$f":"+Titelblatt!E10","v":"Strecke"},{"$f":"+Titelblatt!F10","v":"Musterkreisel bis Musterstrasse"}]
[{"$f":"+Titelblatt!E11","v":"km / Bauwerk"},{"$f":"+Titelblatt!F11","v":"003-002 "}]
[{"$f":"+Titelblatt!E6","v":"Projekttitel"},{"$f":"+Titelblatt!F6","v":"Instandsetzung Musterbrücke …."}]
[]
["Objektspezifischer QM-Plan (Prüfungen durch den Bauherrn bestellt)"]
["Prüfung","Prüfverfahren","Anforderungen","Umfang","Zeitpunkt","Massnahmen bei Nichtgenügen","Bemerkungen"]
[]
[]
["Anforderungen an die Ausführung"]
["Rubrik","Beschrieb"]
["Grundlagen","Die Abfallverordnung (VVEA), die Verordnung über den Verkehr mit Abfällen (VeVA), die SIA-Empfehlung 430 (SN 509 430):1993 „Entsorgung von Bauabfällen“ und die VSS-Norm SN 670 071:2011 Recycling Grundnorm, das Merkblatt Oberbau und Geotechnik: Anwendung von Recyclingbaustoffen (TBA), die eidgenössischen und die kantonalen Gesetze und Weisungen, insbesondere die Richtlinie für die Verwertung mineralischer Bauabfälle des BAFU (vorauss. 2019 durch Vollzugshilfen zur VVEA ersetzt) sowie die Behandlungsregel des Kantons Zürich resp. des AWEL für die Entsorgung von belasteten Bauabfällen sind einzuhalten. Für Bodenaushub gelten ausserdem die Bestimmungen unter Register-Nr. 915, für biologisch belastetes Material diejenigen unter Register-Nr. 917. VeVa-Nummer des TBA Kt. Zürich lauten: Staatstrassen 0261 02125; Nationalstrassen 0250 00159 "]
["Aufgaben des Unternehmers","Der Unternehmer ist verantwortlich für:\n- Trennen und Entsorgen der Bauabfälle\n- Planen, Projektieren, Betreiben und Überwachen der Baustelleneinrichtungen (Sammelstellen etc.) für die Trennung und Entsorgung der Bauabfälle\n- Transportieren der Bauabfälle zur vorgesehenen Entsorgungsstelle bzw. Behandlungsanlage\n- Sichern von Ladungen auf Transportmitteln (Lastwagen, Mulden, Container, Wechselbrücken etc.) und Kontrollieren des Ladegutes bezüglich Einheitlichkeit der Material- bzw. Stoffart und Übereinstimmung mit dem Bestimmungsort\n- Meldung von im Vertrag nicht enthaltenen Materialien und Stoffen an die Bauleitung\n- Meldung von offensichtlich unzweckmässigen Anordnungen in Bezug auf die Wahl der Baustoffe, die angewandten Konstruktionen und Bauverfahren an die Bauleitung\n- Deklaration und Nachweis der Entsorgung der Bauabfälle"]
["Trennung der Abfälle","Die Bauabfälle sind zu trennen -soweit dies betrieblich möglich ist - mit einer separaten Erfassung bereits auf der Baustelle (vergleiche Abschnitt \"Zu trennende Abfallkategorien\").\nIst auf der Baustelle eine getrennte Erfassung nicht möglich, sind die vermischten Bauabfälle einer nahe gelegenen Sortieranlage zuzuführen."]
["Vermischungsverbot","Verschiedene Abfälle, insbesondere Sonderabfälle dürfen nicht mit den übrigen Abfällen oder Zuschlagsstoffen vermischt werden. Sonderabfälle sind getrennt zu erfassen und gemäss den Bestimmungen der VeVA zu entsorgen."]
["Abfallbehandlungsanlagen","Die beanspruchten Anlagen für Behandlung, Verwertung, Entsorgung müssen für die entsprechende Materialart über eine Betriebsbewilligung des Standortkantons verfügen."]
["Behandlungsregel","Bei der Entsorgung von chemisch belastetem Aushubmaterial, mineralischem Rückbaumaterial, Giessereisand, Schlacke und Kugelfangmaterial ist die Behandlungsregel für die Entsorgung von belasteten Bauabfällen des Kantons Zürich zu beachten."]
["Vorgehen bei belasteten Standorten","Bauvorhaben auf bekannten belasteten Standorten (vergleiche KbS auf GIS-ZH) benötigen ein genehmigtes Aushub- und Entsorgungskonzept, welches spätestens 4 Wochen vor Baubeginn dem AWEL einzureichen ist. Die entsprechenden Arbeiten sind von einer Fachperson aus dem Bereich der Altlastenbearbeitung zu überwachen. \nDer Unternehmer hat bei Bauarbeiten auf sämtlichen Standorten das anfallende Material fortlaufend organoleptisch zu überprüfen. Wird wider Erwarten mit Abfällen verschmutztes Material entdeckt, sind die Bauleitung, die Bauherrschaft und das AWEL, Abteilung Abfallwirtschaft und Betriebe, Sektion Altlasten (Tel. 043 259 39 73), unverzüglich zu informieren, damit die  notwendigen abfall-/altlastenrechtlichen Massnahmen festgelegt werden können. Ausgenommen von der Meldepflicht sind Hinterfüllungen von Gebäuden, die oft Bauabfälle enthalten."]
["Abfallkategorien","Sofern in wesentlichen Mengen vorhanden, kommt das untenstehende Trennungssystem zur Anwendung."]
["Kontrollen","Die laufende, ordnungsgemässe Einhaltung der Vorgaben ist Sache der Unternehmung und wird durch die Bauleitung mit Stichproben überprüft (z.B. Dokumentenkontrolle, Fuhrscheine, Entsorgungsnachweise). Die Behebung von festgestellten Mängeln wird sofort veranlasst. Verstösse können bis zu einer Anzeige bei der zuständigen Stelle führen. Die Erkenntnisse dieser Stichproben werden im Bausitzungs-/Jourfixprotokoll festgehalten."]
["Zu trennende Abfallkategorien"]
["Es sind mindestens folgende Abfallkategorien getrennt zu erfassen und zu verwerten bzw. möglichst sortenrein zu entsorgen"]
["Aushub* / Bodenaushub "]
["Material",null,"Anforderungen, Verwertungsmöglichkeiten, Bemerkungen"]
["Bodenaushub (Erdschicht  bzw. Ober- / Unterboden)",null,"Trennen nach Ober- / Unterboden und Belastungskategorien, vergleiche Kapitel 915, Anforderungen an die Ausführung"]
["Unverschmutzter Aushub*",null,"Gemäss Anh. 3 Zif. 1 VVEA: Verwertung vor Ort / in Drittprojekten / Deponie Typ A → zur freien Verwertung"]
["Schwach belasteter Aushub* (ehem. T-Material)",null,"Gemäss Anh. 3 Zif. 2 VVEA: Eingeschränkte Verwertung vor Ort / Behandlung gemäss Stand der Technik, Deponie Typ B"]
["Aushub* mit B-Qualität (ehem. I-Material)",null,"Gemäss Anh. 5 Zif. 2 VVEA: Behandlung gemäss Stand der Technik / Deponie Typ B / bei Sanierung Altlast: Verwertung vor Ort nach Art. 19 Abs. 3 VVEA"]
["Aushub* mit (D) E-Qualität (ehem. Rest-/Reaktormat.)",null,"Gemäss Anh. 5 Zif. (4) 5 VVEA: Behandlung gemäss Stand der Technik / Deponie Typ (D) E"]
["Aushub mit Sonderabfallqualität",null,"Gemäss Anh. 5 Zif. 5 VVEA: Behandlung gemäss Stand der Technik / keine Deponie"]
["* Aushub = Lockergestein, gebrochener Fels, Material früherer Tätigkeiten oder von belasteten Standorten"]
["Mineralische Bauabfälle"]
["Material",null,"Verwertungszweck / Entsorgungsort"]
["Ausbauasphalt (Belagsaufbruch, Fräsasphalt)",null,"Trennen nach PAK-Gehalt bis 250 mg PAK/kg - 250 bis 1000 mg PAK/kg - über 1000 mg PAK/kg für Belagsrecycling resp. bewilligte Behandlung/Entsorgung"]
["Betonabbruch (bewehrt / unbewehrt)",null,"Bewilligte Bauschuttaufbereitungsanlage, Betonrecycling"]
["Strassenaufbruch > nicht gebundene und stabilisierte (Fundations-) Schichten",null,"eingeschränkte Verwertung vor Ort, bewilligte Bauschuttaufbereitungsanlage"]
["Mischabbruch (Gemische von Beton, Back-, Naturstein, Randabschlüsse o.ä.)",null,"Bewilligte Bauschuttaufbereitungsanlage"]
["Asbesthaltige Bauteile",null,"Ausbauarbeiten und Entsorgung nach den anerkannten Regeln der Technik (VVEA, EKAS-Richtlinie 6503, Factsheets der SUVA)"]
["Übrige mineralische Bauabfälle",null,"Bewilligte Bauschuttaufbereitungsanlage"]
["Andere Bauabfälle (Bausperrgut etc.)"]
["Material",null,"Verwertungszweck / Entsorgungsort"]
["Holz",null,"Bausperrgutsortieranlage (je nach Qualität)"]
["Metalle und Gusswaren",null,"Metallrecycling"]
["Kompostierbares Grünmaterial",null,"Verwendung vor Ort (häckseln), Vergär-/Kompostieranlage"]
["Elektromechanische Komponenten (Batterien, Kabel, Lampen, etc.)",null,"Bewilligte Entsorgungsunternehmer"]
["Übrige brennbare Bauabfälle, vermischt (analog Mulde 3 Mehrmuldenkonzept)",null,"KVA"]
["Übrige Abfälle",null,"Gesetzeskonforme Entsorgung (vergleiche www.abfall.zh.ch)"]

{"sheet":"915","index":52,"n_rows":21,"n_cols":7,"rows_kept":21,"cut":false,"hidden":false,"merged":[[20,0,20,6],[2,1,2,3],[3,1,3,3],[4,1,4,3],[2,5,4,6],[17,1,17,6],[5,1,5,3],[18,1,18,6],[19,1,19,6],[6,1,6,3],[12,0,12,6],[13,1,13,6],[15,1,15,6],[16,1,16,6],[14,1,14,6],[8,0,8,6]]}
[null,null,null,null,null,null,"Zu 001 Inhaltsverzeichnis"]
["900 Umwelt",null,null,null,null,null,"915 Bodenschutz"]
[{"$f":"+Titelblatt!E8","v":"Gemeinde"},{"$f":"+Titelblatt!F8","v":"Musterhausen"},null,null,{"$f":"+Titelblatt!E19","v":"Ingenieurbüro"},{"$f":"+Titelblatt!F19","v":"Musterbüro\nMusterstrasse 15\n8000 Musterhausen"}]
[{"$f":"+Titelblatt!E9","v":"Strasse"},{"$f":"+Titelblatt!F9","v":"Musterstrasse"},null,null,{"$f":"+Titelblatt!E23","v":" "},{"$f":"+Titelblatt!F23","v":" "}]
[{"$f":"+Titelblatt!E10","v":"Strecke"},{"$f":"+Titelblatt!F10","v":"Musterkreisel bis Musterstrasse"}]
[{"$f":"+Titelblatt!E11","v":"km / Bauwerk"},{"$f":"+Titelblatt!F11","v":"003-002 "}]
[{"$f":"+Titelblatt!E6","v":"Projekttitel"},{"$f":"+Titelblatt!F6","v":"Instandsetzung Musterbrücke …."}]
[]
["Objektspezifischer QM-Plan (Prüfungen durch den Bauherrn bestellt)"]
["Prüfung","Prüfverfahren","Anforderungen","Umfang","Zeitpunkt","Massnahmen bei Nichtgenügen","Bemerkungen"]
[]
[]
["Anforderungen an die Ausführung"]
["Rubrik","Beschrieb"]
["Grundlagen","Für sämtliche bodenrelevante Arbeiten (Befahren, Überschütten, Abtrag, Zwischenlagerung, Rekultivierung, etc.) gelten die Gesetze, Verordnungen, Richtlinien, Vorschriften und Weisungen betr. Bodenschutz, insbesondere die Verordnung über Belastungen des Bodens (VBBo), die Norm VSS 40 581:2019 \"Erdbau, Boden - Bodenschutz und Bauen\", die kantonalen Richtlinien für Bodenrekultivierungen mit zugehörigen Erläuterungen sowie das \"Merkblatt Bodenprojekte\" (2012) der kantonalen Fachstelle für Boden (FaBo). Für biologisch belastetes Material gelten ausserdem die Bestimmungen unter Register-Nr. 917."]
["Maschinenliste","Wird im Rahmen eines Projekts Boden befahren, muss der Unternehmer der Bauleitung vor Baubeginn eine detaillierte Geräteliste (inkl. Subunternehmer) zustellen. Darin müssen die Gerätebezeichnung, der Typ, das Gewicht und die Auflagefläche ersichtlich sein. Bei Änderungen des Maschinenparks ist die Geräteliste entsprechend anzupassen und der Bauleitung abzugeben. Den Anforderungen nicht genügende Maschinen sind umgehend durch den Bauunternehmer auf eigene Kosten auszuwechseln. "]
["Bodenverschiebung mit belastetem Bodenmaterial","Bodenverschiebungen aus dem Bereich des Prüfperimeters für Bodenverschiebungen (s. www.maps.zh.ch) oder aus Bauarealen mit sonstigen Belastungshinweisen sind nur nach den Vorgaben des Merkblatts \"Bodenverschiebungen bei Bauvorhaben\" der FaBo zulässig. Vermischung von unbelasteten- und belasteten Bodenmaterial ist zuvermeiden. Fallen mehr als 50 m3 (fest) Bodenmaterial mit Belastungshinweisen zur Abführung an, muss der Umgang mit diesen Boden zu Handen der Fabo dokumentiert werden. Es ist eine Fachperson für Bodenverschiedung beizuziehen, die vor Baubeginn der Fabo gemeldet wird."]
["Verwertung / Entsorgung Bodenmaterial","Ausgehobenes unbelastetes und intaktes Bodenmaterial muss gesetzeskonform als Boden verwertet werden1). Belastetes Bodenmaterial ist einer gesetzeskonformen Verwertung oder aber einer Entsorgung gemäss QL Unternehmer Kapitel 914, Bauabfälle zuzuführen."]
["Physikalischer Bodenschutz","Mit geeigneten Vorkehrungen wie Ausrichten des Bauprogramms nach der Witterung, Maschinenwahl in Abhängigkeit von der Bodenfeuchte und druckreduzierende Massnahmen ist sicherzustellen, dass bleibende Bodenverdichtungen vermieden werden. Allfällige druckverteilende Massnahmen wie Einkiesungen (mind. 50 cm im gesetzten Zustand) oder Baggermatratzen für Pisten und Installationsplätze sind nach Möglichkeit auf dem gewachsenen Oberboden zu realisieren. Zur Verhinderung einer Vermischung mit dem Boden ist beim Einsatz von Kies ein reissfestes Geotextil (mind. 14 kNm-1) als Trennschicht zu verwenden. Gewachsener Boden darf nur bei ausreichender Trockenheit (> 10 cbar Saugspannung) mit Raupenfahrzeugen befahren werden. Der Boden muss bei der Ausbringung weitgehend abgetrocknet sein und ist locker zu schütten. Der frisch geschüttete, rekultivierte Boden darf nicht befahren werden.  \nVermischungen von Oberboden (\"Humus\", A-Horizont), Unterboden (\"Stockerde\", \"Roterde\", B-Horizont) und Untergrundmaterial (C-Horizont) sind zu vermeiden.\nSoll ausgehobenes Material auf Böden ausserhalb des eingereichten Projekts verwertet werden, so ist hierfür ausserhalb der Bauzonen eine kantonale Bewilligung erforderlich (s. FaBo-Merkblatt Terrainveränderungen). Die Empfänger des Bodens sowie die entsprechenden Kubaturen und Qualitäten sind der FaBo zu melden."]
["Kontrollen","Die laufende, ordnungsgemässe Einhaltung der Vorgaben (Bodenprojekt, physikalischer Bodenschutz, Verwertungs-/Entsorgungsnachweise) ist Sache der Unternehmung und wird durch die Bauleitung stichenprobenartig überprüft. Die Ergebnisse dieser Stichproben werden im Bausitzungs-/Jourfixprotokoll festgehalten. Allfällige Korrekturmassnahmen sind sofort umzusetzen. "]
["1) Werden mehr als 200 m3 unbelastetes Bodenmaterial von der Baustelle abgeführt, hat der Unternehmer vor Baubeginn die Mustervorlage „Übernahme der Verwertungspflicht von abgetragenem Boden“ (www.boden.zh.ch/br) auszufüllen und über das TBA bei der FaBo einzureichen."]

{"sheet":"916","index":53,"n_rows":18,"n_cols":7,"rows_kept":18,"cut":false,"hidden":false,"merged":[[18,1,18,6],[17,1,17,6],[2,1,2,3],[3,1,3,3],[4,1,4,3],[5,1,5,3],[6,1,6,3],[13,0,13,6],[14,1,14,6],[15,1,15,6],[16,1,16,6],[8,0,8,6],[2,5,4,6]]}
[null,null,null,null,null,null,"Zu 001 Inhaltsverzeichnis"]
["900 Umwelt",null,null,null,null,null,"916 Natur- und Baumschutz / Wald"]
[{"$f":"+Titelblatt!E8","v":"Gemeinde"},{"$f":"+Titelblatt!F8","v":"Musterhausen"},null,null,{"$f":"+Titelblatt!E19","v":"Ingenieurbüro"},{"$f":"+Titelblatt!F19","v":"Musterbüro\nMusterstrasse 15\n8000 Musterhausen"}]
[{"$f":"+Titelblatt!E9","v":"Strasse"},{"$f":"+Titelblatt!F9","v":"Musterstrasse"},null,null,{"$f":"+Titelblatt!E23","v":" "},{"$f":"+Titelblatt!F23","v":" "}]
[{"$f":"+Titelblatt!E10","v":"Strecke"},{"$f":"+Titelblatt!F10","v":"Musterkreisel bis Musterstrasse"}]
[{"$f":"+Titelblatt!E11","v":"km / Bauwerk"},{"$f":"+Titelblatt!F11","v":"003-002 "}]
[{"$f":"+Titelblatt!E6","v":"Projekttitel"},{"$f":"+Titelblatt!F6","v":"Instandsetzung Musterbrücke …."}]
[]
["Objektspezifischer QM-Plan (Prüfungen durch den Bauherrn bestellt)"]
["Prüfung","Prüfverfahren","Anforderungen","Umfang","Zeitpunkt","Massnahmen bei Nichtgenügen","Bemerkungen"]
[]
[]
[]
["Anforderungen an die Ausführung"]
["Rubrik","Beschrieb"]
["Biotope / seltene Arten / Wald / Naturschutzflächen","Benachbarte schützenswerte Biotope oder Naturschutzgebiete sowie Tiere, insbesondere geschützte Arten dürfen nicht beeinträchtigt werden.\nNicht zulässig sind insbesondere: Deponien, Aufschüttungen, Abgrabungen, Einleitung von Abwasser, Grundwasserabsenkung, Zwischenlagerung von Material oder Maschinen, Staubimmissionen o. ä..\nEbenso unzulässig ist jegliche Beanspruchung von Wald ausserhalb von Rodungsflächen.\nBenachbarte, schützenswerte Biotope, Naturschutzgebiete und Waldflächen sind vor Baubeginn mitttels Zäunen o. ä. vom Bauperimeter abzugrenzen."]
["Bäume / Sträucher","Zu erhaltende Bäume und Sträucher dürfen nicht beeinträchtigt werden. Der Baumschutz auf der Baustelle ist durch eine Fachperson sicherzustellen. \nNicht zulässig sind insbesondere auf der Baumscheibe/im Wurzelbereich (Wurzelbereich = Aussenkante Kronentraufe plus 2 m): Bodenauf- oder Abtrag, Abgrabungen, Planierungen, Einleitung von Abwasser, Zwischenlagerung von Material oder Maschinen usw. vorzunehmen. \nBäume und Strächer (Baumkronen- und Wurzelbereich), auch benachbarte, sind vor Baubeginn mitttels Zäunen o. ä. vom Bauperimeter abzugrenzen und zu schützen. "]
["Kontrollen","Die laufende, ordnungsgemässe Einhaltung der Vorgaben (Biotopschutz) ist Sache der Unternehmung und wird durch die Bauleitung mit Stichproben überprüft. Die Erkenntnisse dieser Stichproben werden im Bausitzungs-/Jourfixprotokoll festgehalten. Überschreitungen sind umgehend über das TBA den verantwortlichen Amtsstellen zu melden. Der Unternehmer haftet für verursachte Baumschäden."]

{"sheet":"917","index":54,"n_rows":19,"n_cols":7,"rows_kept":19,"cut":false,"hidden":false,"merged":[[5,1,5,3],[2,1,2,3],[3,1,3,3],[4,1,4,3],[2,5,4,6],[20,1,20,6],[16,1,16,6],[17,1,17,6],[19,1,19,6],[18,1,18,6],[15,1,15,6],[6,1,6,3],[12,0,12,6],[13,1,13,6],[14,1,14,6],[8,0,8,6]]}
[null,null,null,null,null,null,"Zu 001 Inhaltsverzeichnis"]
["900 Umwelt",null,null,null,null,null,"917 Invasive Organismen"]
[{"$f":"+Titelblatt!E8","v":"Gemeinde"},{"$f":"+Titelblatt!F8","v":"Musterhausen"},null,null,{"$f":"+Titelblatt!E19","v":"Ingenieurbüro"},{"$f":"+Titelblatt!F19","v":"Musterbüro\nMusterstrasse 15\n8000 Musterhausen"}]
[{"$f":"+Titelblatt!E9","v":"Strasse"},{"$f":"+Titelblatt!F9","v":"Musterstrasse"},null,null,{"$f":"+Titelblatt!E23","v":" "},{"$f":"+Titelblatt!F23","v":" "}]
[{"$f":"+Titelblatt!E10","v":"Strecke"},{"$f":"+Titelblatt!F10","v":"Musterkreisel bis Musterstrasse"}]
[{"$f":"+Titelblatt!E11","v":"km / Bauwerk"},{"$f":"+Titelblatt!F11","v":"003-002 "}]
[{"$f":"+Titelblatt!E6","v":"Projekttitel"},{"$f":"+Titelblatt!F6","v":"Instandsetzung Musterbrücke …."}]
[]
["Objektspezifischer QM-Plan (Prüfungen durch den Bauherrn bestellt)"]
["Prüfung","Prüfverfahren","Anforderungen","Umfang","Zeitpunkt","Massnahmen bei Nichtgenügen","Bemerkungen"]
[]
[]
["Anforderungen an die Ausführung"]
["Rubrik","Beschrieb"]
["Biologisch belastetes Boden- / Aushubmaterial","Als biologisch belastet gilt Aushub (= Boden und anderes Aushubmaterial), welcher fortpflanzungsfähige Teile der Arten gemäss Anhang 2 der Freisetzungsverordnung (SR 814.911, FrSV) enthält. Die wichtigsten Arten des Anhangs 2 sind Asiatischer Staudenknöterich, Essigbaum, Ambrosia, Riesenbärenklau, Drüsiges Springkraut und Schmalblättriges Greiskraut. Beim Umgang mit biologisch belastetem Boden sind die Empfehlungen der Arbeitsgruppe Invasive Neobiota (AGIN) zu beachten. Biologisch belasteter Boden darf nicht mit unbelastetem Boden vermischt werden. Fahrzeuge, Maschinen und Werkzeuge sind nach Kontakt mit biologisch belastetem Bodenmaterial zu reinigen. \nBoden, der mit Asiatischem Staudenknöterich, Essigbaum, Riesenbärenklau, Drüsigem Springkraut oder Schmalblättrigem Greiskraut belastet ist, ist in einer Inertstoffdeponie oder in einer für die Ablagerung von biologisch belastetem Boden zugelassenen Kiesgrube zu entsorgen. Boden, welcher mit Drüsigem Springkraut belastet ist, kann unter Auflagen auch in der Landwirtschaft verwertet werden (siehe Empfehlungen der AGIN) . Eine Verwendung unmittelbar am Ort der Entnahme darf nur in Absprache mit dem TBA erfolgen. Gegenüber dem Abnehmer ist eine Belastung des Aushubs mit Asiatischen Staudenknöterisch, Essigbaum, Ambrosia, Riesenbärenklau oder Erdmantelgras gemäss VVEA Art. 16 zu deklarien. \nSofern Boden anfällt, der mit Essigbaum oder Asiatischem Staudenknöterich belastet ist, ist ein befugter Altlastenberater beizuziehen und vor Baubeginn das Zusatzformular „Belastete Standorte und Altlasten (inkl. mit Neobiota belastete Standorte)“ bei der Sektion Altlasten einzureichen."]
["Invasives Pflanzenmaterial","Ambrosia sowie unterirdische Pflanzenteile (Rhizome, Wurzeln) von Asiatischen Staudenknöterichen und Essigbäumen sind in einer Kehrrichtverbrennungsanlage zu entsorgen. Fortpflanzungsfähiges Material der übrigen invasiven Neophyten ist in einer professionellen Platz- und Boxenkompostierung, einer Co-Vergärungsanlage mit Hygienisierungsschritt, einer Feststoffvergärungsanlage oder in einer Kehrichtverbrennungsanlage zu entsorgen."]
["Offene Flächen und Bodendepots","Offene Böden (Bodendepots, Installationsplätze, Rohböden, etc.) und Flächen mit lückiger Vegetation sind regelmässig auf das Vorhandensein von invasiven Neophyten zu kontrollieren. Aufkommende invasive Neophyten sind zu bekämpfen. Fertig gestellte oder länger nicht beanspruchte, unversiegelte Flächen sowie Bodendepots sind so rasch wie möglich zu begrünen."]
["Zugeführtes Material","Es ist sicher zu stellen, dass zugeführtes Material frei von invasiven Neophyten ist."]
["Kontrollen","Die laufende, ordnungsgemässe Einhaltung der Vorgaben (z.B auch Entsorgungswege) ist Sache der Unternehmung und wird durch die Bauleitung mit Stichproben überprüft. Die Erkenntnisse dieser Stichproben (Dokumentenkontrolle > Fuhrscheine, Entsorgungsnachweise, zugelassene Deponie)  werden im Bausitzungs-/Jourfixprotokoll festgehalten. Bei Verstössen ist der Unternehmer verantwortlich für die  Beseitigung der Schäden. In schwerwiegenden Fällen ist das falsch behandelte Material duch die Unternehmung auf eigene Kosten zurückzuführen."]

{"sheet":"Leer","index":55,"n_rows":14,"n_cols":7,"rows_kept":14,"cut":false,"hidden":true,"merged":[[1,5,1,6],[2,5,2,6],[12,0,12,6],[1,1,1,3],[2,1,2,3],[3,1,3,3],[4,1,4,3],[5,1,5,3],[16,1,16,6],[17,1,17,6],[18,1,18,6],[19,1,19,6],[13,1,13,6],[14,1,14,6],[15,1,15,6],[20,1,20,6],[21,1,21,6],[22,1,22,6],[23,1,23,6],[24,1,24,6],[25,1,25,6],[26,1,26,6],[27,1,27,6],[28,1,28,6],[29,1,29,6],[30,1,30,6],[31,1,31,6],[32,1,32,6],[33,1,33,6],[34,1,34,6],[40,1,40,6],[41,1,41,6],[35,1,35,6],[36,1,36,6],[37,1,37,6],[38,1,38,6],[39,1,39,6]]}
[null,null,null,null,null,null,"Zu 001 Inhaltsverzeichnis"]
[{"$f":"+Titelblatt!E8","v":"Gemeinde"},{"$f":"+Titelblatt!F8","v":"Musterhausen"},null,null,{"$f":"+Titelblatt!E19","v":"Ingenieurbüro"},{"$f":"+Titelblatt!F19","v":"Musterbüro\nMusterstrasse 15\n8000 Musterhausen"}]
[{"$f":"+Titelblatt!E9","v":"Strasse"},{"$f":"+Titelblatt!F9","v":"Musterstrasse"},null,null,{"$f":"+Titelblatt!E23","v":" "},{"$f":"+Titelblatt!F23","v":" "}]
[{"$f":"+Titelblatt!E10","v":"Strecke"},{"$f":"+Titelblatt!F10","v":"Musterkreisel bis Musterstrasse"}]
[{"$f":"+Titelblatt!E11","v":"km / Bauwerk"},{"$f":"+Titelblatt!F11","v":"003-002 "}]
[{"$f":"+Titelblatt!E6","v":"Projekttitel"},{"$f":"+Titelblatt!F6","v":"Instandsetzung Musterbrücke …."}]
[]
["Prüfung","Prüfverfahren","Anforderungen","Umfang","Zeitpunkt","Massnahmen bei Nichtgenügen","Bemerkungen"]
[]
[]
[]
[]
["Ausführungs- / Anforderungshinweise"]
["Rubrik","Beschrieb"]